Workbook

Sheet Main
B10: 2024-08-29
B12: Sheet No. | C12: Template Name | D12: Summary
B13: 1 | C13: Future Intra | D13: For Intraday trading in F&O segment
B14: 2 | C14: Cash Intra | D14: For Intraday trading in cash market segment
B15: 3 | C15: Mid-cap Intra | D15: For Intraday trading in Mid-cap stocks
B16: 4 | C16: Bulk Deals | D16: Reveals Bulk Deals carried on NSE & BSE
B17: 5 | C17: Call Tracker
K27: `

Sheet Future Intra
M5: Back to Main Page
A6: FOR INTRA DAY TRADING | L6: =Main!B10 -> 2024-08-29
A9: Sr.no | B9: Sector | C9: Scrip | D9: Expiry Date | E9: CLOSE RATE | F9: Pivot Point | G9: Supports | J9: Resistances
E10: Point | F10: Point | G10: S1 | H10: S2 | I10: S3 | J10: R1 | K10: R2 | L10: R3 | M10: HIGH | N10: LOW | O10: OI | P10: % Change in OI
A11: 1 | B11: Index | C11: NIFTY | D11: 2024-08-29 | E11: 25048.35 | F11: 25058.13 | G11: 24971.27 | H11: 24894.18 | I11: 24807.32 | J11: 25135.22 | K11: 25222.08 | L11: 25299.17 | M11: 25145 | N11: 24981.05 | O11: 15253575 | P11: 5.27%
A12: 2 | B12: Index | C12: BANKNIFTY | D12: 2024-09-25 | E12: 51428.80 | F12: 51459.95 | G12: 51360.85 | H12: 51292.90 | I12: 51193.80 | J12: 51527.90 | K12: 51627.00 | L12: 51694.95 | M12: 51559.05 | N12: 51392 | O12: 2381895 | P12: -24.42%
A13: 3 | B13: Index | C13: FINNIFTY | D13: 2024-09-24 | E13: 23639.80 | F13: 23644.05 | G13: 23607.75 | H13: 23575.70 | I13: 23539.40 | J13: 23676.10 | K13: 23712.40 | L13: 23744.45 | M13: 23680.35 | N13: 23612 | O13: 71200 | P13: 8.33%
A14: 4 | B14: Index | C14: MIDCPNIFTY | D14: 2024-09-30 | E14: 13118.75 | F14: 13114.92 | G14: 13058.83 | H14: 12998.92 | I14: 12942.83 | J14: 13174.83 | K14: 13230.92 | L14: 13290.83 | M14: 13171 | N14: 13055 | O14: 2060100 | P14: 6.97%
A15: 5 | B15: Index | C15: NIFTYNXT50 | D15: 2024-08-30 | E15: 75303.30 | F15: 75208.30 | G15: 75036.15 | H15: 74769.00 | I15: 74596.85 | J15: 75475.45 | K15: 75647.60 | L15: 75914.75 | M15: 75380.45 | N15: 74941.15 | O15: 15890 | P15: 6.86%
A16: 6 | B16: Chemicals | C16: AARTIIND | D16: 2024-08-29 | E16: 641.65 | F16: 640.75 | G16: 631.05 | H16: 620.45 | I16: 610.75 | J16: 651.35 | K16: 661.05 | L16: 671.65 | M16: 650.45 | N16: 630.15 | O16: 11713000 | P16: -1.47%
A17: 7 | B17: Capital_Goods | C17: ABB | D17: 2024-08-29 | E17: 7920.10 | F17: 7897.72 | G17: 7854.28 | H17: 7788.47 | I17: 7745.03 | J17: 7963.53 | K17: 8006.97 | L17: 8072.78 | M17: 7941.15 | N17: 7831.9 | O17: 1749875 | P17: -2.87%
A18: 8 | B18: Pharma | C18: ABBOTINDIA | D18: 2024-08-29 | E18: 29926.35 | F18: 29896.03 | G18: 29620.17 | H18: 29313.98 | I18: 29038.12 | J18: 30202.22 | K18: 30478.08 | L18: 30784.27 | M18: 30171.9 | N18: 29589.85 | O18: 158940 | P18: 0.56%
A19: 9 | B19: Finance | C19: ABCAPITAL | D19: 2024-08-29 | E19: 222.11 | F19: 222.63 | G19: 220.88 | H19: 219.65 | I19: 217.90 | J19: 223.86 | K19: 225.61 | L19: 226.84 | M19: 224.38 | N19: 221.4 | O19: 71404200 | P19: -2.64%
A20: 10 | B20: Textile | C20: ABFRL | D20: 2024-08-29 | E20: 315.55 | F20: 317.48 | G20: 310.87 | H20: 306.18 | I20: 299.57 | J20: 322.17 | K20: 328.78 | L20: 333.47 | M20: 324.1 | N20: 312.8 | O20: 52067600 | P20: 18.76%
A21: 11 | B21: Cement | C21: ACC | D21: 2024-08-29 | E21: 2326.30 | F21: 2331.23 | G21: 2312.47 | H21: 2298.63 | I21: 2279.87 | J21: 2345.07 | K21: 2363.83 | L21: 2377.67 | M21: 2350 | N21: 2317.4 | O21: 5796300 | P21: 3.45%
A22: 12 | B22: Infrastructure | C22: ADANIENT | D22: 2024-08-29 | E22: 3024.55 | F22: 3037.55 | G22: 3005.00 | H22: 2985.45 | I22: 2952.90 | J22: 3057.10 | K22: 3089.65 | L22: 3109.20 | M22: 3070.1 | N22: 3018 | O22: 22740900 | P22: 2.39%
A23: 13 | B23: Infrastructure | C23: ADANIPORTS | D23: 2024-08-29 | E23: 1469.40 | F23: 1473.57 | G23: 1462.88 | H23: 1456.37 | I23: 1445.68 | J23: 1480.08 | K23: 1490.77 | L23: 1497.28 | M23: 1484.25 | N23: 1467.05 | O23: 29973600 | P23: -1.00%
A24: 14 | B24: Pharma | C24: ALKEM | D24: 2024-08-29 | E24: 5985.00 | F24: 5952.33 | G24: 5892.67 | H24: 5800.33 | I24: 5740.67 | J24: 6044.67 | K24: 6104.33 | L24: 6196.67 | M24: 6012 | N24: 5860 | O24: 2354100 | P24: -1.62%
A25: 15 | B25: Cement | C25: AMBUJACEM | D25: 2024-08-29 | E25: 615.95 | F25: 619.22 | G25: 611.73 | H25: 607.52 | I25: 600.03 | J25: 623.43 | K25: 630.92 | L25: 635.13 | M25: 626.7 | N25: 615 | O25: 43102800 | P25: 1.80%
A26: 16 | B26: Pharma | C26: APOLLOHOSP | D26: 2024-08-29 | E26: 6789.10 | F26: 6790.07 | G26: 6745.18 | H26: 6701.27 | I26: 6656.38 | J26: 6833.98 | K26: 6878.87 | L26: 6922.78 | M26: 6834.95 | N26: 6746.15 | O26: 1788625 | P26: 0.20%
A27: 17 | B27: Automobile | C27: APOLLOTYRE | D27: 2024-08-29 | E27: 498.60 | F27: 501.00 | G27: 495.35 | H27: 492.10 | I27: 486.45 | J27: 504.25 | K27: 509.90 | L27: 513.15 | M27: 506.65 | N27: 497.75 | O27: 17678300 | P27: 5.13%
A28: 18 | B28: Automobile | C28: ASHOKLEY | D28: 2024-08-29 | E28: 259.75 | F28: 260.60 | G28: 258.20 | H28: 256.65 | I28: 254.25 | J28: 262.15 | K28: 264.55 | L28: 266.10 | M28: 263 | N28: 259.05 | O28: 63940000 | P28: -4.04%
A29: 19 | B29: FMCG | C29: ASIANPAINT | D29: 2024-08-29 | E29: 3127.40 | F29: 3138.53 | G29: 3110.87 | H29: 3094.33 | I29: 3066.67 | J29: 3155.07 | K29: 3182.73 | L29: 3199.27 | M29: 3166.2 | N29: 3122 | O29: 10751600 | P29: -3.16%
A30: 20 | B30: Capital_Goods | C30: ASTRAL | D30: 2024-08-29 | E30: 1957.80 | F30: 1961.75 | G30: 1944.50 | H30: 1931.20 | I30: 1913.95 | J30: 1975.05 | K30: 1992.30 | L30: 2005.60 | M30: 1979 | N30: 1948.45 | O30: 5146074 | P30: -7.83%
A31: 21 | B31: Chemicals | C31: ATUL | D31: 2024-08-29 | E31: 7889.65 | F31: 7876.93 | G31: 7811.47 | H31: 7733.28 | I31: 7667.82 | J31: 7955.12 | K31: 8020.58 | L31: 8098.77 | M31: 7942.4 | N31: 7798.75 | O31: 854200 | P31: -3.58%
A32: 22 | B32: Banking | C32: AUBANK | D32: 2024-08-29 | E32: 632.80 | F32: 632.73 | G32: 627.47 | H32: 622.13 | I32: 616.87 | J32: 638.07 | K32: 643.33 | L32: 648.67 | M32: 638 | N32: 627.4 | O32: 22092000 | P32: -0.90%
A33: 23 | B33: Pharma | C33: AUROPHARMA | D33: 2024-08-29 | E33: 1564.45 | F33: 1562.10 | G33: 1544.95 | H33: 1525.45 | I33: 1508.30 | J33: 1581.60 | K33: 1598.75 | L33: 1618.25 | M33: 1579.25 | N33: 1542.6 | O33: 11466400 | P33: -2.02%
A34: 24 | B34: Banking | C34: AXISBANK | D34: 2024-08-29 | E34: 1170.35 | F34: 1172.88 | G34: 1164.47 | H34: 1158.58 | I34: 1150.17 | J34: 1178.77 | K34: 1187.18 | L34: 1193.07 | M34: 1181.3 | N34: 1167 | O34: 60756250 | P34: 5.07%
A35: 25 | B35: Automobile | C35: BAJAJ-AUTO | D35: 2024-08-29 | E35: 10622.85 | F35: 10594.28 | G35: 10498.57 | H35: 10374.28 | I35: 10278.57 | J35: 10718.57 | K35: 10814.28 | L35: 10938.57 | M35: 10690 | N35: 10470 | O35: 1790850 | P35: 3.40%
A36: 26 | B36: Finance | C36: BAJAJFINSV | D36: 2024-08-29 | E36: 1708.50 | F36: 1712.68 | G36: 1692.37 | H36: 1676.23 | I36: 1655.92 | J36: 1728.82 | K36: 1749.13 | L36: 1765.27 | M36: 1733 | N36: 1696.55 | O36: 14845000 | P36: 1.03%
A37: 27 | B37: Finance | C37: BAJFINANCE | D37: 2024-08-29 | E37: 6886.90 | F37: 6869.27 | G37: 6829.63 | H37: 6772.37 | I37: 6732.73 | J37: 6926.53 | K37: 6966.17 | L37: 7023.43 | M37: 6908.9 | N37: 6812 | O37: 9992750 | P37: -2.38%
A38: 28 | B38: Automobile | C38: BALKRISIND | D38: 2024-08-29 | E38: 2814.70 | F38: 2812.82 | G38: 2785.63 | H38: 2756.57 | I38: 2729.38 | J38: 2841.88 | K38: 2869.07 | L38: 2898.13 | M38: 2840 | N38: 2783.75 | O38: 2178600 | P38: 1.79%
A39: 29 | B39: FMCG | C39: BALRAMCHIN | D39: 2024-08-29 | E39: 589.00 | F39: 582.05 | G39: 571.30 | H39: 553.60 | I39: 542.85 | J39: 599.75 | K39: 610.50 | L39: 628.20 | M39: 592.8 | N39: 564.35 | O39: 6203200 | P39: -14.47%
A40: 30 | B40: Banking | C40: BANDHANBNK | D40: 2024-08-29 | E40: 196.63 | F40: 198.19 | G40: 193.99 | H40: 191.34 | I40: 187.14 | J40: 200.84 | K40: 205.04 | L40: 207.69 | M40: 202.4 | N40: 195.55 | O40: 115155600 | P40: 5.85%
A41: 31 | B41: Banking | C41: BANKBARODA | D41: 2024-08-29 | E41: 249.75 | F41: 249.85 | G41: 248.20 | H41: 246.65 | I41: 245.00 | J41: 251.40 | K41: 253.05 | L41: 254.60 | M41: 251.5 | N41: 248.3 | O41: 200748600 | P41: 4.22%
A42: 32 | B42: FMCG | C42: BATAINDIA | D42: 2024-08-29 | E42: 1454.40 | F42: 1456.90 | G42: 1444.40 | H42: 1434.40 | I42: 1421.90 | J42: 1466.90 | K42: 1479.40 | L42: 1489.40 | M42: 1469.4 | N42: 1446.9 | O42: 3354375 | P42: -3.10%
A43: 33 | B43: Capital_Goods | C43: BEL | D43: 2024-08-29 | E43: 300.25 | F43: 301.07 | G43: 297.93 | H43: 295.62 | I43: 292.48 | J43: 303.38 | K43: 306.52 | L43: 308.83 | M43: 304.2 | N43: 298.75 | O43: 163709700 | P43: -0.60%
A44: 34 | B44: FMCG | C44: BERGEPAINT | D44: 2024-08-29 | E44: 573.35 | F44: 576.07 | G44: 568.78 | H44: 564.22 | I44: 556.93 | J44: 580.63 | K44: 587.92 | L44: 592.48 | M44: 583.35 | N44: 571.5 | O44: 13962960 | P44: -3.16%
A45: 35 | B45: Automobile | C45: BHARATFORG | D45: 2024-08-29 | E45: 1587.20 | F45: 1591.78 | G45: 1577.52 | H45: 1567.83 | I45: 1553.57 | J45: 1601.47 | K45: 1615.73 | L45: 1625.42 | M45: 1606.05 | N45: 1582.1 | O45: 7905500 | P45: 0.64%
A46: 36 | B46: Telecom | C46: BHARTIARTL | D46: 2024-08-29 | E46: 1549.40 | F46: 1542.05 | G46: 1524.80 | H46: 1500.20 | I46: 1482.95 | J46: 1566.65 | K46: 1583.90 | L46: 1608.50 | M46: 1559.3 | N46: 1517.45 | O46: 46731450 | P46: 6.44%
A47: 37 | B47: Capital_Goods | C47: BHEL | D47: 2024-08-29 | E47: 294.80 | F47: 295.62 | G47: 292.48 | H47: 290.17 | I47: 287.03 | J47: 297.93 | K47: 301.07 | L47: 303.38 | M47: 298.75 | N47: 293.3 | O47: 84380625 | P47: 0.15%
A48: 38 | B48: Pharma | C48: BIOCON | D48: 2024-08-29 | E48: 357.20 | F48: 358.13 | G48: 352.47 | H48: 347.73 | I48: 342.07 | J48: 362.87 | K48: 368.53 | L48: 373.27 | M48: 363.8 | N48: 353.4 | O48: 45760000 | P48: 2.94%
A49: 39 | B49: Automobile | C49: BOSCHLTD | D49: 2024-08-29 | E49: 31898.25 | F49: 32088.77 | G49: 31614.63 | H49: 31331.02 | I49: 30856.88 | J49: 32372.38 | K49: 32846.52 | L49: 33130.13 | M49: 32562.9 | N49: 31805.15 | O49: 340250 | P49: 2.18%
A50: 40 | B50: Oil_Gas | C50: BPCL | D50: 2024-08-29 | E50: 348.05 | F50: 350.08 | G50: 344.37 | H50: 340.68 | I50: 334.97 | J50: 353.77 | K50: 359.48 | L50: 363.17 | M50: 355.8 | N50: 346.4 | O50: 65842200 | P50: 0.32%
A51: 41 | B51: FMCG | C51: BRITANNIA | D51: 2024-08-29 | E51: 5699.35 | F51: 5715.35 | G51: 5666.20 | H51: 5633.05 | I51: 5583.90 | J51: 5748.50 | K51: 5797.65 | L51: 5830.80 | M51: 5764.5 | N51: 5682.2 | O51: 2544400 | P51: 2.14%
A52: 42 | B52: Technology | C52: BSOFT | D52: 2024-08-29 | E52: 660.50 | F52: 654.33 | G52: 641.17 | H52: 621.83 | I52: 608.67 | J52: 673.67 | K52: 686.83 | L52: 706.17 | M52: 667.5 | N52: 635 | O52: 10618000 | P52: -14.52%
A53: 43 | B53: Banking | C53: CANBK | D53: 2024-08-29 | E53: 110.19 | F53: 110.40 | G53: 109.50 | H53: 108.82 | I53: 107.92 | J53: 111.08 | K53: 111.98 | L53: 112.66 | M53: 111.29 | N53: 109.71 | O53: 302778000 | P53: -0.12%
A54: 44 | B54: Finance | C54: CANFINHOME | D54: 2024-08-29 | E54: 872.10 | F54: 869.55 | G54: 860.25 | H54: 848.40 | I54: 839.10 | J54: 881.40 | K54: 890.70 | L54: 902.55 | M54: 878.85 | N54: 857.7 | O54: 5824650 | P54: -6.44%
A55: 45 | B55: Chemicals | C55: CHAMBLFERT | D55: 2024-08-29 | E55: 515.70 | F55: 518.72 | G55: 511.58 | H55: 507.47 | I55: 500.33 | J55: 522.83 | K55: 529.97 | L55: 534.08 | M55: 525.85 | N55: 514.6 | O55: 12312000 | P55: -1.88%
A56: 46 | B56: Finance | C56: CHOLAFIN | D56: 2024-08-29 | E56: 1451.15 | F56: 1447.67 | G56: 1436.38 | H56: 1421.62 | I56: 1410.33 | J56: 1462.43 | K56: 1473.72 | L56: 1488.48 | M56: 1458.95 | N56: 1432.9 | O56: 12431875 | P56: 1.36%
A57: 47 | B57: Pharma | C57: CIPLA | D57: 2024-08-29 | E57: 1618.05 | F57: 1613.53 | G57: 1598.52 | H57: 1578.98 | I57: 1563.97 | J57: 1633.07 | K57: 1648.08 | L57: 1667.62 | M57: 1628.55 | N57: 1594 | O57: 11729250 | P57: 7.38%
A58: 48 | B58: Metals | C58: COALINDIA | D58: 2024-08-29 | E58: 526.70 | F58: 529.13 | G58: 523.52 | H58: 520.33 | I58: 514.72 | J58: 532.32 | K58: 537.93 | L58: 541.12 | M58: 534.75 | N58: 525.95 | O58: 53151000 | P58: 1.47%
A59: 49 | B59: Technology | C59: COFORGE | D59: 2024-08-29 | E59: 6251.05 | F59: 6227.83 | G59: 6111.72 | H59: 5972.38 | I59: 5856.27 | J59: 6367.17 | K59: 6483.28 | L59: 6622.62 | M59: 6343.95 | N59: 6088.5 | O59: 2363400 | P59: -0.92%
A60: 50 | B60: FMCG | C60: COLPAL | D60: 2024-08-29 | E60: 3599.45 | F60: 3578.12 | G60: 3546.98 | H60: 3494.52 | I60: 3463.38 | J60: 3630.58 | K60: 3661.72 | L60: 3714.18 | M60: 3609.25 | N60: 3525.65 | O60: 3077900 | P60: -6.34%
A61: 51 | B61: Infrastructure | C61: CONCOR | D61: 2024-08-29 | E61: 973.00 | F61: 975.38 | G61: 963.87 | H61: 954.73 | I61: 943.22 | J61: 984.52 | K61: 996.03 | L61: 1005.17 | M61: 986.9 | N61: 966.25 | O61: 23732000 | P61: 3.43%
A62: 52 | B62: Chemicals | C62: COROMANDEL | D62: 2024-08-29 | E62: 1740.95 | F62: 1741.87 | G62: 1729.08 | H62: 1717.22 | I62: 1704.43 | J62: 1753.73 | K62: 1766.52 | L62: 1778.38 | M62: 1754.65 | N62: 1730 | O62: 4004700 | P62: -8.57%
A63: 53 | B63: Capital_Goods | C63: CROMPTON | D63: 2024-08-29 | E63: 462.80 | F63: 463.90 | G63: 455.50 | H63: 448.20 | I63: 439.80 | J63: 471.20 | K63: 479.60 | L63: 486.90 | M63: 472.3 | N63: 456.6 | O63: 13536000 | P63: -3.69%
A64: 54 | B64: Banking | C64: CUB | D64: 2024-08-29 | E64: 169.86 | F64: 170.19 | G64: 168.56 | H64: 167.26 | I64: 165.63 | J64: 171.49 | K64: 173.12 | L64: 174.42 | M64: 171.82 | N64: 168.89 | O64: 28695000 | P64: -3.64%
A65: 55 | B65: Capital_Goods | C65: CUMMINSIND | D65: 2024-08-29 | E65: 3739.25 | F65: 3748.20 | G65: 3711.15 | H65: 3683.05 | I65: 3646.00 | J65: 3776.30 | K65: 3813.35 | L65: 3841.45 | M65: 3785.25 | N65: 3720.1 | O65: 4677600 | P65: -0.73%
A66: 56 | B66: FMCG | C66: DABUR | D66: 2024-08-29 | E66: 643.70 | F66: 643.75 | G66: 637.75 | H66: 631.80 | I66: 625.80 | J66: 649.70 | K66: 655.70 | L66: 661.65 | M66: 649.75 | N66: 637.8 | O66: 13865000 | P66: -2.47%
A67: 57 | B67: Cement | C67: DALBHARAT | D67: 2024-08-29 | E67: 1821.20 | F67: 1823.35 | G67: 1809.55 | H67: 1797.90 | I67: 1784.10 | J67: 1835.00 | K67: 1848.80 | L67: 1860.45 | M67: 1837.15 | N67: 1811.7 | O67: 4539700 | P67: -1.86%
A68: 58 | B68: Chemicals | C68: DEEPAKNTR | D68: 2024-08-29 | E68: 2892.05 | F68: 2882.92 | G68: 2850.08 | H68: 2808.12 | I68: 2775.28 | J68: 2924.88 | K68: 2957.72 | L68: 2999.68 | M68: 2915.75 | N68: 2840.95 | O68: 3232500 | P68: -2.99%
A69: 59 | B69: Pharma | C69: DIVISLAB | D69: 2024-08-29 | E69: 5040.60 | F69: 5000.52 | G69: 4903.08 | H69: 4765.57 | I69: 4668.13 | J69: 5138.03 | K69: 5235.47 | L69: 5372.98 | M69: 5097.95 | N69: 4863 | O69: 3499600 | P69: 9.25%
A70: 60 | B70: Capital_Goods | C70: DIXON | D70: 2024-08-29 | E70: 13220.95 | F70: 13246.75 | G70: 13107.10 | H70: 12993.25 | I70: 12853.60 | J70: 13360.60 | K70: 13500.25 | L70: 13614.10 | M70: 13386.4 | N70: 13132.9 | O70: 2012100 | P70: -4.74%
A71: 61 | B71: Realty | C71: DLF | D71: 2024-08-29 | E71: 838.05 | F71: 841.83 | G71: 832.57 | H71: 827.08 | I71: 817.82 | J71: 847.32 | K71: 856.58 | L71: 862.07 | M71: 851.1 | N71: 836.35 | O71: 39482850 | P71: 2.17%
A72: 62 | B72: Pharma | C72: DRREDDY | D72: 2024-08-29 | E72: 7004.55 | F72: 6994.38 | G72: 6935.17 | H72: 6865.78 | I72: 6806.57 | J72: 7063.77 | K72: 7122.98 | L72: 7192.37 | M72: 7053.6 | N72: 6925 | O72: 2604125 | P72: 3.33%
A73: 63 | B73: Automobile | C73: EICHERMOT | D73: 2024-08-29 | E73: 4939.25 | F73: 4912.47 | G73: 4854.93 | H73: 4770.62 | I73: 4713.08 | J73: 4996.78 | K73: 5054.32 | L73: 5138.63 | M73: 4970 | N73: 4828.15 | O73: 3705100 | P73: -5.79%
A74: 64 | B74: Automobile | C74: ESCORTS | D74: 2024-08-29 | E74: 3852.30 | F74: 3854.40 | G74: 3828.40 | H74: 3804.50 | I74: 3778.50 | J74: 3878.30 | K74: 3904.30 | L74: 3928.20 | M74: 3880.4 | N74: 3830.5 | O74: 2046550 | P74: -3.01%
A75: 65 | B75: Automobile | C75: EXIDEIND | D75: 2024-08-29 | E75: 492.75 | F75: 495.05 | G75: 488.95 | H75: 485.15 | I75: 479.05 | J75: 498.85 | K75: 504.95 | L75: 508.75 | M75: 501.15 | N75: 491.25 | O75: 35249400 | P75: -1.75%
A76: 66 | B76: Banking | C76: FEDERALBNK | D76: 2024-08-29 | E76: 194.88 | F76: 195.25 | G76: 193.67 | H76: 192.46 | I76: 190.88 | J76: 196.46 | K76: 198.04 | L76: 199.25 | M76: 196.83 | N76: 194.04 | O76: 119360000 | P76: 13.69%
A77: 67 | B77: Oil_Gas | C77: GAIL | D77: 2024-08-29 | E77: 234.91 | F77: 235.35 | G77: 233.81 | H77: 232.71 | I77: 231.17 | J77: 236.45 | K77: 237.99 | L77: 239.09 | M77: 236.89 | N77: 234.25 | O77: 109342500 | P77: -1.83%
A78: 68 | B78: Pharma | C78: GLENMARK | D78: 2024-08-29 | E78: 1707.60 | F78: 1704.38 | G78: 1697.27 | H78: 1686.93 | I78: 1679.82 | J78: 1714.72 | K78: 1721.83 | L78: 1732.17 | M78: 1711.5 | N78: 1694.05 | O78: 6383625 | P78: -2.46%
A79: 69 | B79: Infrastructure | C79: GMRINFRA | D79: 2024-08-29 | E79: 94.79 | F79: 95.25 | G79: 93.70 | H79: 92.62 | I79: 91.07 | J79: 96.33 | K79: 97.88 | L79: 98.96 | M79: 96.79 | N79: 94.16 | O79: 305392500 | P79: 6.32%
A80: 70 | B80: Chemicals | C80: GNFC | D80: 2024-08-29 | E80: 676.55 | F80: 679.88 | G80: 671.57 | H80: 666.58 | I80: 658.27 | J80: 684.87 | K80: 693.18 | L80: 698.17 | M80: 688.2 | N80: 674.9 | O80: 6961500 | P80: -3.83%
A81: 71 | B81: FMCG | C81: GODREJCP | D81: 2024-08-29 | E81: 1481.80 | F81: 1479.15 | G81: 1455.25 | H81: 1428.70 | I81: 1404.80 | J81: 1505.70 | K81: 1529.60 | L81: 1556.15 | M81: 1503.05 | N81: 1452.6 | O81: 9694500 | P81: -0.26%
A82: 72 | B82: Realty | C82: GODREJPROP | D82: 2024-08-29 | E82: 2882.90 | F82: 2886.33 | G82: 2870.02 | H82: 2857.13 | I82: 2840.82 | J82: 2899.22 | K82: 2915.53 | L82: 2928.42 | M82: 2902.65 | N82: 2873.45 | O82: 5962275 | P82: 0.94%
A83: 73 | B83: Pharma | C83: GRANULES | D83: 2024-08-29 | E83: 707.05 | F83: 697.28 | G83: 685.07 | H83: 663.08 | I83: 650.87 | J83: 719.27 | K83: 731.48 | L83: 753.47 | M83: 709.5 | N83: 675.3 | O83: 10808000 | P83: 36.02%
A84: 74 | B84: Cement | C84: GRASIM | D84: 2024-08-29 | E84: 2717.90 | F84: 2709.72 | G84: 2695.18 | H84: 2672.47 | I84: 2657.93 | J84: 2732.43 | K84: 2746.97 | L84: 2769.68 | M84: 2724.25 | N84: 2687 | O84: 8092750 | P84: -0.33%
A85: 75 | B85: Oil_Gas | C85: GUJGASLTD | D85: 2024-08-29 | E85: 602.70 | F85: 601.77 | G85: 597.43 | H85: 592.17 | I85: 587.83 | J85: 607.03 | K85: 611.37 | L85: 616.63 | M85: 606.1 | N85: 596.5 | O85: 11580000 | P85: -4.86%
A86: 76 | B86: Capital_Goods | C86: HAL | D86: 2024-08-29 | E86: 4690.60 | F86: 4707.47 | G86: 4659.98 | H86: 4629.37 | I86: 4581.88 | J86: 4738.08 | K86: 4785.57 | L86: 4816.18 | M86: 4754.95 | N86: 4676.85 | O86: 13266900 | P86: 0.23%
A87: 77 | B87: Capital_Goods | C87: HAVELLS | D87: 2024-08-29 | E87: 1887.10 | F87: 1889.02 | G87: 1874.48 | H87: 1861.87 | I87: 1847.33 | J87: 1901.63 | K87: 1916.17 | L87: 1928.78 | M87: 1903.55 | N87: 1876.4 | O87: 8780000 | P87: -2.10%
A88: 78 | B88: Technology | C88: HCLTECH | D88: 2024-08-29 | E88: 1713.15 | F88: 1711.57 | G88: 1690.18 | H88: 1667.22 | I88: 1645.83 | J88: 1734.53 | K88: 1755.92 | L88: 1778.88 | M88: 1732.95 | N88: 1688.6 | O88: 16875250 | P88: 1.58%
A89: 79 | B89: Finance | C89: HDFCAMC | D89: 2024-08-29 | E89: 4472.70 | F89: 4475.27 | G89: 4420.53 | H89: 4368.37 | I89: 4313.63 | J89: 4527.43 | K89: 4582.17 | L89: 4634.33 | M89: 4530 | N89: 4423.1 | O89: 2957250 | P89: -3.00%
A90: 80 | B90: Banking | C90: HDFCBANK | D90: 2024-08-29 | E90: 1634.95 | F90: 1635.12 | G90: 1629.23 | H90: 1623.52 | I90: 1617.63 | J90: 1640.83 | K90: 1646.72 | L90: 1652.43 | M90: 1641 | N90: 1629.4 | O90: 182239200 | P90: -0.35%
A91: 81 | B91: Finance | C91: HDFCLIFE | D91: 2024-08-29 | E91: 740.00 | F91: 739.28 | G91: 734.22 | H91: 728.43 | I91: 723.37 | J91: 745.07 | K91: 750.13 | L91: 755.92 | M91: 744.35 | N91: 733.5 | O91: 27935600 | P91: 2.51%
A92: 82 | B92: Automobile | C92: HEROMOTOCO | D92: 2024-08-29 | E92: 5318.30 | F92: 5305.77 | G92: 5269.53 | H92: 5220.77 | I92: 5184.53 | J92: 5354.53 | K92: 5390.77 | L92: 5439.53 | M92: 5342 | N92: 5257 | O92: 4408800 | P92: -1.31%
A93: 83 | B93: Metals | C93: HINDALCO | D93: 2024-08-29 | E93: 703.90 | F93: 705.28 | G93: 700.07 | H93: 696.23 | I93: 691.02 | J93: 709.12 | K93: 714.33 | L93: 718.17 | M93: 710.5 | N93: 701.45 | O93: 40863200 | P93: -1.97%
A94: 84 | B94: Metals | C94: HINDCOPPER | D94: 2024-08-29 | E94: 330.20 | F94: 330.58 | G94: 327.12 | H94: 324.03 | I94: 320.57 | J94: 333.67 | K94: 337.13 | L94: 340.22 | M94: 334.05 | N94: 327.5 | O94: 38141450 | P94: -6.53%
A95: 85 | B95: Oil_Gas | C95: HINDPETRO | D95: 2024-08-29 | E95: 406.05 | F95: 406.48 | G95: 401.62 | H95: 397.18 | I95: 392.32 | J95: 410.92 | K95: 415.78 | L95: 420.22 | M95: 411.35 | N95: 402.05 | O95: 66351150 | P95: 1.90%
A96: 86 | B96: FMCG | C96: HINDUNILVR | D96: 2024-08-29 | E96: 2765.30 | F96: 2764.95 | G96: 2750.05 | H96: 2734.80 | I96: 2719.90 | J96: 2780.20 | K96: 2795.10 | L96: 2810.35 | M96: 2779.85 | N96: 2749.7 | O96: 14795100 | P96: -0.08%
A97: 87 | B97: Banking | C97: ICICIBANK | D97: 2024-08-29 | E97: 1222.60 | F97: 1221.10 | G97: 1217.80 | H97: 1213.00 | I97: 1209.70 | J97: 1225.90 | K97: 1229.20 | L97: 1234.00 | M97: 1224.4 | N97: 1216.3 | O97: 88677400 | P97: 2.71%
A98: 88 | B98: Finance | C98: ICICIGI | D98: 2024-08-29 | E98: 2141.40 | F98: 2146.05 | G98: 2127.75 | H98: 2114.10 | I98: 2095.80 | J98: 2159.70 | K98: 2178.00 | L98: 2191.65 | M98: 2164.35 | N98: 2132.4 | O98: 5183500 | P98: -4.64%
A99: 89 | B99: Finance | C99: ICICIPRULI | D99: 2024-08-29 | E99: 744.60 | F99: 744.12 | G99: 738.33 | H99: 732.07 | I99: 726.28 | J99: 750.38 | K99: 756.17 | L99: 762.43 | M99: 749.9 | N99: 737.85 | O99: 13717500 | P99: 1.04%
A100: 90 | B100: Telecom | C100: IDEA | D100: 2024-08-29 | E100: 15.95 | F100: 15.97 | G100: 15.78 | H100: 15.61 | I100: 15.42 | J100: 16.14 | K100: 16.33 | L100: 16.50 | M100: 16.16 | N100: 15.8 | O100: 4646080000 | P100: 0.82%
A101: 91 | B101: Finance | C101: IDFC | D101: 2024-08-29 | E101: 111.76 | F101: 112.14 | G101: 111.12 | H101: 110.48 | I101: 109.46 | J101: 112.78 | K101: 113.80 | L101: 114.44 | M101: 113.16 | N101: 111.5 | O101: 117705000 | P101: -2.26%
A102: 92 | B102: Banking | C102: IDFCFIRSTB | D102: 2024-08-29 | E102: 74.07 | F102: 74.18 | G102: 73.21 | H102: 72.35 | I102: 71.38 | J102: 75.04 | K102: 76.01 | L102: 76.87 | M102: 75.15 | N102: 73.32 | O102: 510105000 | P102: 3.50%
A103: 93 | B103: Power | C103: IEX | D103: 2024-08-29 | E103: 203.69 | F103: 201.30 | G103: 196.97 | H103: 190.25 | I103: 185.92 | J103: 208.02 | K103: 212.35 | L103: 219.07 | M103: 205.63 | N103: 194.58 | O103: 68898750 | P103: 10.37%
A104: 94 | B104: Oil_Gas | C104: IGL | D104: 2024-08-29 | E104: 539.45 | F104: 537.90 | G104: 535.95 | H104: 532.45 | I104: 530.50 | J104: 541.40 | K104: 543.35 | L104: 546.85 | M104: 539.85 | N104: 534.4 | O104: 13156000 | P104: -3.69%
A105: 95 | B105: Infrastructure | C105: INDHOTEL | D105: 2024-08-29 | E105: 653.35 | F105: 658.77 | G105: 647.08 | H105: 640.82 | I105: 629.13 | J105: 665.03 | K105: 676.72 | L105: 682.98 | M105: 670.45 | N105: 652.5 | O105: 18644000 | P105: -1.96%
A106: 96 | B106: Cement | C106: INDIACEM | D106: 2024-08-29 | E106: 370.70 | F106: 370.57 | G106: 366.13 | H106: 361.57 | I106: 357.13 | J106: 375.13 | K106: 379.57 | L106: 384.13 | M106: 375 | N106: 366 | O106: 13569100 | P106: -20.96%
A107: 97 | B107: FMCG | C107: INDIAMART | D107: 2024-08-29 | E107: 3054.55 | F107: 3040.40 | G107: 3004.65 | H107: 2954.75 | I107: 2919.00 | J107: 3090.30 | K107: 3126.05 | L107: 3175.95 | M107: 3076.15 | N107: 2990.5 | O107: 1482300 | P107: 9.34%
A108: 98 | B108: Infrastructure | C108: INDIGO | D108: 2024-08-29 | E108: 4862.00 | F108: 4844.57 | G108: 4745.68 | H108: 4629.37 | I108: 4530.48 | J108: 4960.88 | K108: 5059.77 | L108: 5176.08 | M108: 4943.45 | N108: 4728.25 | O108: 7698000 | P108: 0.56%
A109: 99 | B109: Banking | C109: INDUSINDBK | D109: 2024-08-29 | E109: 1412.30 | F109: 1404.67 | G109: 1389.68 | H109: 1367.07 | I109: 1352.08 | J109: 1427.28 | K109: 1442.27 | L109: 1464.88 | M109: 1419.65 | N109: 1382.05 | O109: 35566000 | P109: -4.84%
A110: 100 | B110: Telecom | C110: INDUSTOWER | D110: 2024-08-29 | E110: 443.60 | F110: 443.45 | G110: 439.40 | H110: 435.20 | I110: 431.15 | J110: 447.65 | K110: 451.70 | L110: 455.90 | M110: 447.5 | N110: 439.25 | O110: 78995600 | P110: -3.86%
A111: 101 | B111: Technology | C111: INFY | D111: 2024-08-29 | E111: 1936.15 | F111: 1928.90 | G111: 1904.80 | H111: 1873.45 | I111: 1849.35 | J111: 1960.25 | K111: 1984.35 | L111: 2015.70 | M111: 1953 | N111: 1897.55 | O111: 45512000 | P111: 2.64%
A112: 102 | B112: Oil_Gas | C112: IOC | D112: 2024-08-29 | E112: 173.79 | F112: 173.97 | G112: 171.68 | H112: 169.58 | I112: 167.29 | J112: 176.07 | K112: 178.36 | L112: 180.46 | M112: 176.25 | N112: 171.86 | O112: 198812250 | P112: 2.21%
A113: 103 | B113: Pharma | C113: IPCALAB | D113: 2024-08-29 | E113: 1397.85 | F113: 1398.00 | G113: 1386.30 | H113: 1374.75 | I113: 1363.05 | J113: 1409.55 | K113: 1421.25 | L113: 1432.80 | M113: 1409.7 | N113: 1386.45 | O113: 3538600 | P113: -5.17%
A114: 104 | B114: Infrastructure | C114: IRCTC | D114: 2024-08-29 | E114: 926.15 | F114: 929.65 | G114: 921.60 | H114: 917.05 | I114: 909.00 | J114: 934.20 | K114: 942.25 | L114: 946.80 | M114: 937.7 | N114: 925.1 | O114: 23402750 | P114: 0.03%
A115: 105 | B115: FMCG | C115: ITC | D115: 2024-08-29 | E115: 497.35 | F115: 498.72 | G115: 495.33 | H115: 493.32 | I115: 489.93 | J115: 500.73 | K115: 504.12 | L115: 506.13 | M115: 502.1 | N115: 496.7 | O115: 120579200 | P115: 2.20%
A116: 106 | B116: Metals | C116: JINDALSTEL | D116: 2024-08-29 | E116: 969.35 | F116: 969.58 | G116: 963.32 | H116: 957.28 | I116: 951.02 | J116: 975.62 | K116: 981.88 | L116: 987.92 | M116: 975.85 | N116: 963.55 | O116: 14964375 | P116: -3.02%
A117: 107 | B117: Cement | C117: JKCEMENT | D117: 2024-08-29 | E117: 4423.30 | F117: 4474.67 | G117: 4361.53 | H117: 4299.77 | I117: 4186.63 | J117: 4536.43 | K117: 4649.57 | L117: 4711.33 | M117: 4587.8 | N117: 4412.9 | O117: 829375 | P117: -3.97%
A118: 108 | B118: Metals | C118: JSWSTEEL | D118: 2024-08-29 | E118: 949.30 | F118: 946.60 | G118: 940.20 | H118: 931.10 | I118: 924.70 | J118: 955.70 | K118: 962.10 | L118: 971.20 | M118: 953 | N118: 937.5 | O118: 21414375 | P118: 2.15%
A119: 109 | B119: FMCG | C119: JUBLFOOD | D119: 2024-08-29 | E119: 656.75 | F119: 657.92 | G119: 648.33 | H119: 639.92 | I119: 630.33 | J119: 666.33 | K119: 675.92 | L119: 684.33 | M119: 667.5 | N119: 649.5 | O119: 20338750 | P119: 1.16%
A120: 110 | B120: Banking | C120: KOTAKBANK | D120: 2024-08-29 | E120: 1791.70 | F120: 1795.38 | G120: 1784.82 | H120: 1777.93 | I120: 1767.37 | J120: 1802.27 | K120: 1812.83 | L120: 1819.72 | M120: 1805.95 | N120: 1788.5 | O120: 36514800 | P120: 5.84%
A121: 111 | B121: Finance | C121: LTF | D121: 2024-08-29 | E121: 170.39 | F121: 171.18 | G121: 169.21 | H121: 168.04 | I121: 166.07 | J121: 172.35 | K121: 174.32 | L121: 175.49 | M121: 173.14 | N121: 170 | O121: 88526080 | P121: 1.98%
A122: 112 | B122: Pharma | C122: LALPATHLAB | D122: 2024-08-29 | E122: 3373.30 | F122: 3369.98 | G122: 3337.87 | H122: 3302.43 | I122: 3270.32 | J122: 3405.42 | K122: 3437.53 | L122: 3472.97 | M122: 3402.1 | N122: 3334.55 | O122: 1827900 | P122: -2.85%
A123: 113 | B123: Pharma | C123: LAURUSLABS | D123: 2024-08-29 | E123: 458.15 | F123: 457.47 | G123: 451.48 | H123: 444.82 | I123: 438.83 | J123: 464.13 | K123: 470.12 | L123: 476.78 | M123: 463.45 | N123: 450.8 | O123: 28747000 | P123: 3.66%
A124: 114 | B124: Finance | C124: LICHSGFIN | D124: 2024-08-29 | E124: 675.45 | F124: 678.53 | G124: 670.42 | H124: 665.38 | I124: 657.27 | J124: 683.57 | K124: 691.68 | L124: 696.72 | M124: 686.65 | N124: 673.5 | O124: 31060000 | P124: 1.95%
A125: 115 | B125: Capital_Goods | C125: LT | D125: 2024-08-29 | E125: 3683.50 | F125: 3689.37 | G125: 3659.13 | H125: 3634.77 | I125: 3604.53 | J125: 3713.73 | K125: 3743.97 | L125: 3768.33 | M125: 3719.6 | N125: 3665 | O125: 18822450 | P125: -1.02%
A126: 116 | B126: Technology | C126: LTIM | D126: 2024-08-29 | E126: 6122.35 | F126: 6037.55 | G126: 5870.80 | H126: 5619.25 | I126: 5452.50 | J126: 6289.10 | K126: 6455.85 | L126: 6707.40 | M126: 6204.3 | N126: 5786 | O126: 3576600 | P126: 4.36%
A127: 117 | B127: Technology | C127: LTTS | D127: 2024-08-29 | E127: 5674.75 | F127: 5635.40 | G127: 5560.00 | H127: 5445.25 | I127: 5369.85 | J127: 5750.15 | K127: 5825.55 | L127: 5940.30 | M127: 5710.8 | N127: 5520.65 | O127: 1464100 | P127: -6.83%
A128: 118 | B128: Pharma | C128: LUPIN | D128: 2024-08-29 | E128: 2200.90 | F128: 2195.03 | G128: 2166.37 | H128: 2131.83 | I128: 2103.17 | J128: 2229.57 | K128: 2258.23 | L128: 2292.77 | M128: 2223.7 | N128: 2160.5 | O128: 14875850 | P128: 0.81%
A129: 119 | B129: Automobile | C129: M&M | D129: 2024-08-29 | E129: 2798.45 | F129: 2799.98 | G129: 2775.72 | H129: 2752.98 | I129: 2728.72 | J129: 2822.72 | K129: 2846.98 | L129: 2869.72 | M129: 2824.25 | N129: 2777.25 | O129: 14198450 | P129: 0.04%
A130: 120 | B130: Finance | C130: M&MFIN | D130: 2024-08-29 | E130: 316.10 | F130: 317.90 | G130: 312.90 | H130: 309.70 | I130: 304.70 | J130: 321.10 | K130: 326.10 | L130: 329.30 | M130: 322.9 | N130: 314.7 | O130: 44074000 | P130: -5.76%
A131: 121 | B131: Finance | C131: MANAPPURAM | D131: 2024-08-29 | E131: 214.95 | F131: 215.55 | G131: 212.54 | H131: 210.13 | I131: 207.12 | J131: 217.96 | K131: 220.97 | L131: 223.38 | M131: 218.56 | N131: 213.14 | O131: 67314000 | P131: -2.94%
A132: 122 | B132: FMCG | C132: MARICO | D132: 2024-08-29 | E132: 661.40 | F132: 664.15 | G132: 656.60 | H132: 651.80 | I132: 644.25 | J132: 668.95 | K132: 676.50 | L132: 681.30 | M132: 671.7 | N132: 659.35 | O132: 19510800 | P132: 4.47%
A133: 123 | B133: Automobile | C133: MARUTI | D133: 2024-08-29 | E133: 12326.95 | F133: 12319.65 | G133: 12139.30 | H133: 11951.65 | I133: 11771.30 | J133: 12507.30 | K133: 12687.65 | L133: 12875.30 | M133: 12500 | N133: 12132 | O133: 3858400 | P133: 2.08%
A134: 124 | B134: FMCG | C134: UNITDSPR | D134: 2024-08-29 | E134: 1445.20 | F134: 1443.80 | G134: 1434.40 | H134: 1423.60 | I134: 1414.20 | J134: 1454.60 | K134: 1464.00 | L134: 1474.80 | M134: 1453.2 | N134: 1433 | O134: 9788800 | P134: -3.51%
A135: 125 | B135: Technology | C135: MCX | D135: 2024-08-29 | E135: 4960.80 | F135: 4939.33 | G135: 4882.77 | H135: 4804.73 | I135: 4748.17 | J135: 5017.37 | K135: 5073.93 | L135: 5151.97 | M135: 4995.9 | N135: 4861.3 | O135: 2477200 | P135: 3.35%
A136: 126 | B136: Pharma | C136: METROPOLIS | D136: 2024-08-29 | E136: 2099.35 | F136: 2093.68 | G136: 2059.37 | H136: 2019.38 | I136: 1985.07 | J136: 2133.67 | K136: 2167.98 | L136: 2207.97 | M136: 2128 | N136: 2053.7 | O136: 1525600 | P136: -7.79%
A137: 127 | B137: Finance | C137: MFSL | D137: 2024-08-29 | E137: 1068.75 | F137: 1073.65 | G137: 1058.60 | H137: 1048.45 | I137: 1033.40 | J137: 1083.80 | K137: 1098.85 | L137: 1109.00 | M137: 1088.7 | N137: 1063.5 | O137: 5156800 | P137: 0.58%
A138: 128 | B138: Oil_Gas | C138: MGL | D138: 2024-08-29 | E138: 1785.80 | F138: 1780.17 | G138: 1764.23 | H138: 1742.67 | I138: 1726.73 | J138: 1801.73 | K138: 1817.67 | L138: 1839.23 | M138: 1796.1 | N138: 1758.6 | O138: 1773200 | P138: -10.34%
A139: 129 | B139: Automobile | C139: MOTHERSON | D139: 2024-08-29 | E139: 196.70 | F139: 197.63 | G139: 195.37 | H139: 194.03 | I139: 191.77 | J139: 198.97 | K139: 201.23 | L139: 202.57 | M139: 199.9 | N139: 196.3 | O139: 124037000 | P139: -2.57%
A140: 130 | B140: Technology | C140: MPHASIS | D140: 2024-08-29 | E140: 3084.60 | F140: 3073.22 | G140: 3017.08 | H140: 2949.57 | I140: 2893.43 | J140: 3140.73 | K140: 3196.87 | L140: 3264.38 | M140: 3129.35 | N140: 3005.7 | O140: 5213175 | P140: -0.66%
A141: 131 | B141: Automobile | C141: MRF | D141: 2024-08-29 | E141: 137058.45 | F141: 137736.90 | G141: 136153.40 | H141: 135248.35 | I141: 133664.85 | J141: 138641.95 | K141: 140225.45 | L141: 141130.50 | M141: 139320.4 | N141: 136831.85 | O141: 66400 | P141: 1.31%
A142: 132 | B142: Finance | C142: MUTHOOTFIN | D142: 2024-08-29 | E142: 1954.10 | F142: 1959.65 | G142: 1933.45 | H142: 1912.80 | I142: 1886.60 | J142: 1980.30 | K142: 2006.50 | L142: 2027.15 | M142: 1985.85 | N142: 1939 | O142: 4198150 | P142: -5.61%
A143: 133 | B143: Metals | C143: NATIONALUM | D143: 2024-08-29 | E143: 184.70 | F143: 184.80 | G143: 182.80 | H143: 180.91 | I143: 178.91 | J143: 186.69 | K143: 188.69 | L143: 190.58 | M143: 186.79 | N143: 182.9 | O143: 76533750 | P143: -1.10%
A144: 134 | B144: Technology | C144: NAUKRI | D144: 2024-08-29 | E144: 7623.95 | F144: 7579.93 | G144: 7512.82 | H144: 7401.68 | I144: 7334.57 | J144: 7691.07 | K144: 7758.18 | L144: 7869.32 | M144: 7647.05 | N144: 7468.8 | O144: 1843050 | P144: 4.94%
A145: 135 | B145: Chemicals | C145: NAVINFLUOR | D145: 2024-08-29 | E145: 3295.05 | F145: 3289.17 | G145: 3268.83 | H145: 3242.62 | I145: 3222.28 | J145: 3315.38 | K145: 3335.72 | L145: 3361.93 | M145: 3309.5 | N145: 3262.95 | O145: 2668750 | P145: -4.33%
A146: 136 | B146: FMCG | C146: NESTLEIND | D146: 2024-08-29 | E146: 2495.45 | F146: 2502.75 | G146: 2483.50 | H146: 2471.55 | I146: 2452.30 | J146: 2514.70 | K146: 2533.95 | L146: 2545.90 | M146: 2522 | N146: 2490.8 | O146: 6737200 | P146: 4.29%
A147: 137 | B147: Metals | C147: NMDC | D147: 2024-08-29 | E147: 226.78 | F147: 228.23 | G147: 224.95 | H147: 223.12 | I147: 219.84 | J147: 230.06 | K147: 233.34 | L147: 235.17 | M147: 231.51 | N147: 226.4 | O147: 99535500 | P147: 2.34%
A148: 138 | B148: Power | C148: NTPC | D148: 2024-08-29 | E148: 409.25 | F148: 410.55 | G148: 406.70 | H148: 404.15 | I148: 400.30 | J148: 413.10 | K148: 416.95 | L148: 419.50 | M148: 414.4 | N148: 408 | O148: 97309500 | P148: 4.68%
A149: 139 | B149: Realty | C149: OBEROIRLTY | D149: 2024-08-29 | E149: 1712.50 | F149: 1719.85 | G149: 1702.70 | H149: 1692.90 | I149: 1675.75 | J149: 1729.65 | K149: 1746.80 | L149: 1756.60 | M149: 1737 | N149: 1710.05 | O149: 8320900 | P149: -0.78%
A150: 140 | B150: Technology | C150: OFSS | D150: 2024-08-29 | E150: 11006.95 | F150: 11000.93 | G150: 10881.87 | H150: 10756.78 | I150: 10637.72 | J150: 11126.02 | K150: 11245.08 | L150: 11370.17 | M150: 11120 | N150: 10875.85 | O150: 1386300 | P150: 0.55%
A151: 141 | B151: Oil_Gas | C151: ONGC | D151: 2024-08-29 | E151: 327.70 | F151: 327.25 | G151: 324.60 | H151: 321.50 | I151: 318.85 | J151: 330.35 | K151: 333.00 | L151: 336.10 | M151: 329.9 | N151: 324.15 | O151: 125051850 | P151: -3.52%
A152: 142 | B152: Textile | C152: PAGEIND | D152: 2024-08-29 | E152: 41453.60 | F152: 41471.65 | G152: 41159.50 | H152: 40865.40 | I152: 40553.25 | J152: 41765.75 | K152: 42077.90 | L152: 42372.00 | M152: 41783.8 | N152: 41177.55 | O152: 191805 | P152: 0.37%
A153: 143 | B153: Pharma | C153: PEL | D153: 2024-08-29 | E153: 1066.60 | F153: 1071.58 | G153: 1057.02 | H153: 1047.43 | I153: 1032.87 | J153: 1081.17 | K153: 1095.73 | L153: 1105.32 | M153: 1086.15 | N153: 1062 | O153: 10018500 | P153: 0.72%
A154: 144 | B154: Technology | C154: PERSISTENT | D154: 2024-08-29 | E154: 4994.30 | F154: 4958.98 | G154: 4873.02 | H154: 4751.73 | I154: 4665.77 | J154: 5080.27 | K154: 5166.23 | L154: 5287.52 | M154: 5044.95 | N154: 4837.7 | O154: 2443400 | P154: 3.70%
A155: 145 | B155: Oil_Gas | C155: PETRONET | D155: 2024-08-29 | E155: 368.50 | F155: 369.18 | G155: 366.77 | H155: 365.03 | I155: 362.62 | J155: 370.92 | K155: 373.33 | L155: 375.07 | M155: 371.6 | N155: 367.45 | O155: 29241000 | P155: 1.71%
A156: 146 | B156: Finance | C156: PFC | D156: 2024-08-29 | E156: 538.95 | F156: 538.42 | G156: 531.98 | H156: 525.02 | I156: 518.58 | J156: 545.38 | K156: 551.82 | L156: 558.78 | M156: 544.85 | N156: 531.45 | O156: 56427800 | P156: 8.05%
A157: 147 | B157: FMCG | C157: PIDILITIND | D157: 2024-08-29 | E157: 3084.50 | F157: 3085.62 | G157: 3069.23 | H157: 3053.97 | I157: 3037.58 | J157: 3100.88 | K157: 3117.27 | L157: 3132.53 | M157: 3102 | N157: 3070.35 | O157: 2837250 | P157: -0.68%
A158: 148 | B158: Chemicals | C158: PIIND | D158: 2024-08-29 | E158: 4492.75 | F158: 4472.62 | G158: 4432.63 | H158: 4372.52 | I158: 4332.53 | J158: 4532.73 | K158: 4572.72 | L158: 4632.83 | M158: 4512.6 | N158: 4412.5 | O158: 1811250 | P158: -5.69%
A159: 149 | B159: Banking | C159: PNB | D159: 2024-08-29 | E159: 114.69 | F159: 115.15 | G159: 114.04 | H159: 113.40 | I159: 112.29 | J159: 115.79 | K159: 116.90 | L159: 117.54 | M159: 116.25 | N159: 114.5 | O159: 290304000 | P159: 3.40%
A160: 150 | B160: Capital_Goods | C160: POLYCAB | D160: 2024-08-29 | E160: 6771.25 | F160: 6764.35 | G160: 6714.50 | H160: 6657.75 | I160: 6607.90 | J160: 6821.10 | K160: 6870.95 | L160: 6927.70 | M160: 6814.2 | N160: 6707.6 | O160: 2808375 | P160: -3.54%
A161: 151 | B161: Power | C161: POWERGRID | D161: 2024-08-29 | E161: 334.40 | F161: 335.72 | G161: 332.68 | H161: 330.97 | I161: 327.93 | J161: 337.43 | K161: 340.47 | L161: 342.18 | M161: 338.75 | N161: 334 | O161: 81878400 | P161: 0.35%
A162: 152 | B162: Media | C162: PVRINOX | D162: 2024-08-29 | E162: 1520.80 | F162: 1530.37 | G162: 1507.48 | H162: 1494.17 | I162: 1471.28 | J162: 1543.68 | K162: 1566.57 | L162: 1579.88 | M162: 1553.25 | N162: 1517.05 | O162: 4376471 | P162: -7.23%
A163: 153 | B163: Cement | C163: RAMCOCEM | D163: 2024-08-29 | E163: 822.40 | F163: 825.85 | G163: 817.60 | H163: 812.80 | I163: 804.55 | J163: 830.65 | K163: 838.90 | L163: 843.70 | M163: 834.1 | N163: 821.05 | O163: 12897900 | P163: -5.68%
A164: 154 | B164: Banking | C164: RBLBANK | D164: 2024-08-29 | E164: 227.93 | F164: 228.99 | G164: 224.72 | H164: 221.50 | I164: 217.23 | J164: 232.21 | K164: 236.48 | L164: 239.70 | M164: 233.27 | N164: 225.78 | O164: 71920000 | P164: 3.14%
A165: 155 | B165: Finance | C165: RECLTD | D165: 2024-08-29 | E165: 618.50 | F165: 618.87 | G165: 612.73 | H165: 606.97 | I165: 600.83 | J165: 624.63 | K165: 630.77 | L165: 636.53 | M165: 625 | N165: 613.1 | O165: 52614000 | P165: -0.36%
A166: 156 | B166: Oil_Gas | C166: RELIANCE | D166: 2024-08-29 | E166: 3000.10 | F166: 3002.00 | G166: 2986.65 | H166: 2973.20 | I166: 2957.85 | J166: 3015.45 | K166: 3030.80 | L166: 3044.25 | M166: 3017.35 | N166: 2988.55 | O166: 47569000 | P166: 1.67%
A167: 157 | B167: Metals | C167: SAIL | D167: 2024-08-29 | E167: 134.19 | F167: 134.69 | G167: 133.00 | H167: 131.82 | I167: 130.13 | J167: 135.87 | K167: 137.56 | L167: 138.74 | M167: 136.37 | N167: 133.5 | O167: 145704000 | P167: -0.19%
A168: 158 | B168: Finance | C168: SBICARD | D168: 2024-08-29 | E168: 733.35 | F168: 735.90 | G168: 726.55 | H168: 719.75 | I168: 710.40 | J168: 742.70 | K168: 752.05 | L168: 758.85 | M168: 745.25 | N168: 729.1 | O168: 22680800 | P168: -0.32%
A169: 159 | B169: Finance | C169: SBILIFE | D169: 2024-08-29 | E169: 1837.70 | F169: 1836.37 | G169: 1824.28 | H169: 1810.87 | I169: 1798.78 | J169: 1849.78 | K169: 1861.87 | L169: 1875.28 | M169: 1848.45 | N169: 1822.95 | O169: 7294500 | P169: -1.12%
A170: 160 | B170: Banking | C170: SBIN | D170: 2024-08-29 | E170: 809.25 | F170: 811.33 | G170: 804.92 | H170: 800.58 | I170: 794.17 | J170: 815.67 | K170: 822.08 | L170: 826.42 | M170: 817.75 | N170: 807 | O170: 107187000 | P170: 6.02%
A171: 161 | B171: Cement | C171: SHREECEM | D171: 2024-08-29 | E171: 24693.35 | F171: 24746.10 | G171: 24573.50 | H171: 24453.65 | I171: 24281.05 | J171: 24865.95 | K171: 25038.55 | L171: 25158.40 | M171: 24918.7 | N171: 24626.25 | O171: 318275 | P171: 1.66%
A172: 162 | B172: Capital_Goods | C172: SIEMENS | D172: 2024-08-29 | E172: 6968.10 | F172: 6989.52 | G172: 6934.08 | H172: 6900.07 | I172: 6844.63 | J172: 7023.53 | K172: 7078.97 | L172: 7112.98 | M172: 7044.95 | N172: 6955.5 | O172: 2255400 | P172: 0.80%
A173: 163 | B173: Textile | C173: SRF | D173: 2024-08-29 | E173: 2539.15 | F173: 2540.07 | G173: 2516.98 | H173: 2494.82 | I173: 2471.73 | J173: 2562.23 | K173: 2585.32 | L173: 2607.48 | M173: 2563.15 | N173: 2517.9 | O173: 5707125 | P173: -4.30%
A174: 164 | B174: Finance | C174: SHRIRAMFIN | D174: 2024-08-29 | E174: 3203.65 | F174: 3209.87 | G174: 3181.78 | H174: 3159.92 | I174: 3131.83 | J174: 3231.73 | K174: 3259.82 | L174: 3281.68 | M174: 3237.95 | N174: 3188 | O174: 6160500 | P174: -2.07%
A175: 165 | B175: Pharma | C175: SUNPHARMA | D175: 2024-08-29 | E175: 1809.70 | F175: 1803.10 | G175: 1788.45 | H175: 1767.20 | I175: 1752.55 | J175: 1824.35 | K175: 1839.00 | L175: 1860.25 | M175: 1817.75 | N175: 1781.85 | O175: 18993100 | P175: 6.25%
A176: 166 | B176: Media | C176: SUNTV | D176: 2024-08-29 | E176: 817.95 | F176: 819.10 | G176: 807.85 | H176: 797.75 | I176: 786.50 | J176: 829.20 | K176: 840.45 | L176: 850.55 | M176: 830.35 | N176: 809 | O176: 8158500 | P176: 2.16%
A177: 167 | B177: Pharma | C177: SYNGENE | D177: 2024-08-29 | E177: 843.30 | F177: 839.37 | G177: 831.83 | H177: 820.37 | I177: 812.83 | J177: 850.83 | K177: 858.37 | L177: 869.83 | M177: 846.9 | N177: 827.9 | O177: 5666000 | P177: -2.83%
A178: 168 | B178: Chemicals | C178: TATACHEM | D178: 2024-08-29 | E178: 1075.05 | F178: 1083.85 | G178: 1061.70 | H178: 1048.35 | I178: 1026.20 | J178: 1097.20 | K178: 1119.35 | L178: 1132.70 | M178: 1106 | N178: 1070.5 | O178: 9520500 | P178: 3.96%
A179: 169 | B179: Telecom | C179: TATACOMM | D179: 2024-08-29 | E179: 1930.40 | F179: 1942.87 | G179: 1914.53 | H179: 1898.67 | I179: 1870.33 | J179: 1958.73 | K179: 1987.07 | L179: 2002.93 | M179: 1971.2 | N179: 1927 | O179: 6149500 | P179: -0.83%
A180: 170 | B180: FMCG | C180: TATACONSUM | D180: 2024-08-29 | E180: 1203.45 | F180: 1206.55 | G180: 1193.00 | H180: 1182.55 | I180: 1169.00 | J180: 1217.00 | K180: 1230.55 | L180: 1241.00 | M180: 1220.1 | N180: 1196.1 | O180: 12261384 | P180: 2.03%
A181: 171 | B181: Automobile | C181: TATAMOTORS | D181: 2024-08-29 | E181: 1072.30 | F181: 1071.78 | G181: 1060.37 | H181: 1048.43 | I181: 1037.02 | J181: 1083.72 | K181: 1095.13 | L181: 1107.07 | M181: 1083.2 | N181: 1059.85 | O181: 84698350 | P181: 1.29%
A182: 172 | B182: Power | C182: TATAPOWER | D182: 2024-08-29 | E182: 431.05 | F182: 431.23 | G182: 428.52 | H182: 425.98 | I182: 423.27 | J182: 433.77 | K182: 436.48 | L182: 439.02 | M182: 433.95 | N182: 428.7 | O182: 91050750 | P182: -1.91%
A183: 173 | B183: Metals | C183: TATASTEEL | D183: 2024-08-29 | E183: 153.89 | F183: 154.05 | G183: 152.95 | H183: 152.01 | I183: 150.91 | J183: 154.99 | K183: 156.09 | L183: 157.03 | M183: 155.15 | N183: 153.11 | O183: 283365500 | P183: 1.07%
A184: 174 | B184: Technology | C184: TCS | D184: 2024-08-29 | E184: 4506.45 | F184: 4509.58 | G184: 4457.27 | H184: 4408.08 | I184: 4355.77 | J184: 4558.77 | K184: 4611.08 | L184: 4660.27 | M184: 4561.9 | N184: 4460.4 | O184: 14644175 | P184: 2.90%
A185: 175 | B185: Technology | C185: TECHM | D185: 2024-08-29 | E185: 1629.50 | F185: 1635.42 | G185: 1607.73 | H185: 1585.97 | I185: 1558.28 | J185: 1657.18 | K185: 1684.87 | L185: 1706.63 | M185: 1663.1 | N185: 1613.65 | O185: 12240600 | P185: -0.55%
A186: 176 | B186: FMCG | C186: TITAN | D186: 2024-08-29 | E186: 3530.35 | F186: 3541.75 | G186: 3512.10 | H186: 3493.85 | I186: 3464.20 | J186: 3560.00 | K186: 3589.65 | L186: 3607.90 | M186: 3571.4 | N186: 3523.5 | O186: 9355325 | P186: -2.76%
A187: 177 | B187: Pharma | C187: TORNTPHARM | D187: 2024-08-29 | E187: 3430.35 | F187: 3418.77 | G187: 3376.18 | H187: 3322.02 | I187: 3279.43 | J187: 3472.93 | K187: 3515.52 | L187: 3569.68 | M187: 3461.35 | N187: 3364.6 | O187: 2314750 | P187: 4.32%
A188: 178 | B188: Textile | C188: TRENT | D188: 2024-08-29 | E188: 7238.55 | F188: 7143.97 | G188: 6984.58 | H188: 6730.62 | I188: 6571.23 | J188: 7397.93 | K188: 7557.32 | L188: 7811.28 | M188: 7303.35 | N188: 6890 | O188: 3534600 | P188: 7.47%
A189: 179 | B189: Automobile | C189: TVSMOTOR | D189: 2024-08-29 | E189: 2736.95 | F189: 2738.63 | G189: 2717.27 | H189: 2697.58 | I189: 2676.22 | J189: 2758.32 | K189: 2779.68 | L189: 2799.37 | M189: 2760 | N189: 2718.95 | O189: 6648950 | P189: 3.94%
A190: 180 | B190: FMCG | C190: UBL | D190: 2024-08-29 | E190: 2035.50 | F190: 2036.67 | G190: 2029.98 | H190: 2024.47 | I190: 2017.78 | J190: 2042.18 | K190: 2048.87 | L190: 2054.38 | M190: 2043.35 | N190: 2031.15 | O190: 2324800 | P190: -1.82%
A191: 181 | B191: Cement | C191: ULTRACEMCO | D191: 2024-08-29 | E191: 11238.20 | F191: 11261.70 | G191: 11194.50 | H191: 11150.80 | I191: 11083.60 | J191: 11305.40 | K191: 11372.60 | L191: 11416.30 | M191: 11328.9 | N191: 11218 | O191: 2398100 | P191: 1.16%
A192: 182 | B192: Chemicals | C192: UPL | D192: 2024-08-29 | E192: 577.50 | F192: 579.32 | G192: 573.68 | H192: 569.87 | I192: 564.23 | J192: 583.13 | K192: 588.77 | L192: 592.58 | M192: 584.95 | N192: 575.5 | O192: 39453700 | P192: -4.61%
A193: 183 | B193: Metals | C193: VEDL | D193: 2024-08-29 | E193: 466.35 | F193: 466.53 | G193: 463.57 | H193: 460.78 | I193: 457.82 | J193: 469.32 | K193: 472.28 | L193: 475.07 | M193: 469.5 | N193: 463.75 | O193: 153336400 | P193: -2.26%
A194: 184 | B194: Capital_Goods | C194: VOLTAS | D194: 2024-08-29 | E194: 1762.80 | F194: 1750.78 | G194: 1735.07 | H194: 1707.33 | I194: 1691.62 | J194: 1778.52 | K194: 1794.23 | L194: 1821.97 | M194: 1766.5 | N194: 1723.05 | O194: 10311000 | P194: 2.55%
A195: 185 | B195: Technology | C195: WIPRO | D195: 2024-08-29 | E195: 535.85 | F195: 530.93 | G195: 523.32 | H195: 510.78 | I195: 503.17 | J195: 543.47 | K195: 551.08 | L195: 563.62 | M195: 538.55 | N195: 518.4 | O195: 61477500 | P195: 7.39%
A196: 186 | B196: Pharma | C196: ZYDUSLIFE | D196: 2024-08-29 | E196: 1136.35 | F196: 1137.92 | G196: 1123.63 | H196: 1110.92 | I196: 1096.63 | J196: 1150.63 | K196: 1164.92 | L196: 1177.63 | M196: 1152.2 | N196: 1125.2 | O196: 20124900 | P196: -5.01%
A210: Pivot Point: This is trigger point for intra day buy/sell based on the price range of the previous day
A211: As per the tool,the trader should take BUY position just above Pivot and keep the stop loss of pivot point and the first target would be Resistance 1(R1)
A212: If R1 is crossed then R2 becomes the next target with stop loss of at R1
A213: Similarly if price goes below pivot point then the trader should sell and keep a stop loss of pivot point and the first target would be S1
A214: If S1 is crossed then S2 becomes the next target with stop loss of at S1
A216: Disclaimer:
A217: This document has been prepared by the Retail Research Desk of Asit C Mehta
A218: Investment Intermediates Ltd. and is meant for use of the recipient only
A219: and is not for circulation. This document is not to be reported or
A220: copied or made available to others. It should not be considered to be
... 5 more rows

Sheet Cash Intra
M5: Back to Main Page
A6: FOR INTRA DAY TRADING | K6: =Main!B10 -> 2024-08-29
A8: Sr.no | C8: CLOSE RATE | D8: Pivot Point | E8: Supports | H8: Resistances
E9: S1 | F9: S2 | G9: S3 | H9: R1 | I9: R2 | J9: R3 | K9: HIGH | L9: LOW | M9: Total Trade Quanity in Lakhs
A10: 1 | B10: Nifty 50 | C10: 25052.35 | D10: 25048.87 | E10: 24968.13 | F10: 24883.92 | G10: 24803.18 | H10: 25133.08 | I10: 25213.82 | J10: 25298.03 | K10: 25129.60 | L10: 24964.65
A11: 2 | B11: Nifty Bank | C11: 51143.85 | D11: 51146.10 | E11: 51031.45 | F11: 50919.05 | G11: 50804.40 | H11: 51258.50 | I11: 51373.15 | J11: 51485.55 | K11: 51260.75 | L11: 51033.70
A12: 3 | B12: Nifty CPSE | C12: 7360.65 | D12: 7372.42 | E12: 7332.18 | F12: 7303.72 | G12: 7263.48 | H12: 7400.88 | I12: 7441.12 | J12: 7469.58 | K12: 7412.65 | L12: 7343.95
A13: 4 | B13: Nifty Infra | C13: 9344.30 | D13: 9348.05 | E13: 9321.60 | F13: 9298.90 | G13: 9272.45 | H13: 9370.75 | I13: 9397.20 | J13: 9419.90 | K13: 9374.50 | L13: 9325.35
A14: 5 | B14: Nifty IT | C14: 42394.40 | D14: 42235.48 | E14: 41753.82 | F14: 41113.23 | G14: 40631.57 | H14: 42876.07 | I14: 43357.73 | J14: 43998.32 | K14: 42717.15 | L14: 41594.90
A15: 6 | B15: Nifty PSE | C15: 11400.75 | D15: 11422.50 | E15: 11364.65 | F15: 11328.55 | G15: 11270.70 | H15: 11458.60 | I15: 11516.45 | J15: 11552.55 | K15: 11480.35 | L15: 11386.40
A16: 7 | B16: Nifty Midcap 50 | C16: 16586.20 | D16: 16586.08 | E16: 16516.62 | F16: 16447.03 | G16: 16377.57 | H16: 16655.67 | I16: 16725.13 | J16: 16794.72 | K16: 16655.55 | L16: 16516.50
A17: 8 | B17: ABB | C17: 7938.4 | D17: 7913.13 | E17: 7870.32 | F17: 7802.23 | G17: 7759.42 | H17: 7981.22 | I17: 8024.03 | J17: 8092.12 | K17: 7955.95 | L17: 7845.05 | M17: 1.53307
A18: 9 | B18: ACC | C18: 2330.35 | D18: 2338.12 | E18: 2318.23 | F18: 2306.12 | G18: 2286.23 | H18: 2350.23 | I18: 2370.12 | J18: 2382.23 | K18: 2358 | L18: 2326 | M18: 1.42265
A19: 10 | B19: APLAPOLLO | C19: 1475.6 | D19: 1462.33 | E19: 1443.57 | F19: 1411.53 | G19: 1392.77 | H19: 1494.37 | I19: 1513.13 | J19: 1545.17 | K19: 1481.1 | L19: 1430.3 | M19: 7.91
A20: 11 | B20: AUBANK | C20: 632.55 | D20: 631.72 | E20: 626.68 | F20: 620.82 | G20: 615.78 | H20: 637.58 | I20: 642.62 | J20: 648.48 | K20: 636.75 | L20: 625.85 | M20: 19.75857
A21: 12 | B21: ADANIENSOL | C21: 1027.15 | D21: 1033.52 | E21: 1016.13 | F21: 1005.12 | G21: 987.73 | H21: 1044.53 | I21: 1061.92 | J21: 1072.93 | K21: 1050.9 | L21: 1022.5 | M21: 18.83409
A22: 13 | B22: ADANIENT | C22: 3028 | D22: 3042.70 | E22: 3007.40 | F22: 2986.80 | G22: 2951.50 | H22: 3063.30 | I22: 3098.60 | J22: 3119.20 | K22: 3078 | L22: 3022.1 | M22: 15.69652
A23: 14 | B23: ADANIGREEN | C23: 1861.1 | D23: 1866.97 | E23: 1841.38 | F23: 1821.67 | G23: 1796.08 | H23: 1886.68 | I23: 1912.27 | J23: 1931.98 | K23: 1892.55 | L23: 1847.25 | M23: 4.34976
A24: 15 | B24: ADANIPORTS | C24: 1469.8 | D24: 1474.40 | E24: 1462.40 | F24: 1455.00 | G24: 1443.00 | H24: 1481.80 | I24: 1493.80 | J24: 1501.20 | K24: 1486.4 | L24: 1467 | M24: 12.25101
A25: 16 | B25: ADANIPOWER | C25: 641.55 | D25: 646.18 | E25: 633.52 | F25: 625.48 | G25: 612.82 | H25: 654.22 | I25: 666.88 | J25: 674.92 | K25: 658.85 | L25: 638.15 | M25: 35.7391
A26: 17 | B26: ATGL | C26: 848.8 | D26: 849.30 | E26: 839.60 | F26: 830.40 | G26: 820.70 | H26: 858.50 | I26: 868.20 | J26: 877.40 | K26: 859 | L26: 840.1 | M26: 30.36506
A27: 18 | B27: AWL | C27: 367.15 | D27: 370.33 | E27: 362.82 | F27: 358.48 | G27: 350.97 | H27: 374.67 | I27: 382.18 | J27: 386.52 | K27: 377.85 | L27: 366 | M27: 34.03542
A28: 19 | B28: ABCAPITAL | C28: 221.99 | D28: 222.57 | E28: 220.43 | F28: 218.88 | G28: 216.74 | H28: 224.12 | I28: 226.26 | J28: 227.81 | K28: 224.7 | L28: 221.01 | M28: 49.76732
A29: 20 | B29: ABFRL | C29: 314.85 | D29: 316.77 | E29: 310.13 | F29: 305.42 | G29: 298.78 | H29: 321.48 | I29: 328.12 | J29: 332.83 | K29: 323.4 | L29: 312.05 | M29: 158.83263
A30: 21 | B30: ALKEM | C30: 5997.4 | D30: 5956.27 | E30: 5891.43 | F30: 5785.47 | G30: 5720.63 | H30: 6062.23 | I30: 6127.07 | J30: 6233.03 | K30: 6021.1 | L30: 5850.3 | M30: 3.84104
A31: 22 | B31: AMBUJACEM | C31: 616.4 | D31: 619.58 | E31: 611.92 | F31: 607.43 | G31: 599.77 | H31: 624.07 | I31: 631.73 | J31: 636.22 | K31: 627.25 | L31: 615.1 | M31: 25.70418
A32: 23 | B32: APOLLOHOSP | C32: 6776.45 | D32: 6790.50 | E32: 6732.50 | F32: 6688.55 | G32: 6630.55 | H32: 6834.45 | I32: 6892.45 | J32: 6936.40 | K32: 6848.5 | L32: 6746.55 | M32: 2.50361
A33: 24 | B33: APOLLOTYRE | C33: 497.5 | D33: 499.97 | E33: 493.53 | F33: 489.57 | G33: 483.13 | H33: 503.93 | I33: 510.37 | J33: 514.33 | K33: 506.4 | L33: 496 | M33: 10.2279
A34: 25 | B34: ASHOKLEY | C34: 260.45 | D34: 261.27 | E34: 259.18 | F34: 257.92 | G34: 255.83 | H34: 262.53 | I34: 264.62 | J34: 265.88 | K34: 263.35 | L34: 260 | M34: 43.97583
A35: 26 | B35: ASIANPAINT | C35: 3125.5 | D35: 3136.60 | E35: 3107.70 | F35: 3089.90 | G35: 3061.00 | H35: 3154.40 | I35: 3183.30 | J35: 3201.10 | K35: 3165.5 | L35: 3118.8 | M35: 5.38366
A36: 27 | B36: ASTRAL | C36: 1958.1 | D36: 1961.97 | E36: 1942.18 | F36: 1926.27 | G36: 1906.48 | H36: 1977.88 | I36: 1997.67 | J36: 2013.58 | K36: 1981.75 | L36: 1946.05 | M36: 7.0879
A37: 28 | B37: AUROPHARMA | C37: 1564.2 | D37: 1562.50 | E37: 1546.65 | F37: 1529.10 | G37: 1513.25 | H37: 1580.05 | I37: 1595.90 | J37: 1613.45 | K37: 1578.35 | L37: 1544.95 | M37: 9.99085
A38: 29 | B38: DMART | C38: 4964.85 | D38: 4955.12 | E38: 4914.73 | F38: 4864.62 | G38: 4824.23 | H38: 5005.23 | I38: 5045.62 | J38: 5095.73 | K38: 4995.5 | L38: 4905 | M38: 5.04521
A39: 30 | B39: AXISBANK | C39: 1170.95 | D39: 1174.00 | E39: 1166.30 | F39: 1161.65 | G39: 1153.95 | H39: 1178.65 | I39: 1186.35 | J39: 1191.00 | K39: 1181.7 | L39: 1169.35 | M39: 54.83503
A40: 31 | B40: BAJAJ-AUTO | C40: 10656.75 | D40: 10611.02 | E40: 10507.03 | F40: 10357.32 | G40: 10253.33 | H40: 10760.73 | I40: 10864.72 | J40: 11014.43 | K40: 10715 | L40: 10461.3 | M40: 3.38792
A41: 32 | B41: BAJFINANCE | C41: 6900 | D41: 6889.67 | E41: 6862.33 | F41: 6824.67 | G41: 6797.33 | H41: 6927.33 | I41: 6954.67 | J41: 6992.33 | K41: 6917 | L41: 6852 | M41: 8.48986
A42: 33 | B42: BAJAJFINSV | C42: 1713.5 | D42: 1716.18 | E42: 1697.37 | F42: 1681.23 | G42: 1662.42 | H42: 1732.32 | I42: 1751.13 | J42: 1767.27 | K42: 1735 | L42: 1700.05 | M42: 14.44329
A43: 34 | B43: BAJAJHLDNG | C43: 9972.45 | D43: 10082.18 | E43: 9755.37 | F43: 9538.28 | G43: 9211.47 | H43: 10299.27 | I43: 10626.08 | J43: 10843.17 | K43: 10409 | L43: 9865.1 | M43: 1.89405
A44: 35 | B44: BALKRISIND | C44: 2820.45 | D44: 2821.15 | E44: 2805.35 | F44: 2790.25 | G44: 2774.45 | H44: 2836.25 | I44: 2852.05 | J44: 2867.15 | K44: 2836.95 | L44: 2806.05 | M44: 3.71026
A45: 36 | B45: BANDHANBNK | C45: 196.66 | D45: 198.54 | E45: 194.24 | F45: 191.82 | G45: 187.52 | H45: 200.96 | I45: 205.26 | J45: 207.68 | K45: 202.84 | L45: 196.12 | M45: 128.62179
A46: 37 | B46: BANKBARODA | C46: 249.85 | D46: 249.85 | E46: 248.05 | F46: 246.25 | G46: 244.45 | H46: 251.65 | I46: 253.45 | J46: 255.25 | K46: 251.65 | L46: 248.05 | M46: 165.68081
A47: 38 | B47: BANKINDIA | C47: 117.93 | D47: 118.31 | E47: 117.42 | F47: 116.91 | G47: 116.02 | H47: 118.82 | I47: 119.71 | J47: 120.22 | K47: 119.2 | L47: 117.8 | M47: 20.33737
A48: 39 | B48: BATAINDIA | C48: 1449.85 | D48: 1452.93 | E48: 1436.92 | F48: 1423.98 | G48: 1407.97 | H48: 1465.87 | I48: 1481.88 | J48: 1494.82 | K48: 1468.95 | L48: 1440 | M48: 2.57139
A49: 40 | B49: BERGEPAINT | C49: 573.85 | D49: 576.35 | E49: 569.00 | F49: 564.15 | G49: 556.80 | H49: 581.20 | I49: 588.55 | J49: 593.40 | K49: 583.7 | L49: 571.5 | M49: 6.55824
A50: 41 | B50: BDL | C50: 1323.25 | D50: 1321.05 | E50: 1312.65 | F50: 1302.05 | G50: 1293.65 | H50: 1331.65 | I50: 1340.05 | J50: 1350.65 | K50: 1329.45 | L50: 1310.45 | M50: 7.11054
A51: 42 | B51: BEL | C51: 299.95 | D51: 301.32 | E51: 298.13 | F51: 296.32 | G51: 293.13 | H51: 303.13 | I51: 306.32 | J51: 308.13 | K51: 304.5 | L51: 299.5 | M51: 140.05947
A52: 43 | B52: BHARATFORG | C52: 1584.5 | D52: 1594.58 | E52: 1569.17 | F52: 1553.83 | G52: 1528.42 | H52: 1609.92 | I52: 1635.33 | J52: 1650.67 | K52: 1620 | L52: 1579.25 | M52: 9.27975
A53: 44 | B53: BHEL | C53: 294.6 | D53: 295.77 | E53: 292.78 | F53: 290.97 | G53: 287.98 | H53: 297.58 | I53: 300.57 | J53: 302.38 | K53: 298.75 | L53: 293.95 | M53: 65.79323
A54: 45 | B54: BPCL | C54: 348.15 | D54: 350.18 | E54: 344.62 | F54: 341.08 | G54: 335.52 | H54: 353.72 | I54: 359.28 | J54: 362.82 | K54: 355.75 | L54: 346.65 | M54: 72.95981
A55: 46 | B55: BHARTIARTL | C55: 1556.35 | D55: 1547.50 | E55: 1530.50 | F55: 1504.65 | G55: 1487.65 | H55: 1573.35 | I55: 1590.35 | J55: 1616.20 | K55: 1564.5 | L55: 1521.65 | M55: 62.25319
A56: 47 | B56: BIOCON | C56: 356.7 | D56: 358.07 | E56: 352.38 | F56: 348.07 | G56: 342.38 | H56: 362.38 | I56: 368.07 | J56: 372.38 | K56: 363.75 | L56: 353.75 | M56: 66.3672
A57: 48 | B57: BOSCHLTD | C57: 31940.15 | D57: 32091.63 | E57: 31663.32 | F57: 31386.48 | G57: 30958.17 | H57: 32368.47 | I57: 32796.78 | J57: 33073.62 | K57: 32519.95 | L57: 31814.8 | M57: 0.26366
A58: 49 | B58: BRITANNIA | C58: 5703.35 | D58: 5722.93 | E58: 5670.47 | F58: 5637.58 | G58: 5585.12 | H58: 5755.82 | I58: 5808.28 | J58: 5841.17 | K58: 5775.4 | L58: 5690.05 | M58: 1.61445
A59: 50 | B59: CGPOWER | C59: 711.8 | D59: 716.58 | E59: 702.32 | F59: 692.83 | G59: 678.57 | H59: 726.07 | I59: 740.33 | J59: 749.82 | K59: 730.85 | L59: 707.1 | M59: 15.468
A60: 51 | B60: CANBK | C60: 110.23 | D60: 110.42 | E60: 109.63 | F60: 109.04 | G60: 108.25 | H60: 111.01 | I60: 111.80 | J60: 112.39 | K60: 111.2 | L60: 109.82 | M60: 116.86742
A61: 52 | B61: CHOLAFIN | C61: 1450.7 | D61: 1447.53 | E61: 1436.17 | F61: 1421.63 | G61: 1410.27 | H61: 1462.07 | I61: 1473.43 | J61: 1487.97 | K61: 1458.9 | L61: 1433 | M61: 10.14841
A62: 53 | B62: CIPLA | C62: 1618.2 | D62: 1614.47 | E62: 1598.93 | F62: 1579.67 | G62: 1564.13 | H62: 1633.73 | I62: 1649.27 | J62: 1668.53 | K62: 1630 | L62: 1595.2 | M62: 14.33847
A63: 54 | B63: COALINDIA | C63: 526.35 | D63: 529.12 | E63: 522.68 | F63: 519.02 | G63: 512.58 | H63: 532.78 | I63: 539.22 | J63: 542.88 | K63: 535.55 | L63: 525.45 | M63: 60.66259
A64: 55 | B64: COFORGE | C64: 6255.45 | D64: 6227.12 | E64: 6109.23 | F64: 5963.02 | G64: 5845.13 | H64: 6373.33 | I64: 6491.22 | J64: 6637.43 | K64: 6345 | L64: 6080.9 | M64: 6.95937
A65: 56 | B65: COLPAL | C65: 3594.6 | D65: 3574.50 | E65: 3543.10 | F65: 3491.60 | G65: 3460.20 | H65: 3626.00 | I65: 3657.40 | J65: 3708.90 | K65: 3605.9 | L65: 3523 | M65: 2.00695
A66: 57 | B66: CONCOR | C66: 971.95 | D66: 976.45 | E66: 966.00 | F66: 960.05 | G66: 949.60 | H66: 982.40 | I66: 992.85 | J66: 998.80 | K66: 986.9 | L66: 970.5 | M66: 13.54925
A67: 58 | B67: COROMANDEL | C67: 1735.95 | D67: 1738.90 | E67: 1723.05 | F67: 1710.15 | G67: 1694.30 | H67: 1751.80 | I67: 1767.65 | J67: 1780.55 | K67: 1754.75 | L67: 1726 | M67: 2.89715
A68: 59 | B68: CROMPTON | C68: 462.8 | D68: 463.83 | E68: 456.07 | F68: 449.33 | G68: 441.57 | H68: 470.57 | I68: 478.33 | J68: 485.07 | K68: 471.6 | L68: 457.1 | M68: 22.00386
A69: 60 | B69: CUMMINSIND | C69: 3737.05 | D69: 3748.42 | E69: 3711.83 | F69: 3686.62 | G69: 3650.03 | H69: 3773.63 | I69: 3810.22 | J69: 3835.43 | K69: 3785 | L69: 3723.2 | M69: 6.69653
A70: 61 | B70: DLF | C70: 837.1 | D70: 840.20 | E70: 830.90 | F70: 824.70 | G70: 815.40 | H70: 846.40 | I70: 855.70 | J70: 861.90 | K70: 849.5 | L70: 834 | M70: 21.35655
A71: 62 | B71: DABUR | C71: 644.4 | D71: 643.97 | E71: 638.43 | F71: 632.47 | G71: 626.93 | H71: 649.93 | I71: 655.47 | J71: 661.43 | K71: 649.5 | L71: 638 | M71: 11.49783
A72: 63 | B72: DALBHARAT | C72: 1824.3 | D72: 1824.18 | E72: 1810.52 | F72: 1796.73 | G72: 1783.07 | H72: 1837.97 | I72: 1851.63 | J72: 1865.42 | K72: 1837.85 | L72: 1810.4 | M72: 4.87809
A73: 64 | B73: DEEPAKNTR | C73: 2886.55 | D73: 2877.03 | E73: 2844.52 | F73: 2802.48 | G73: 2769.97 | H73: 2919.07 | I73: 2951.58 | J73: 2993.62 | K73: 2909.55 | L73: 2835 | M73: 3.89112
A74: 65 | B74: DELHIVERY | C74: 421.05 | D74: 423.68 | E74: 417.37 | F74: 413.68 | G74: 407.37 | H74: 427.37 | I74: 433.68 | J74: 437.37 | K74: 430 | L74: 420 | M74: 9.73965
A75: 66 | B75: DEVYANI | C75: 178.81 | D75: 180.09 | E75: 176.89 | F75: 174.96 | G75: 171.76 | H75: 182.02 | I75: 185.22 | J75: 187.15 | K75: 183.3 | L75: 178.17 | M75: 29.68757
A76: 67 | B76: DIVISLAB | C76: 5030.7 | D76: 4995.22 | E76: 4894.43 | F76: 4758.17 | G76: 4657.38 | H76: 5131.48 | I76: 5232.27 | J76: 5368.53 | K76: 5096 | L76: 4858.95 | M76: 9.6399
A77: 68 | B77: DIXON | C77: 13247.8 | D77: 13273.60 | E77: 13132.20 | F77: 13016.60 | G77: 12875.20 | H77: 13389.20 | I77: 13530.60 | J77: 13646.20 | K77: 13415 | L77: 13158 | M77: 3.63452
A78: 69 | B78: LALPATHLAB | C78: 3362.7 | D78: 3362.08 | E78: 3327.32 | F78: 3291.93 | G78: 3257.17 | H78: 3397.47 | I78: 3432.23 | J78: 3467.62 | K78: 3396.85 | L78: 3326.7 | M78: 1.62145
A79: 70 | B79: DRREDDY | C79: 6999.3 | D79: 6990.18 | E79: 6932.12 | F79: 6864.93 | G79: 6806.87 | H79: 7057.37 | I79: 7115.43 | J79: 7182.62 | K79: 7048.25 | L79: 6923 | M79: 3.26517
A80: 71 | B80: EICHERMOT | C80: 4946.85 | D80: 4920.87 | E80: 4865.98 | F80: 4785.12 | G80: 4730.23 | H80: 5001.73 | I80: 5056.62 | J80: 5137.48 | K80: 4975.75 | L80: 4840 | M80: 4.24484
A81: 72 | B81: ESCORTS | C81: 3854.75 | D81: 3864.85 | E81: 3820.75 | F81: 3786.75 | G81: 3742.65 | H81: 3898.85 | I81: 3942.95 | J81: 3976.95 | K81: 3908.95 | L81: 3830.85 | M81: 0.8591
A82: 73 | B82: NYKAA | C82: 217.15 | D82: 219.74 | E82: 212.78 | F82: 208.41 | G82: 201.45 | H82: 224.11 | I82: 231.07 | J82: 235.44 | K82: 226.7 | L82: 215.37 | M82: 175.09247
A83: 74 | B83: FEDERALBNK | C83: 195.56 | D83: 195.66 | E83: 193.83 | F83: 192.10 | G83: 190.27 | H83: 197.39 | I83: 199.22 | J83: 200.95 | K83: 197.49 | L83: 193.93 | M83: 105.80774
A84: 75 | B84: FACT | C84: 979.3 | D84: 982.40 | E84: 973.00 | F84: 966.70 | G84: 957.30 | H84: 988.70 | I84: 998.10 | J84: 1004.40 | K84: 991.8 | L84: 976.1 | M84: 2.66522
A85: 76 | B85: FORTIS | C85: 546.3 | D85: 546.93 | E85: 535.87 | F85: 525.43 | G85: 514.37 | H85: 557.37 | I85: 568.43 | J85: 578.87 | K85: 558 | L85: 536.5 | M85: 18.92589
A86: 77 | B86: GAIL | C86: 235.47 | D86: 235.88 | E86: 233.75 | F86: 232.04 | G86: 229.91 | H86: 237.59 | I86: 239.72 | J86: 241.43 | K86: 238 | L86: 234.16 | M86: 117.4587
A87: 78 | B87: GLAND | C87: 1859.4 | D87: 1866.82 | E87: 1843.63 | F87: 1827.87 | G87: 1804.68 | H87: 1882.58 | I87: 1905.77 | J87: 1921.53 | K87: 1890 | L87: 1851.05 | M87: 4.15617
A88: 79 | B88: GODREJCP | C88: 1477.5 | D88: 1475.87 | E88: 1451.78 | F88: 1426.07 | G88: 1401.98 | H88: 1501.58 | I88: 1525.67 | J88: 1551.38 | K88: 1499.95 | L88: 1450.15 | M88: 5.78675
A89: 80 | B89: GODREJPROP | C89: 2887.7 | D89: 2889.33 | E89: 2873.72 | F89: 2859.73 | G89: 2844.12 | H89: 2903.32 | I89: 2918.93 | J89: 2932.92 | K89: 2904.95 | L89: 2875.35 | M89: 2.22426
A90: 81 | B90: GRASIM | C90: 2715.55 | D90: 2707.03 | E90: 2691.52 | F90: 2667.48 | G90: 2651.97 | H90: 2731.07 | I90: 2746.58 | J90: 2770.62 | K90: 2722.55 | L90: 2683 | M90: 9.81745
A91: 82 | B91: FLUOROCHEM | C91: 3275.35 | D91: 3279.27 | E91: 3246.08 | F91: 3216.82 | G91: 3183.63 | H91: 3308.53 | I91: 3341.72 | J91: 3370.98 | K91: 3312.45 | L91: 3250 | M91: 0.71519
A92: 83 | B92: GUJGASLTD | C92: 600.75 | D92: 600.42 | E92: 595.93 | F92: 591.12 | G92: 586.63 | H92: 605.23 | I92: 609.72 | J92: 614.53 | K92: 604.9 | L92: 595.6 | M92: 10.37391
A93: 84 | B93: HCLTECH | C93: 1719.45 | D93: 1716.75 | E93: 1695.75 | F93: 1672.05 | G93: 1651.05 | H93: 1740.45 | I93: 1761.45 | J93: 1785.15 | K93: 1737.75 | L93: 1693.05 | M93: 25.16461
A94: 85 | B94: HDFCAMC | C94: 4474.95 | D94: 4482.05 | E94: 4454.15 | F94: 4433.35 | G94: 4405.45 | H94: 4502.85 | I94: 4530.75 | J94: 4551.55 | K94: 4509.95 | L94: 4461.25 | M94: 1.38783
A95: 86 | B95: HDFCBANK | C95: 1637.1 | D95: 1635.68 | E95: 1631.62 | F95: 1626.13 | G95: 1622.07 | H95: 1641.17 | I95: 1645.23 | J95: 1650.72 | K95: 1639.75 | L95: 1630.2 | M95: 134.60594
A96: 87 | B96: HDFCLIFE | C96: 742.1 | D96: 740.90 | E96: 735.25 | F96: 728.40 | G96: 722.75 | H96: 747.75 | I96: 753.40 | J96: 760.25 | K96: 746.55 | L96: 734.05 | M96: 29.9593
A97: 88 | B97: HAVELLS | C97: 1890.6 | D97: 1891.48 | E97: 1877.12 | F97: 1863.63 | G97: 1849.27 | H97: 1904.97 | I97: 1919.33 | J97: 1932.82 | K97: 1905.85 | L97: 1878 | M97: 7.66452
A98: 89 | B98: HEROMOTOCO | C98: 5311.4 | D98: 5320.20 | E98: 5257.20 | F98: 5203.00 | G98: 5140.00 | H98: 5374.40 | I98: 5437.40 | J98: 5491.60 | K98: 5383.2 | L98: 5266 | M98: 6.88591
A99: 90 | B99: HINDALCO | C99: 705.05 | D99: 705.63 | E99: 700.57 | F99: 696.08 | G99: 691.02 | H99: 710.12 | I99: 715.18 | J99: 719.67 | K99: 710.7 | L99: 701.15 | M99: 35.99946
A100: 91 | B100: HAL | C100: 4685.15 | D100: 4706.05 | E100: 4649.10 | F100: 4613.05 | G100: 4556.10 | H100: 4742.10 | I100: 4799.05 | J100: 4835.10 | K100: 4763 | L100: 4670 | M100: 7.98611
A101: 92 | B101: HINDPETRO | C101: 406.6 | D101: 406.98 | E101: 402.57 | F101: 398.53 | G101: 394.12 | H101: 411.02 | I101: 415.43 | J101: 419.47 | K101: 411.4 | L101: 402.95 | M101: 62.24089
A102: 93 | B102: HINDUNILVR | C102: 2764.35 | D102: 2763.95 | E102: 2746.15 | F102: 2727.95 | G102: 2710.15 | H102: 2782.15 | I102: 2799.95 | J102: 2818.15 | K102: 2781.75 | L102: 2745.75 | M102: 17.23549
A103: 94 | B103: ICICIBANK | C103: 1223.85 | D103: 1222.52 | E103: 1218.63 | F103: 1213.42 | G103: 1209.53 | H103: 1227.73 | I103: 1231.62 | J103: 1236.83 | K103: 1226.4 | L103: 1217.3 | M103: 122.91305
A104: 95 | B104: ICICIGI | C104: 2141.9 | D104: 2148.70 | E104: 2126.45 | F104: 2111.00 | G104: 2088.75 | H104: 2164.15 | I104: 2186.40 | J104: 2201.85 | K104: 2170.95 | L104: 2133.25 | M104: 6.18057
A105: 96 | B105: ICICIPRULI | C105: 744.6 | D105: 743.78 | E105: 736.92 | F105: 729.23 | G105: 722.37 | H105: 751.47 | I105: 758.33 | J105: 766.02 | K105: 750.65 | L105: 736.1 | M105: 17.50966
A106: 97 | B106: IDFCFIRSTB | C106: 74.09 | D106: 74.21 | E106: 73.43 | F106: 72.76 | G106: 71.98 | H106: 74.88 | I106: 75.66 | J106: 76.33 | K106: 75 | L106: 73.55 | M106: 190.32559
A107: 98 | B107: ITC | C107: 497.3 | D107: 498.70 | E107: 495.10 | F107: 492.90 | G107: 489.30 | H107: 500.90 | I107: 504.50 | J107: 506.70 | K107: 502.3 | L107: 496.5 | M107: 77.82216
A108: 99 | B108: INDIANB | C108: 567.95 | D108: 563.65 | E108: 551.30 | F108: 534.65 | G108: 522.30 | H108: 580.30 | I108: 592.65 | J108: 609.30 | K108: 576 | L108: 547 | M108: 21.99296
A109: 100 | B109: INDHOTEL | C109: 654.2 | D109: 659.23 | E109: 646.77 | F109: 639.33 | G109: 626.87 | H109: 666.67 | I109: 679.13 | J109: 686.57 | K109: 671.7 | L109: 651.8 | M109: 29.94726
A110: 101 | B110: IOC | C110: 173.75 | D110: 174.49 | E110: 172.49 | F110: 171.22 | G110: 169.22 | H110: 175.76 | I110: 177.76 | J110: 179.03 | K110: 176.5 | L110: 173.23 | M110: 144.49023
A111: 102 | B111: IRCTC | C111: 927 | D111: 930.68 | E111: 921.82 | F111: 916.63 | G111: 907.77 | H111: 935.87 | I111: 944.73 | J111: 949.92 | K111: 939.55 | L111: 925.5 | M111: 10.63625
A112: 103 | B112: IRFC | C112: 180.96 | D112: 181.49 | E112: 179.97 | F112: 178.99 | G112: 177.47 | H112: 182.47 | I112: 183.99 | J112: 184.97 | K112: 183 | L112: 180.5 | M112: 131.32709
A113: 104 | B113: IGL | C113: 538.7 | D113: 537.92 | E113: 535.83 | F113: 532.97 | G113: 530.88 | H113: 540.78 | I113: 542.87 | J113: 545.73 | K113: 540 | L113: 535.05 | M113: 14.25394
A114: 105 | B114: INDUSTOWER | C114: 444.45 | D114: 444.60 | E114: 440.60 | F114: 436.75 | G114: 432.75 | H114: 448.45 | I114: 452.45 | J114: 456.30 | K114: 448.6 | L114: 440.75 | M114: 154.33839
A115: 106 | B115: INDUSINDBK | C115: 1415.75 | D115: 1406.75 | E115: 1391.55 | F115: 1367.35 | G115: 1352.15 | H115: 1430.95 | I115: 1446.15 | J115: 1470.35 | K115: 1421.95 | L115: 1382.55 | M115: 65.32773
A116: 107 | B116: NAUKRI | C116: 7622.65 | D116: 7578.70 | E116: 7516.75 | F116: 7410.85 | G116: 7348.90 | H116: 7684.60 | I116: 7746.55 | J116: 7852.45 | K116: 7640.65 | L116: 7472.8 | M116: 2.424
A117: 108 | B117: INFY | C117: 1939.1 | D117: 1929.17 | E117: 1907.33 | F117: 1875.57 | G117: 1853.73 | H117: 1960.93 | I117: 1982.77 | J117: 2014.53 | K117: 1951 | L117: 1897.4 | M117: 65.14531
A118: 109 | B118: INDIGO | C118: 4859.85 | D118: 4844.55 | E118: 4745.30 | F118: 4630.75 | G118: 4531.50 | H118: 4959.10 | I118: 5058.35 | J118: 5172.90 | K118: 4943.8 | L118: 4730 | M118: 19.55254
A119: 110 | B119: IPCALAB | C119: 1397.05 | D119: 1398.70 | E119: 1387.40 | F119: 1377.75 | G119: 1366.45 | H119: 1408.35 | I119: 1419.65 | J119: 1429.30 | K119: 1410 | L119: 1389.05 | M119: 5.14593
A120: 111 | B120: JSWENERGY | C120: 736.6 | D120: 733.30 | E120: 726.60 | F120: 716.60 | G120: 709.90 | H120: 743.30 | I120: 750.00 | J120: 760.00 | K120: 740 | L120: 723.3 | M120: 18.30363
A121: 112 | B121: JSWSTEEL | C121: 949.25 | D121: 945.25 | E121: 939.00 | F121: 928.75 | G121: 922.50 | H121: 955.50 | I121: 961.75 | J121: 972.00 | K121: 951.5 | L121: 935 | M121: 22.85575
A122: 113 | B122: JINDALSTEL | C122: 968.9 | D122: 968.97 | E122: 962.93 | F122: 956.97 | G122: 950.93 | H122: 974.93 | I122: 980.97 | J122: 986.93 | K122: 975 | L122: 963 | M122: 9.14225
A123: 114 | B123: JUBLFOOD | C123: 656.1 | D123: 657.67 | E123: 647.68 | F123: 639.27 | G123: 629.28 | H123: 666.08 | I123: 676.07 | J123: 684.48 | K123: 667.65 | L123: 649.25 | M123: 20.32356
A124: 115 | B124: KPITTECH | C124: 1847.05 | D124: 1870.22 | E124: 1819.43 | F124: 1791.82 | G124: 1741.03 | H124: 1897.83 | I124: 1948.62 | J124: 1976.23 | K124: 1921 | L124: 1842.6 | M124: 12.30446
A125: 116 | B125: KOTAKBANK | C125: 1791.3 | D125: 1794.35 | E125: 1782.80 | F125: 1774.30 | G125: 1762.75 | H125: 1802.85 | I125: 1814.40 | J125: 1822.90 | K125: 1805.9 | L125: 1785.85 | M125: 42.80796
A126: 117 | B126: LTF | C126: 170.52 | D126: 171.49 | E126: 169.28 | F126: 168.04 | G126: 165.83 | H126: 172.73 | I126: 174.94 | J126: 176.18 | K126: 173.7 | L126: 170.25 | M126: 77.0621
A127: 118 | B127: LTTS | C127: 5678.6 | D127: 5634.95 | E127: 5561.80 | F127: 5445.00 | G127: 5371.85 | H127: 5751.75 | I127: 5824.90 | J127: 5941.70 | K127: 5708.1 | L127: 5518.15 | M127: 5.66444
A128: 119 | B128: LICHSGFIN | C128: 674.9 | D128: 678.80 | E128: 667.60 | F128: 660.30 | G128: 649.10 | H128: 686.10 | I128: 697.30 | J128: 704.60 | K128: 690 | L128: 671.5 | M128: 22.89104
A129: 120 | B129: LTIM | C129: 6127.55 | D129: 6032.15 | E129: 5865.40 | F129: 5603.25 | G129: 5436.50 | H129: 6294.30 | I129: 6461.05 | J129: 6723.20 | K129: 6198.9 | L129: 5770 | M129: 35.80339
A130: 121 | B130: LT | C130: 3689.05 | D130: 3699.48 | E130: 3674.57 | F130: 3660.08 | G130: 3635.17 | H130: 3713.97 | I130: 3738.88 | J130: 3753.37 | K130: 3724.4 | L130: 3685 | M130: 12.78175
A131: 122 | B131: LAURUSLABS | C131: 458.05 | D131: 457.20 | E131: 451.10 | F131: 444.15 | G131: 438.05 | H131: 464.15 | I131: 470.25 | J131: 477.20 | K131: 463.3 | L131: 450.25 | M131: 28.44798
A132: 123 | B132: LICI | C132: 1084.5 | D132: 1084.17 | E132: 1073.33 | F132: 1062.17 | G132: 1051.33 | H132: 1095.33 | I132: 1106.17 | J132: 1117.33 | K132: 1095 | L132: 1073 | M132: 14.81538
A133: 124 | B133: LUPIN | C133: 2200.75 | D133: 2198.43 | E133: 2168.72 | F133: 2136.68 | G133: 2106.97 | H133: 2230.47 | I133: 2260.18 | J133: 2292.22 | K133: 2228.15 | L133: 2166.4 | M133: 16.31938
A134: 125 | B134: MRF | C134: 136856.3 | D134: 137614.22 | E134: 135728.43 | F134: 134600.57 | G134: 132714.78 | H134: 138742.08 | I134: 140627.87 | J134: 141755.73 | K134: 139500 | L134: 136486.35 | M134: 0.06441
A135: 126 | B135: LODHA | C135: 1251.75 | D135: 1242.73 | E135: 1225.57 | F135: 1199.38 | G135: 1182.22 | H135: 1268.92 | I135: 1286.08 | J135: 1312.27 | K135: 1259.9 | L135: 1216.55 | M135: 6.86481
A136: 127 | B136: M&MFIN | C136: 315.25 | D136: 317.28 | E136: 312.12 | F136: 308.98 | G136: 303.82 | H136: 320.42 | I136: 325.58 | J136: 328.72 | K136: 322.45 | L136: 314.15 | M136: 30.4898
A137: 128 | B137: M&M | C137: 2798 | D137: 2801.93 | E137: 2776.87 | F137: 2755.73 | G137: 2730.67 | H137: 2823.07 | I137: 2848.13 | J137: 2869.27 | K137: 2827 | L137: 2780.8 | M137: 18.51275
A138: 129 | B138: MANKIND | C138: 2428.55 | D138: 2416.67 | E138: 2396.38 | F138: 2364.22 | G138: 2343.93 | H138: 2448.83 | I138: 2469.12 | J138: 2501.28 | K138: 2436.95 | L138: 2384.5 | M138: 3.05337
A139: 130 | B139: MARICO | C139: 661.9 | D139: 666.93 | E139: 654.97 | F139: 648.03 | G139: 636.07 | H139: 673.87 | I139: 685.83 | J139: 692.77 | K139: 678.9 | L139: 660 | M139: 24.36997
A140: 131 | B140: MARUTI | C140: 12357.5 | D140: 12402.48 | E140: 12285.02 | F140: 12212.53 | G140: 12095.07 | H140: 12474.97 | I140: 12592.43 | J140: 12664.92 | K140: 12519.95 | L140: 12330 | M140: 3.13227
A141: 132 | B141: MFSL | C141: 1070.2 | D141: 1073.73 | E141: 1059.57 | F141: 1048.93 | G141: 1034.77 | H141: 1084.37 | I141: 1098.53 | J141: 1109.17 | K141: 1087.9 | L141: 1063.1 | M141: 12.86899
A142: 133 | B142: MAXHEALTH | C142: 865.8 | D142: 861.58 | E142: 854.42 | F142: 843.03 | G142: 835.87 | H142: 872.97 | I142: 880.13 | J142: 891.52 | K142: 868.75 | L142: 850.2 | M142: 22.09821
A143: 134 | B143: MAZDOCK | C143: 4313.65 | D143: 4308.22 | E143: 4246.43 | F143: 4179.22 | G143: 4117.43 | H143: 4375.43 | I143: 4437.22 | J143: 4504.43 | K143: 4370 | L143: 4241 | M143: 16.39602
A144: 139 | B144: MSUMI | C144: 70.02 | D144: 70.50 | E144: 69.07 | F144: 68.12 | G144: 66.69 | H144: 71.45 | I144: 72.88 | J144: 73.83 | K144: 71.93 | L144: 69.55 | M144: 64.79523
A145: 140 | B145: MPHASIS | C145: 3089.45 | D145: 3076.13 | E145: 3020.32 | F145: 2951.18 | G145: 2895.37 | H145: 3145.27 | I145: 3201.08 | J145: 3270.22 | K145: 3131.95 | L145: 3007 | M145: 11.8629
A146: 141 | B146: MUTHOOTFIN | C146: 1958.45 | D146: 1957.97 | E146: 1927.48 | F146: 1896.52 | G146: 1866.03 | H146: 1988.93 | I146: 2019.42 | J146: 2050.38 | K146: 1988.45 | L146: 1927 | M146: 3.83583
A147: 142 | B147: NHPC | C147: 95.06 | D147: 95.26 | E147: 94.53 | F147: 94.01 | G147: 93.28 | H147: 95.78 | I147: 96.51 | J147: 97.03 | K147: 95.98 | L147: 94.73 | M147: 193.36484
A148: 143 | B148: NMDC | C148: 226.23 | D148: 227.65 | E148: 224.39 | F148: 222.56 | G148: 219.30 | H148: 229.48 | I148: 232.74 | J148: 234.57 | K148: 230.9 | L148: 225.81 | M148: 52.8432
A149: 144 | B149: NTPC | C149: 409.05 | D149: 410.27 | E149: 406.13 | F149: 403.22 | G149: 399.08 | H149: 413.18 | I149: 417.32 | J149: 420.23 | K149: 414.4 | L149: 407.35 | M149: 158.84745
A150: 145 | B150: NAVINFLUOR | C150: 3290.4 | D150: 3287.13 | E150: 3266.27 | F150: 3242.13 | G150: 3221.27 | H150: 3311.27 | I150: 3332.13 | J150: 3356.27 | K150: 3308 | L150: 3263 | M150: 2.08936
A151: 146 | B151: NESTLEIND | C151: 2492.5 | D151: 2500.50 | E151: 2482.00 | F151: 2471.50 | G151: 2453.00 | H151: 2511.00 | I151: 2529.50 | J151: 2540.00 | K151: 2519 | L151: 2490 | M151: 5.65161
A152: 147 | B152: OBEROIRLTY | C152: 1711.25 | D152: 1719.07 | E152: 1699.23 | F152: 1687.22 | G152: 1667.38 | H152: 1731.08 | I152: 1750.92 | J152: 1762.93 | K152: 1738.9 | L152: 1707.05 | M152: 2.17943
A153: 148 | B153: ONGC | C153: 327.8 | D153: 327.58 | E153: 324.87 | F153: 321.93 | G153: 319.22 | H153: 330.52 | I153: 333.23 | J153: 336.17 | K153: 330.3 | L153: 324.65 | M153: 124.46738
A154: 149 | B154: OIL | C154: 726.4 | D154: 719.93 | E154: 709.97 | F154: 693.53 | G154: 683.57 | H154: 736.37 | I154: 746.33 | J154: 762.77 | K154: 729.9 | L154: 703.5 | M154: 56.58011
A155: 150 | B155: PAYTM | C155: 538 | D155: 544.17 | E155: 528.38 | F155: 518.77 | G155: 502.98 | H155: 553.78 | I155: 569.57 | J155: 579.18 | K155: 559.95 | L155: 534.55 | M155: 60.63546
A156: 151 | B156: POLICYBZR | C156: 1737.9 | D156: 1748.92 | E156: 1714.98 | F156: 1692.07 | G156: 1658.13 | H156: 1771.83 | I156: 1805.77 | J156: 1828.68 | K156: 1782.85 | L156: 1726 | M156: 7.01465
A157: 152 | B157: PIIND | C157: 4509.1 | D157: 4483.52 | E157: 4447.03 | F157: 4384.97 | G157: 4348.48 | H157: 4545.58 | I157: 4582.07 | J157: 4644.13 | K157: 4520 | L157: 4421.45 | M157: 2.00315
A158: 153 | B158: PAGEIND | C158: 41328.3 | D158: 41388.37 | E158: 41048.28 | F158: 40768.27 | G158: 40428.18 | H158: 41668.38 | I158: 42008.47 | J158: 42288.48 | K158: 41728.45 | L158: 41108.35 | M158: 0.08848
A159: 154 | B159: PATANJALI | C159: 1920.05 | D159: 1904.68 | E159: 1880.47 | F159: 1840.88 | G159: 1816.67 | H159: 1944.27 | I159: 1968.48 | J159: 2008.07 | K159: 1928.9 | L159: 1865.1 | M159: 5.57225
A160: 155 | B160: PERSISTENT | C160: 4997.95 | D160: 4962.68 | E160: 4875.37 | F160: 4752.78 | G160: 4665.47 | H160: 5085.27 | I160: 5172.58 | J160: 5295.17 | K160: 5050 | L160: 4840.1 | M160: 6.48876
A161: 156 | B161: PETRONET | C161: 367.85 | D161: 368.45 | E161: 366.00 | F161: 364.15 | G161: 361.70 | H161: 370.30 | I161: 372.75 | J161: 374.60 | K161: 370.9 | L161: 366.6 | M161: 17.62624
A162: 157 | B162: PIDILITIND | C162: 3083.15 | D162: 3089.57 | E162: 3064.13 | F162: 3045.12 | G162: 3019.68 | H162: 3108.58 | I162: 3134.02 | J162: 3153.03 | K162: 3115 | L162: 3070.55 | M162: 1.83165
A163: 158 | B163: PEL | C163: 1067.5 | D163: 1071.90 | E163: 1059.60 | F163: 1051.70 | G163: 1039.40 | H163: 1079.80 | I163: 1092.10 | J163: 1100.00 | K163: 1084.2 | L163: 1064 | M163: 11.26914
A164: 159 | B164: POLYCAB | C164: 6788.25 | D164: 6788.08 | E164: 6751.17 | F164: 6714.08 | G164: 6677.17 | H164: 6825.17 | I164: 6862.08 | J164: 6899.17 | K164: 6825 | L164: 6751 | M164: 2.06801
A165: 160 | B165: POONAWALLA | C165: 399.7 | D165: 404.07 | E165: 394.13 | F165: 388.57 | G165: 378.63 | H165: 409.63 | I165: 419.57 | J165: 425.13 | K165: 414 | L165: 398.5 | M165: 27.06349
A166: 161 | B166: PFC | C166: 539.25 | D166: 538.77 | E166: 532.03 | F166: 524.82 | G166: 518.08 | H166: 545.98 | I166: 552.72 | J166: 559.93 | K166: 545.5 | L166: 531.55 | M166: 116.07989
A167: 162 | B167: POWERGRID | C167: 334.45 | D167: 335.70 | E167: 332.50 | F167: 330.55 | G167: 327.35 | H167: 337.65 | I167: 340.85 | J167: 342.80 | K167: 338.9 | L167: 333.75 | M167: 87.906
A168: 163 | B168: PRESTIGE | C168: 1714.5 | D168: 1724.80 | E168: 1686.70 | F168: 1658.90 | G168: 1620.80 | H168: 1752.60 | I168: 1790.70 | J168: 1818.50 | K168: 1762.9 | L168: 1697 | M168: 15.12626
A169: 164 | B169: PGHH | C169: 16996.1 | D169: 17041.18 | E169: 16855.02 | F169: 16713.93 | G169: 16527.77 | H169: 17182.27 | I169: 17368.43 | J169: 17509.52 | K169: 17227.35 | L169: 16900.1 | M169: 0.04646
A170: 165 | B170: PNB | C170: 114.75 | D170: 115.20 | E170: 114.06 | F170: 113.37 | G170: 112.23 | H170: 115.89 | I170: 117.03 | J170: 117.72 | K170: 116.34 | L170: 114.51 | M170: 146.4586
A171: 166 | B171: RECLTD | C171: 618.55 | D171: 620.03 | E171: 613.82 | F171: 609.08 | G171: 602.87 | H171: 624.77 | I171: 630.98 | J171: 635.72 | K171: 626.25 | L171: 615.3 | M171: 98.11133
A172: 167 | B172: RVNL | C172: 578.2 | D172: 584.02 | E172: 571.53 | F172: 564.87 | G172: 552.38 | H172: 590.68 | I172: 603.17 | J172: 609.83 | K172: 596.5 | L172: 577.35 | M172: 221.01243
A173: 168 | B173: RELIANCE | C173: 2996.6 | D173: 2999.18 | E173: 2983.42 | F173: 2970.23 | G173: 2954.47 | H173: 3012.37 | I173: 3028.13 | J173: 3041.32 | K173: 3014.95 | L173: 2986 | M173: 48.05143
A174: 169 | B174: SBICARD | C174: 731.3 | D174: 734.40 | E174: 725.10 | F174: 718.90 | G174: 709.60 | H174: 740.60 | I174: 749.90 | J174: 756.10 | K174: 743.7 | L174: 728.2 | M174: 17.83612
A175: 170 | B175: SBILIFE | C175: 1843.7 | D175: 1841.32 | E175: 1828.38 | F175: 1813.07 | G175: 1800.13 | H175: 1856.63 | I175: 1869.57 | J175: 1884.88 | K175: 1854.25 | L175: 1826 | M175: 7.24092
A176: 171 | B176: SRF | C176: 2539.05 | D176: 2541.97 | E176: 2515.08 | F176: 2491.12 | G176: 2464.23 | H176: 2565.93 | I176: 2592.82 | J176: 2616.78 | K176: 2568.85 | L176: 2518 | M176: 3.62347
A177: 172 | B177: MOTHERSON | C177: 196.97 | D177: 197.95 | E177: 195.61 | F177: 194.24 | G177: 191.90 | H177: 199.32 | I177: 201.66 | J177: 203.03 | K177: 200.3 | L177: 196.59 | M177: 88.13851
A178: 173 | B178: SHREECEM | C178: 24692.2 | D178: 24732.62 | E178: 24565.23 | F178: 24438.27 | G178: 24270.88 | H178: 24859.58 | I178: 25026.97 | J178: 25153.93 | K178: 24900 | L178: 24605.65 | M178: 0.20949
A179: 174 | B179: SHRIRAMFIN | C179: 3201.85 | D179: 3213.87 | E179: 3179.73 | F179: 3157.62 | G179: 3123.48 | H179: 3235.98 | I179: 3270.12 | J179: 3292.23 | K179: 3248 | L179: 3191.75 | M179: 6.70444
A180: 175 | B180: SIEMENS | C180: 6951.45 | D180: 6975.57 | E180: 6916.13 | F180: 6880.82 | G180: 6821.38 | H180: 7010.88 | I180: 7070.32 | J180: 7105.63 | K180: 7035 | L180: 6940.25 | M180: 2.01864
A181: 176 | B181: SONACOMS | C181: 700.1 | D181: 705.02 | E181: 692.08 | F181: 684.07 | G181: 671.13 | H181: 713.03 | I181: 725.97 | J181: 733.98 | K181: 717.95 | L181: 697 | M181: 10.89403
A182: 177 | B182: SBIN | C182: 809.4 | D182: 811.03 | E182: 804.87 | F182: 800.33 | G182: 794.17 | H182: 815.57 | I182: 821.73 | J182: 826.27 | K182: 817.2 | L182: 806.5 | M182: 103.713
A183: 178 | B183: SAIL | C183: 134.04 | D183: 134.60 | E183: 132.79 | F183: 131.55 | G183: 129.74 | H183: 135.84 | I183: 137.65 | J183: 138.89 | K183: 136.4 | L183: 133.35 | M183: 114.14976
A184: 179 | B184: SUNPHARMA | C184: 1811.85 | D184: 1807.07 | E184: 1791.13 | F184: 1770.42 | G184: 1754.48 | H184: 1827.78 | I184: 1843.72 | J184: 1864.43 | K184: 1823 | L184: 1786.35 | M184: 17.68949
A185: 180 | B185: SUNTV | C185: 815.25 | D185: 817.22 | E185: 805.98 | F185: 796.72 | G185: 785.48 | H185: 826.48 | I185: 837.72 | J185: 846.98 | K185: 828.45 | L185: 807.95 | M185: 8.77123
A186: 181 | B186: SYNGENE | C186: 843.7 | D186: 838.92 | E186: 830.83 | F186: 817.97 | G186: 809.88 | H186: 851.78 | I186: 859.87 | J186: 872.73 | K186: 847 | L186: 826.05 | M186: 5.21949
A187: 182 | B187: TVSMOTOR | C187: 2737.25 | D187: 2740.47 | E187: 2718.73 | F187: 2700.22 | G187: 2678.48 | H187: 2758.98 | I187: 2780.72 | J187: 2799.23 | K187: 2762.2 | L187: 2721.95 | M187: 6.15924
A188: 183 | B188: TATACHEM | C188: 1075.65 | D188: 1084.70 | E188: 1063.40 | F188: 1051.15 | G188: 1029.85 | H188: 1096.95 | I188: 1118.25 | J188: 1130.50 | K188: 1106 | L188: 1072.45 | M188: 10.09628
A189: 184 | B189: TATACOMM | C189: 1928.5 | D189: 1942.30 | E189: 1909.80 | F189: 1891.10 | G189: 1858.60 | H189: 1961.00 | I189: 1993.50 | J189: 2012.20 | K189: 1974.8 | L189: 1923.6 | M189: 5.08814
A190: 185 | B190: TCS | C190: 4506.05 | D190: 4508.62 | E190: 4454.73 | F190: 4403.42 | G190: 4349.53 | H190: 4559.93 | I190: 4613.82 | J190: 4665.13 | K190: 4562.5 | L190: 4457.3 | M190: 18.48058
A191: 186 | B191: TATACONSUM | C191: 1201.15 | D191: 1204.37 | E191: 1193.38 | F191: 1185.62 | G191: 1174.63 | H191: 1212.13 | I191: 1223.12 | J191: 1230.88 | K191: 1215.35 | L191: 1196.6 | M191: 7.7973
A192: 187 | B192: TATAELXSI | C192: 8227.5 | D192: 8434.83 | E192: 7969.67 | F192: 7711.83 | G192: 7246.67 | H192: 8692.67 | I192: 9157.83 | J192: 9415.67 | K192: 8900 | L192: 8177 | M192: 28.48938
A193: 188 | B193: TATAMTRDVR | C193: 746.8 | D193: 747.90 | E193: 741.95 | F193: 737.10 | G193: 731.15 | H193: 752.75 | I193: 758.70 | J193: 763.55 | K193: 753.85 | L193: 743.05 | M193: 72.34819
A194: 189 | B194: TATAMOTORS | C194: 1074.55 | D194: 1077.78 | E194: 1066.87 | F194: 1059.18 | G194: 1048.27 | H194: 1085.47 | I194: 1096.38 | J194: 1104.07 | K194: 1088.7 | L194: 1070.1 | M194: 81.45376
A195: 190 | B195: TATAPOWER | C195: 431.4 | D195: 431.40 | E195: 428.60 | F195: 425.80 | G195: 423.00 | H195: 434.20 | I195: 437.00 | J195: 439.80 | K195: 434.2 | L195: 428.6 | M195: 182.13329
A196: 191 | B196: TATASTEEL | C196: 153.7 | D196: 153.92 | E196: 152.83 | F196: 151.97 | G196: 150.88 | H196: 154.78 | I196: 155.87 | J196: 156.73 | K196: 155 | L196: 153.05 | M196: 251.95197
A197: 192 | B197: TECHM | C197: 1627.35 | D197: 1636.18 | E197: 1607.37 | F197: 1587.38 | G197: 1558.57 | H197: 1656.17 | I197: 1684.98 | J197: 1704.97 | K197: 1665 | L197: 1616.2 | M197: 30.3359
A198: 193 | B198: RAMCOCEM | C198: 821.9 | D198: 824.58 | E198: 815.77 | F198: 809.63 | G198: 800.82 | H198: 830.72 | I198: 839.53 | J198: 845.67 | K198: 833.4 | L198: 818.45 | M198: 3.78897
A199: 194 | B199: TITAN | C199: 3527.5 | D199: 3542.45 | E199: 3504.95 | F199: 3482.40 | G199: 3444.90 | H199: 3565.00 | I199: 3602.50 | J199: 3625.05 | K199: 3579.95 | L199: 3519.9 | M199: 7.27481
A200: 195 | B200: TORNTPHARM | C200: 3419.45 | D200: 3410.17 | E200: 3369.33 | F200: 3319.22 | G200: 3278.38 | H200: 3460.28 | I200: 3501.12 | J200: 3551.23 | K200: 3451 | L200: 3360.05 | M200: 5.97337
A201: 196 | B201: TORNTPOWER | C201: 1673.55 | D201: 1679.83 | E201: 1659.67 | F201: 1645.78 | G201: 1625.62 | H201: 1693.72 | I201: 1713.88 | J201: 1727.77 | K201: 1700 | L201: 1665.95 | M201: 3.80258
A202: 197 | B202: TRENT | C202: 7242.1 | D202: 7172.45 | E202: 7019.90 | F202: 6797.70 | G202: 6645.15 | H202: 7394.65 | I202: 7547.20 | J202: 7769.40 | K202: 7325 | L202: 6950.25 | M202: 23.58476
A203: 198 | B203: TIINDIA | C203: 4154.2 | D203: 4145.45 | E203: 4093.90 | F203: 4033.60 | G203: 3982.05 | H203: 4205.75 | I203: 4257.30 | J203: 4317.60 | K203: 4197 | L203: 4085.15 | M203: 0.98361
A204: 199 | B204: UPL | C204: 578.05 | D204: 579.83 | E204: 573.77 | F204: 569.48 | G204: 563.42 | H204: 584.12 | I204: 590.18 | J204: 594.47 | K204: 585.9 | L204: 575.55 | M204: 13.6957
A205: 200 | B205: ULTRACEMCO | C205: 11234.8 | D205: 11254.47 | E205: 11191.33 | F205: 11147.87 | G205: 11084.73 | H205: 11297.93 | I205: 11361.07 | J205: 11404.53 | K205: 11317.6 | L205: 11211 | M205: 2.01101
... 30 more rows

Sheet MidCap Intra
L5: Back To Main Page
A6: FOR INTRA DAY TRADING | K6: =Main!B10 -> 2024-08-29
A9: Sr.no | B9: Scrip | C9: CLOSE RATE | D9: Pivot Point | E9: Supports | H9: Resistances
E10: S1 | F10: S2 | G10: S3 | H10: R1 | I10: R2 | J10: R3 | K10: HIGH | L10: LOW | M10: Total Trade Quanity in Lakhs
A11: 1 | B11: 360ONE | C11: 1097.45 | D11: 1108.82 | E11: 1082.73 | F11: 1068.02 | G11: 1041.93 | H11: 1123.53 | I11: 1149.62 | J11: 1164.33 | K11: 1134.9 | L11: 1094.1 | M11: 7.85486
A12: 2 | B12: 3MINDIA | C12: 35368.8 | D12: 35602.93 | E12: 35055.87 | F12: 34742.93 | G12: 34195.87 | H12: 35915.87 | I12: 36462.93 | J12: 36775.87 | K12: 36150 | L12: 35290 | M12: 0.03858
A13: 3 | B13: ABB | C13: 7938.4 | D13: 7913.13 | E13: 7870.32 | F13: 7802.23 | G13: 7759.42 | H13: 7981.22 | I13: 8024.03 | J13: 8092.12 | K13: 7955.95 | L13: 7845.05 | M13: 1.53307
A14: 4 | B14: ACC | C14: 2330.35 | D14: 2338.12 | E14: 2318.23 | F14: 2306.12 | G14: 2286.23 | H14: 2350.23 | I14: 2370.12 | J14: 2382.23 | K14: 2358 | L14: 2326 | M14: 1.42265
A15: 5 | B15: AIAENG | C15: 4359.3 | D15: 4385.10 | E15: 4304.20 | F15: 4249.10 | G15: 4168.20 | H15: 4440.20 | I15: 4521.10 | J15: 4576.20 | K15: 4466 | L15: 4330 | M15: 0.57335
A16: 6 | B16: APLAPOLLO | C16: 1475.6 | D16: 1462.33 | E16: 1443.57 | F16: 1411.53 | G16: 1392.77 | H16: 1494.37 | I16: 1513.13 | J16: 1545.17 | K16: 1481.1 | L16: 1430.3 | M16: 7.91
A17: 7 | B17: AUBANK | C17: 632.55 | D17: 631.72 | E17: 626.68 | F17: 620.82 | G17: 615.78 | H17: 637.58 | I17: 642.62 | J17: 648.48 | K17: 636.75 | L17: 625.85 | M17: 19.75857
A18: 8 | B18: AARTIIND | C18: 640.75 | D18: 639.80 | E18: 630.70 | F18: 620.65 | G18: 611.55 | H18: 649.85 | I18: 658.95 | J18: 669.00 | K18: 648.9 | L18: 629.75 | M18: 30.8453
A19: 9 | B19: AAVAS | C19: 1720.1 | D19: 1708.70 | E19: 1692.90 | F19: 1665.70 | G19: 1649.90 | H19: 1735.90 | I19: 1751.70 | J19: 1778.90 | K19: 1724.5 | L19: 1681.5 | M19: 8.23956
A20: 10 | B20: ABBOTINDIA | C20: 29955.25 | D20: 29910.25 | E20: 29675.00 | F20: 29394.75 | G20: 29159.50 | H20: 30190.50 | I20: 30425.75 | J20: 30706.00 | K20: 30145.5 | L20: 29630 | M20: 0.33538
A21: 11 | B21: ACE | C21: 1269.5 | D21: 1280.52 | E21: 1254.03 | F21: 1238.57 | G21: 1212.08 | H21: 1295.98 | I21: 1322.47 | J21: 1337.93 | K21: 1307 | L21: 1265.05 | M21: 3.52234
A22: 12 | B22: ADANIENSOL | C22: 1027.15 | D22: 1033.52 | E22: 1016.13 | F22: 1005.12 | G22: 987.73 | H22: 1044.53 | I22: 1061.92 | J22: 1072.93 | K22: 1050.9 | L22: 1022.5 | M22: 18.83409
A23: 13 | B23: ADANIENT | C23: 3028 | D23: 3042.70 | E23: 3007.40 | F23: 2986.80 | G23: 2951.50 | H23: 3063.30 | I23: 3098.60 | J23: 3119.20 | K23: 3078 | L23: 3022.1 | M23: 15.69652
A24: 14 | B24: ADANIGREEN | C24: 1861.1 | D24: 1866.97 | E24: 1841.38 | F24: 1821.67 | G24: 1796.08 | H24: 1886.68 | I24: 1912.27 | J24: 1931.98 | K24: 1892.55 | L24: 1847.25 | M24: 4.34976
A25: 15 | B25: ADANIPORTS | C25: 1469.8 | D25: 1474.40 | E25: 1462.40 | F25: 1455.00 | G25: 1443.00 | H25: 1481.80 | I25: 1493.80 | J25: 1501.20 | K25: 1486.4 | L25: 1467 | M25: 12.25101
A26: 16 | B26: ADANIPOWER | C26: 641.55 | D26: 646.18 | E26: 633.52 | F26: 625.48 | G26: 612.82 | H26: 654.22 | I26: 666.88 | J26: 674.92 | K26: 658.85 | L26: 638.15 | M26: 35.7391
A27: 17 | B27: ATGL | C27: 848.8 | D27: 849.30 | E27: 839.60 | F27: 830.40 | G27: 820.70 | H27: 858.50 | I27: 868.20 | J27: 877.40 | K27: 859 | L27: 840.1 | M27: 30.36506
A28: 18 | B28: AWL | C28: 367.15 | D28: 370.33 | E28: 362.82 | F28: 358.48 | G28: 350.97 | H28: 374.67 | I28: 382.18 | J28: 386.52 | K28: 377.85 | L28: 366 | M28: 34.03542
A29: 19 | B29: ABCAPITAL | C29: 221.99 | D29: 222.57 | E29: 220.43 | F29: 218.88 | G29: 216.74 | H29: 224.12 | I29: 226.26 | J29: 227.81 | K29: 224.7 | L29: 221.01 | M29: 49.76732
A30: 20 | B30: ABFRL | C30: 314.85 | D30: 316.77 | E30: 310.13 | F30: 305.42 | G30: 298.78 | H30: 321.48 | I30: 328.12 | J30: 332.83 | K30: 323.4 | L30: 312.05 | M30: 158.83263
A31: 21 | B31: AEGISLOG | C31: 759.05 | D31: 765.15 | E31: 746.90 | F31: 734.75 | G31: 716.50 | H31: 777.30 | I31: 795.55 | J31: 807.70 | K31: 783.4 | L31: 753 | M31: 2.36136
A32: 22 | B32: AETHER | C32: 886.6 | D32: 888.87 | E32: 879.73 | F32: 872.87 | G32: 863.73 | H32: 895.73 | I32: 904.87 | J32: 911.73 | K32: 898 | L32: 882 | M32: 0.28242
A33: 23 | B33: AFFLE | C33: 1660.55 | D33: 1659.53 | E33: 1637.07 | F33: 1613.58 | G33: 1591.12 | H33: 1683.02 | I33: 1705.48 | J33: 1728.97 | K33: 1682 | L33: 1636.05 | M33: 2.93187
A34: 24 | B34: AJANTPHARM | C34: 3080.45 | D34: 3058.38 | E34: 2988.57 | F34: 2896.68 | G34: 2826.87 | H34: 3150.27 | I34: 3220.08 | J34: 3311.97 | K34: 3128.2 | L34: 2966.5 | M34: 2.47956
A35: 25 | B35: APLLTD | C35: 1067.15 | D35: 1067.05 | E35: 1053.10 | F35: 1039.05 | G35: 1025.10 | H35: 1081.10 | I35: 1095.05 | J35: 1109.10 | K35: 1081 | L35: 1053 | M35: 1.07467
A36: 26 | B36: ALKEM | C36: 5997.4 | D36: 5956.27 | E36: 5891.43 | F36: 5785.47 | G36: 5720.63 | H36: 6062.23 | I36: 6127.07 | J36: 6233.03 | K36: 6021.1 | L36: 5850.3 | M36: 3.84104
A37: 27 | B37: ALKYLAMINE | C37: 2113.2 | D37: 2119.37 | E37: 2094.83 | F37: 2076.47 | G37: 2051.93 | H37: 2137.73 | I37: 2162.27 | J37: 2180.63 | K37: 2143.9 | L37: 2101 | M37: 0.34159
A38: 28 | B38: ALLCARGO | C38: 69.28 | D38: 69.93 | E38: 68.06 | F38: 66.84 | G38: 64.97 | H38: 71.15 | I38: 73.02 | J38: 74.24 | K38: 71.8 | L38: 68.71 | M38: 46.80644
A39: 29 | B39: ALOKINDS | C39: 27.75 | D39: 28.10 | E39: 27.06 | F39: 26.36 | G39: 25.32 | H39: 28.80 | I39: 29.84 | J39: 30.54 | K39: 29.15 | L39: 27.41 | M39: 367.87108
A40: 30 | B40: ARE&M | C40: 1535.6 | D40: 1547.47 | E40: 1518.13 | F40: 1500.67 | G40: 1471.33 | H40: 1564.93 | I40: 1594.27 | J40: 1611.73 | K40: 1576.8 | L40: 1530 | M40: 5.07968
A41: 31 | B41: AMBER | C41: 4379.4 | D41: 4359.97 | E41: 4329.93 | F41: 4280.47 | G41: 4250.43 | H41: 4409.43 | I41: 4439.47 | J41: 4488.93 | K41: 4390 | L41: 4310.5 | M41: 0.96127
A42: 32 | B42: AMBUJACEM | C42: 616.4 | D42: 619.58 | E42: 611.92 | F42: 607.43 | G42: 599.77 | H42: 624.07 | I42: 631.73 | J42: 636.22 | K42: 627.25 | L42: 615.1 | M42: 25.70418
A43: 33 | B43: ANANDRATHI | C43: 3729 | D43: 3749.63 | E43: 3692.72 | F43: 3656.43 | G43: 3599.52 | H43: 3785.92 | I43: 3842.83 | J43: 3879.12 | K43: 3806.55 | L43: 3713.35 | M43: 0.33405
A44: 34 | B44: ANGELONE | C44: 2621.75 | D44: 2614.17 | E44: 2578.48 | F44: 2535.22 | G44: 2499.53 | H44: 2657.43 | I44: 2693.12 | J44: 2736.38 | K44: 2649.85 | L44: 2570.9 | M44: 6.2746
A45: 35 | B45: ANURAS | C45: 784.15 | D45: 780.78 | E45: 773.57 | F45: 762.98 | G45: 755.77 | H45: 791.37 | I45: 798.58 | J45: 809.17 | K45: 788 | L45: 770.2 | M45: 0.49732
A46: 36 | B46: APARINDS | C46: 9009.6 | D46: 9037.72 | E46: 8888.58 | F46: 8767.57 | G46: 8618.43 | H46: 9158.73 | I46: 9307.87 | J46: 9428.88 | K46: 9186.85 | L46: 8916.7 | M46: 0.90982
A47: 37 | B47: APOLLOHOSP | C47: 6776.45 | D47: 6790.50 | E47: 6732.50 | F47: 6688.55 | G47: 6630.55 | H47: 6834.45 | I47: 6892.45 | J47: 6936.40 | K47: 6848.5 | L47: 6746.55 | M47: 2.50361
A48: 38 | B48: APOLLOTYRE | C48: 497.5 | D48: 499.97 | E48: 493.53 | F48: 489.57 | G48: 483.13 | H48: 503.93 | I48: 510.37 | J48: 514.33 | K48: 506.4 | L48: 496 | M48: 10.2279
A49: 39 | B49: APTUS | C49: 318.1 | D49: 315.03 | E49: 311.17 | F49: 304.23 | G49: 300.37 | H49: 321.97 | I49: 325.83 | J49: 332.77 | K49: 318.9 | L49: 308.1 | M49: 8.61942
A50: 40 | B50: ACI | C50: 767.95 | D50: 775.82 | E50: 756.83 | F50: 745.72 | G50: 726.73 | H50: 786.93 | I50: 805.92 | J50: 817.03 | K50: 794.8 | L50: 764.7 | M50: 2.90988
A51: 41 | B51: ASAHIINDIA | C51: 640.25 | D51: 646.57 | E51: 631.68 | F51: 623.12 | G51: 608.23 | H51: 655.13 | I51: 670.02 | J51: 678.58 | K51: 661.45 | L51: 638 | M51: 0.74819
A52: 42 | B52: ASHOKLEY | C52: 260.45 | D52: 261.27 | E52: 259.18 | F52: 257.92 | G52: 255.83 | H52: 262.53 | I52: 264.62 | J52: 265.88 | K52: 263.35 | L52: 260 | M52: 43.97583
A53: 43 | B53: ASIANPAINT | C53: 3125.5 | D53: 3136.60 | E53: 3107.70 | F53: 3089.90 | G53: 3061.00 | H53: 3154.40 | I53: 3183.30 | J53: 3201.10 | K53: 3165.5 | L53: 3118.8 | M53: 5.38366
A54: 44 | B54: ASTERDM | C54: 409.9 | D54: 411.48 | E54: 405.47 | F54: 401.03 | G54: 395.02 | H54: 415.92 | I54: 421.93 | J54: 426.37 | K54: 417.5 | L54: 407.05 | M54: 4.88146
A55: 45 | B55: ASTRAZEN | C55: 6737.3 | D55: 6772.42 | E55: 6684.83 | F55: 6632.37 | G55: 6544.78 | H55: 6824.88 | I55: 6912.47 | J55: 6964.93 | K55: 6860 | L55: 6719.95 | M55: 0.03672
A56: 46 | B56: ASTRAL | C56: 1958.1 | D56: 1961.97 | E56: 1942.18 | F56: 1926.27 | G56: 1906.48 | H56: 1977.88 | I56: 1997.67 | J56: 2013.58 | K56: 1981.75 | L56: 1946.05 | M56: 7.0879
A57: 47 | B57: ATUL | C57: 7899.2 | D57: 7880.30 | E57: 7812.60 | F57: 7726.00 | G57: 7658.30 | H57: 7966.90 | I57: 8034.60 | J57: 8121.20 | K57: 7948 | L57: 7793.7 | M57: 0.21101
A58: 48 | B58: AUROPHARMA | C58: 1564.2 | D58: 1562.50 | E58: 1546.65 | F58: 1529.10 | G58: 1513.25 | H58: 1580.05 | I58: 1595.90 | J58: 1613.45 | K58: 1578.35 | L58: 1544.95 | M58: 9.99085
A59: 49 | B59: AVANTIFEED | C59: 670.45 | D59: 679.17 | E59: 658.33 | F59: 646.22 | G59: 625.38 | H59: 691.28 | I59: 712.12 | J59: 724.23 | K59: 700 | L59: 667.05 | M59: 5.69646
A60: 50 | B60: DMART | C60: 4964.85 | D60: 4955.12 | E60: 4914.73 | F60: 4864.62 | G60: 4824.23 | H60: 5005.23 | I60: 5045.62 | J60: 5095.73 | K60: 4995.5 | L60: 4905 | M60: 5.04521
A61: 51 | B61: AXISBANK | C61: 1170.95 | D61: 1174.00 | E61: 1166.30 | F61: 1161.65 | G61: 1153.95 | H61: 1178.65 | I61: 1186.35 | J61: 1191.00 | K61: 1181.7 | L61: 1169.35 | M61: 54.83503
A62: 52 | B62: BEML | C62: 3895.55 | D62: 3890.90 | E62: 3866.80 | F62: 3838.05 | G62: 3813.95 | H62: 3919.65 | I62: 3943.75 | J62: 3972.50 | K62: 3915 | L62: 3862.15 | M62: 1.16656
A63: 53 | B63: BLS | C63: 434.05 | D63: 436.62 | E63: 423.93 | F63: 413.82 | G63: 401.13 | H63: 446.73 | I63: 459.42 | J63: 469.53 | K63: 449.3 | L63: 426.5 | M63: 60.68794
A64: 54 | B64: BSE | C64: 2780.65 | D64: 2785.85 | E64: 2736.30 | F64: 2691.95 | G64: 2642.40 | H64: 2830.20 | I64: 2879.75 | J64: 2924.10 | K64: 2835.4 | L64: 2741.5 | M64: 15.71064
A65: 55 | B65: BAJAJ-AUTO | C65: 10656.75 | D65: 10611.02 | E65: 10507.03 | F65: 10357.32 | G65: 10253.33 | H65: 10760.73 | I65: 10864.72 | J65: 11014.43 | K65: 10715 | L65: 10461.3 | M65: 3.38792
A66: 56 | B66: BAJFINANCE | C66: 6900 | D66: 6889.67 | E66: 6862.33 | F66: 6824.67 | G66: 6797.33 | H66: 6927.33 | I66: 6954.67 | J66: 6992.33 | K66: 6917 | L66: 6852 | M66: 8.48986
A67: 57 | B67: BAJAJFINSV | C67: 1713.5 | D67: 1716.18 | E67: 1697.37 | F67: 1681.23 | G67: 1662.42 | H67: 1732.32 | I67: 1751.13 | J67: 1767.27 | K67: 1735 | L67: 1700.05 | M67: 14.44329
A68: 58 | B68: BAJAJHLDNG | C68: 9972.45 | D68: 10082.18 | E68: 9755.37 | F68: 9538.28 | G68: 9211.47 | H68: 10299.27 | I68: 10626.08 | J68: 10843.17 | K68: 10409 | L68: 9865.1 | M68: 1.89405
A69: 59 | B69: BALAMINES | C69: 2193.7 | D69: 2207.58 | E69: 2174.17 | F69: 2154.63 | G69: 2121.22 | H69: 2227.12 | I69: 2260.53 | J69: 2280.07 | K69: 2241 | L69: 2188.05 | M69: 0.3287
A70: 60 | B70: BALKRISIND | C70: 2820.45 | D70: 2821.15 | E70: 2805.35 | F70: 2790.25 | G70: 2774.45 | H70: 2836.25 | I70: 2852.05 | J70: 2867.15 | K70: 2836.95 | L70: 2806.05 | M70: 3.71026
A71: 61 | B71: BALRAMCHIN | C71: 587.4 | D71: 582.58 | E71: 574.22 | F71: 561.03 | G71: 552.67 | H71: 595.77 | I71: 604.13 | J71: 617.32 | K71: 590.95 | L71: 569.4 | M71: 48.74097
A72: 62 | B72: BANDHANBNK | C72: 196.66 | D72: 198.54 | E72: 194.24 | F72: 191.82 | G72: 187.52 | H72: 200.96 | I72: 205.26 | J72: 207.68 | K72: 202.84 | L72: 196.12 | M72: 128.62179
A73: 63 | B73: BANKBARODA | C73: 249.85 | D73: 249.85 | E73: 248.05 | F73: 246.25 | G73: 244.45 | H73: 251.65 | I73: 253.45 | J73: 255.25 | K73: 251.65 | L73: 248.05 | M73: 165.68081
A74: 64 | B74: BANKINDIA | C74: 117.93 | D74: 118.31 | E74: 117.42 | F74: 116.91 | G74: 116.02 | H74: 118.82 | I74: 119.71 | J74: 120.22 | K74: 119.2 | L74: 117.8 | M74: 20.33737
A75: 65 | B75: MAHABANK | C75: 62.84 | D75: 62.98 | E75: 62.35 | F75: 61.85 | G75: 61.22 | H75: 63.48 | I75: 64.11 | J75: 64.61 | K75: 63.62 | L75: 62.49 | M75: 113.97984
A76: 66 | B76: BATAINDIA | C76: 1449.85 | D76: 1452.93 | E76: 1436.92 | F76: 1423.98 | G76: 1407.97 | H76: 1465.87 | I76: 1481.88 | J76: 1494.82 | K76: 1468.95 | L76: 1440 | M76: 2.57139
A77: 67 | B77: BAYERCROP | C77: 6363.05 | D77: 6381.77 | E77: 6303.53 | F77: 6244.02 | G77: 6165.78 | H77: 6441.28 | I77: 6519.52 | J77: 6579.03 | K77: 6460 | L77: 6322.25 | M77: 0.12705
A78: 68 | B78: BERGEPAINT | C78: 573.85 | D78: 576.35 | E78: 569.00 | F78: 564.15 | G78: 556.80 | H78: 581.20 | I78: 588.55 | J78: 593.40 | K78: 583.7 | L78: 571.5 | M78: 6.55824
A79: 69 | B79: BDL | C79: 1323.25 | D79: 1321.05 | E79: 1312.65 | F79: 1302.05 | G79: 1293.65 | H79: 1331.65 | I79: 1340.05 | J79: 1350.65 | K79: 1329.45 | L79: 1310.45 | M79: 7.11054
A80: 70 | B80: BEL | C80: 299.95 | D80: 301.32 | E80: 298.13 | F80: 296.32 | G80: 293.13 | H80: 303.13 | I80: 306.32 | J80: 308.13 | K80: 304.5 | L80: 299.5 | M80: 140.05947
A81: 71 | B81: BHARATFORG | C81: 1584.5 | D81: 1594.58 | E81: 1569.17 | F81: 1553.83 | G81: 1528.42 | H81: 1609.92 | I81: 1635.33 | J81: 1650.67 | K81: 1620 | L81: 1579.25 | M81: 9.27975
A82: 72 | B82: BHEL | C82: 294.6 | D82: 295.77 | E82: 292.78 | F82: 290.97 | G82: 287.98 | H82: 297.58 | I82: 300.57 | J82: 302.38 | K82: 298.75 | L82: 293.95 | M82: 65.79323
A83: 73 | B83: BPCL | C83: 348.15 | D83: 350.18 | E83: 344.62 | F83: 341.08 | G83: 335.52 | H83: 353.72 | I83: 359.28 | J83: 362.82 | K83: 355.75 | L83: 346.65 | M83: 72.95981
A84: 74 | B84: BHARTIARTL | C84: 1556.35 | D84: 1547.50 | E84: 1530.50 | F84: 1504.65 | G84: 1487.65 | H84: 1573.35 | I84: 1590.35 | J84: 1616.20 | K84: 1564.5 | L84: 1521.65 | M84: 62.25319
A85: 75 | B85: BIKAJI | C85: 831.2 | D85: 838.12 | E85: 819.23 | F85: 807.27 | G85: 788.38 | H85: 850.08 | I85: 868.97 | J85: 880.93 | K85: 857 | L85: 826.15 | M85: 2.68937
A86: 76 | B86: BIOCON | C86: 356.7 | D86: 358.07 | E86: 352.38 | F86: 348.07 | G86: 342.38 | H86: 362.38 | I86: 368.07 | J86: 372.38 | K86: 363.75 | L86: 353.75 | M86: 66.3672
A87: 77 | B87: BIRLACORPN | C87: 1332.65 | D87: 1334.53 | E87: 1323.12 | F87: 1313.58 | G87: 1302.17 | H87: 1344.07 | I87: 1355.48 | J87: 1365.02 | K87: 1345.95 | L87: 1325 | M87: 1.02268
A88: 78 | B88: BSOFT | C88: 661.35 | D88: 655.22 | E88: 641.73 | F88: 622.12 | G88: 608.63 | H88: 674.83 | I88: 688.32 | J88: 707.93 | K88: 668.7 | L88: 635.6 | M88: 83.88597
A89: 79 | B89: BLUEDART | C89: 8275.6 | D89: 8268.70 | E89: 8187.40 | F89: 8099.20 | G89: 8017.90 | H89: 8356.90 | I89: 8438.20 | J89: 8526.40 | K89: 8350 | L89: 8180.5 | M89: 0.17806
A90: 80 | B90: BLUESTARCO | C90: 1746.65 | D90: 1739.13 | E90: 1726.72 | F90: 1706.78 | G90: 1694.37 | H90: 1759.07 | I90: 1771.48 | J90: 1791.42 | K90: 1751.55 | L90: 1719.2 | M90: 3.22096
A91: 81 | B91: BBTC | C91: 2574.9 | D91: 2577.88 | E91: 2533.77 | F91: 2492.63 | G91: 2448.52 | H91: 2619.02 | I91: 2663.13 | J91: 2704.27 | K91: 2622 | L91: 2536.75 | M91: 1.20534
A92: 82 | B92: BORORENEW | C92: 526.35 | D92: 525.97 | E92: 513.13 | F92: 499.92 | G92: 487.08 | H92: 539.18 | I92: 552.02 | J92: 565.23 | K92: 538.8 | L92: 512.75 | M92: 16.61099
A93: 83 | B93: BOSCHLTD | C93: 31940.15 | D93: 32091.63 | E93: 31663.32 | F93: 31386.48 | G93: 30958.17 | H93: 32368.47 | I93: 32796.78 | J93: 33073.62 | K93: 32519.95 | L93: 31814.8 | M93: 0.26366
A94: 84 | B94: BRIGADE | C94: 1173.6 | D94: 1177.45 | E94: 1157.25 | F94: 1140.90 | G94: 1120.70 | H94: 1193.80 | I94: 1214.00 | J94: 1230.35 | K94: 1197.65 | L94: 1161.1 | M94: 2.98409
A95: 85 | B95: BRITANNIA | C95: 5703.35 | D95: 5722.93 | E95: 5670.47 | F95: 5637.58 | G95: 5585.12 | H95: 5755.82 | I95: 5808.28 | J95: 5841.17 | K95: 5775.4 | L95: 5690.05 | M95: 1.61445
A96: 86 | B96: MAPMYINDIA | C96: 2133.25 | D96: 2137.87 | E96: 2078.98 | F96: 2024.72 | G96: 1965.83 | H96: 2192.13 | I96: 2251.02 | J96: 2305.28 | K96: 2196.75 | L96: 2083.6 | M96: 3.78005
A97: 87 | B97: CCL | C97: 716.95 | D97: 714.32 | E97: 706.63 | F97: 696.32 | G97: 688.63 | H97: 724.63 | I97: 732.32 | J97: 742.63 | K97: 722 | L97: 704 | M97: 1.48118
A98: 88 | B98: CESC | C98: 204.11 | D98: 205.34 | E98: 201.39 | F98: 198.66 | G98: 194.71 | H98: 208.07 | I98: 212.02 | J98: 214.75 | K98: 209.3 | L98: 202.62 | M98: 126.74762
A99: 89 | B99: CGPOWER | C99: 711.8 | D99: 716.58 | E99: 702.32 | F99: 692.83 | G99: 678.57 | H99: 726.07 | I99: 740.33 | J99: 749.82 | K99: 730.85 | L99: 707.1 | M99: 15.468
A100: 90 | B100: CIEINDIA | C100: 584.05 | D100: 582.92 | E100: 574.83 | F100: 565.62 | G100: 557.53 | H100: 592.13 | I100: 600.22 | J100: 609.43 | K100: 591 | L100: 573.7 | M100: 2.93831
A101: 91 | B101: CRISIL | C101: 4538.05 | D101: 4526.68 | E101: 4493.37 | F101: 4448.68 | G101: 4415.37 | H101: 4571.37 | I101: 4604.68 | J101: 4649.37 | K101: 4560 | L101: 4482 | M101: 0.14469
A102: 92 | B102: CSBBANK | C102: 323.8 | D102: 324.02 | E102: 322.08 | F102: 320.37 | G102: 318.43 | H102: 325.73 | I102: 327.67 | J102: 329.38 | K102: 325.95 | L102: 322.3 | M102: 1.29872
A103: 93 | B103: CAMPUS | C103: 280.45 | D103: 282.13 | E103: 278.32 | F103: 276.18 | G103: 272.37 | H103: 284.27 | I103: 288.08 | J103: 290.22 | K103: 285.95 | L103: 280 | M103: 2.9849
A104: 94 | B104: CANFINHOME | C104: 873.7 | D104: 869.88 | E104: 862.07 | F104: 850.43 | G104: 842.62 | H104: 881.52 | I104: 889.33 | J104: 900.97 | K104: 877.7 | L104: 858.25 | M104: 6.69843
A105: 95 | B105: CANBK | C105: 110.23 | D105: 110.42 | E105: 109.63 | F105: 109.04 | G105: 108.25 | H105: 111.01 | I105: 111.80 | J105: 112.39 | K105: 111.2 | L105: 109.82 | M105: 116.86742
A106: 96 | B106: CAPLIPOINT | C106: 1847.8 | D106: 1878.73 | E106: 1800.27 | F106: 1752.73 | G106: 1674.27 | H106: 1926.27 | I106: 2004.73 | J106: 2052.27 | K106: 1957.2 | L106: 1831.2 | M106: 3.13661
A107: 97 | B107: CGCL | C107: 213.77 | D107: 213.69 | E107: 211.48 | F107: 209.20 | G107: 206.99 | H107: 215.97 | I107: 218.18 | J107: 220.46 | K107: 215.89 | L107: 211.4 | M107: 1.92157
A108: 98 | B108: CARBORUNIV | C108: 1509.8 | D108: 1525.58 | E108: 1492.22 | F108: 1474.63 | G108: 1441.27 | H108: 1543.17 | I108: 1576.53 | J108: 1594.12 | K108: 1558.95 | L108: 1508 | M108: 0.95377
A109: 99 | B109: CASTROLIND | C109: 274.25 | D109: 275.87 | E109: 269.88 | F109: 265.52 | G109: 259.53 | H109: 280.23 | I109: 286.22 | J109: 290.58 | K109: 281.85 | L109: 271.5 | M109: 111.16922
A110: 100 | B110: CEATLTD | C110: 2842.75 | D110: 2872.10 | E110: 2789.20 | F110: 2735.65 | G110: 2652.75 | H110: 2925.65 | I110: 3008.55 | J110: 3062.10 | K110: 2955 | L110: 2818.55 | M110: 2.39735
A111: 101 | B111: CELLO | C111: 888.4 | D111: 894.37 | E111: 879.03 | F111: 869.67 | G111: 854.33 | H111: 903.73 | I111: 919.07 | J111: 928.43 | K111: 909.7 | L111: 885 | M111: 0.85452
A112: 102 | B112: CENTRALBK | C112: 61.13 | D112: 61.24 | E112: 60.78 | F112: 60.44 | G112: 59.98 | H112: 61.58 | I112: 62.04 | J112: 62.38 | K112: 61.69 | L112: 60.89 | M112: 32.00457
A113: 103 | B113: CDSL | C113: 1493.25 | D113: 1501.08 | E113: 1482.17 | F113: 1471.08 | G113: 1452.17 | H113: 1512.17 | I113: 1531.08 | J113: 1542.17 | K113: 1520 | L113: 1490 | M113: 27.92969
A114: 104 | B114: CENTURYPLY | C114: 793.65 | D114: 791.53 | E114: 783.17 | F114: 772.68 | G114: 764.32 | H114: 802.02 | I114: 810.38 | J114: 820.87 | K114: 799.9 | L114: 781.05 | M114: 1.3458
A115: 105 | B115: CENTURYTEX | C115: 2492.25 | D115: 2490.88 | E115: 2457.77 | F115: 2423.28 | G115: 2390.17 | H115: 2525.37 | I115: 2558.48 | J115: 2592.97 | K115: 2524 | L115: 2456.4 | M115: 4.72022
A116: 106 | B116: CERA | C116: 9587.6 | D116: 9660.88 | E116: 9481.77 | F116: 9375.93 | G116: 9196.82 | H116: 9766.72 | I116: 9945.83 | J116: 10051.67 | K116: 9840 | L116: 9555.05 | M116: 0.08945
A117: 107 | B117: CHALET | C117: 810.4 | D117: 812.70 | E117: 800.90 | F117: 791.40 | G117: 779.60 | H117: 822.20 | I117: 834.00 | J117: 843.50 | K117: 824.5 | L117: 803.2 | M117: 1.08375
A118: 108 | B118: CHAMBLFERT | C118: 515.15 | D118: 517.83 | E118: 510.47 | F118: 505.78 | G118: 498.42 | H118: 522.52 | I118: 529.88 | J118: 534.57 | K118: 525.2 | L118: 513.15 | M118: 28.54496
A119: 109 | B119: CHEMPLASTS | C119: 499.65 | D119: 503.50 | E119: 492.00 | F119: 484.35 | G119: 472.85 | H119: 511.15 | I119: 522.65 | J119: 530.30 | K119: 515 | L119: 495.85 | M119: 2.23607
A120: 110 | B120: CHENNPETRO | C120: 970.1 | D120: 977.30 | E120: 960.90 | F120: 951.70 | G120: 935.30 | H120: 986.50 | I120: 1002.90 | J120: 1012.10 | K120: 993.7 | L120: 968.1 | M120: 4.10111
A121: 111 | B121: CHOLAHLDNG | C121: 1639.95 | D121: 1653.18 | E121: 1612.42 | F121: 1584.88 | G121: 1544.12 | H121: 1680.72 | I121: 1721.48 | J121: 1749.02 | K121: 1693.95 | L121: 1625.65 | M121: 10.03604
A122: 112 | B122: CHOLAFIN | C122: 1450.7 | D122: 1447.53 | E122: 1436.17 | F122: 1421.63 | G122: 1410.27 | H122: 1462.07 | I122: 1473.43 | J122: 1487.97 | K122: 1458.9 | L122: 1433 | M122: 10.14841
A123: 113 | B123: CIPLA | C123: 1618.2 | D123: 1614.47 | E123: 1598.93 | F123: 1579.67 | G123: 1564.13 | H123: 1633.73 | I123: 1649.27 | J123: 1668.53 | K123: 1630 | L123: 1595.2 | M123: 14.33847
A124: 114 | B124: CUB | C124: 169.69 | D124: 170.22 | E124: 168.55 | F124: 167.42 | G124: 165.75 | H124: 171.35 | I124: 173.02 | J124: 174.15 | K124: 171.88 | L124: 169.08 | M124: 20.72176
A125: 115 | B125: CLEAN | C125: 1514.1 | D125: 1524.00 | E125: 1500.10 | F125: 1486.10 | G125: 1462.20 | H125: 1538.00 | I125: 1561.90 | J125: 1575.90 | K125: 1547.9 | L125: 1510 | M125: 1.12527
A126: 116 | B126: COALINDIA | C126: 526.35 | D126: 529.12 | E126: 522.68 | F126: 519.02 | G126: 512.58 | H126: 532.78 | I126: 539.22 | J126: 542.88 | K126: 535.55 | L126: 525.45 | M126: 60.66259
A127: 117 | B127: COCHINSHIP | C127: 2012.7 | D127: 2031.63 | E127: 1989.07 | F127: 1965.43 | G127: 1922.87 | H127: 2055.27 | I127: 2097.83 | J127: 2121.47 | K127: 2074.2 | L127: 2008 | M127: 12.39616
A128: 118 | B128: COFORGE | C128: 6255.45 | D128: 6227.12 | E128: 6109.23 | F128: 5963.02 | G128: 5845.13 | H128: 6373.33 | I128: 6491.22 | J128: 6637.43 | K128: 6345 | L128: 6080.9 | M128: 6.95937
A129: 119 | B129: COLPAL | C129: 3594.6 | D129: 3574.50 | E129: 3543.10 | F129: 3491.60 | G129: 3460.20 | H129: 3626.00 | I129: 3657.40 | J129: 3708.90 | K129: 3605.9 | L129: 3523 | M129: 2.00695
A130: 120 | B130: CAMS | C130: 4337.95 | D130: 4367.90 | E130: 4295.85 | F130: 4253.75 | G130: 4181.70 | H130: 4410.00 | I130: 4482.05 | J130: 4524.15 | K130: 4439.95 | L130: 4325.8 | M130: 1.89642
A131: 121 | B131: CONCORDBIO | C131: 1612.6 | D131: 1608.63 | E131: 1588.47 | F131: 1564.33 | G131: 1544.17 | H131: 1632.77 | I131: 1652.93 | J131: 1677.07 | K131: 1628.8 | L131: 1584.5 | M131: 0.47377
A132: 122 | B132: CONCOR | C132: 971.95 | D132: 976.45 | E132: 966.00 | F132: 960.05 | G132: 949.60 | H132: 982.40 | I132: 992.85 | J132: 998.80 | K132: 986.9 | L132: 970.5 | M132: 13.54925
A133: 123 | B133: COROMANDEL | C133: 1735.95 | D133: 1738.90 | E133: 1723.05 | F133: 1710.15 | G133: 1694.30 | H133: 1751.80 | I133: 1767.65 | J133: 1780.55 | K133: 1754.75 | L133: 1726 | M133: 2.89715
A134: 124 | B134: CRAFTSMAN | C134: 6155.95 | D134: 6164.05 | E134: 6036.40 | F134: 5916.85 | G134: 5789.20 | H134: 6283.60 | I134: 6411.25 | J134: 6530.80 | K134: 6291.7 | L134: 6044.5 | M134: 0.68246
A135: 125 | B135: CREDITACC | C135: 1201.75 | D135: 1205.40 | E135: 1192.90 | F135: 1184.05 | G135: 1171.55 | H135: 1214.25 | I135: 1226.75 | J135: 1235.60 | K135: 1217.9 | L135: 1196.55 | M135: 1.86509
A136: 126 | B136: CROMPTON | C136: 462.8 | D136: 463.83 | E136: 456.07 | F136: 449.33 | G136: 441.57 | H136: 470.57 | I136: 478.33 | J136: 485.07 | K136: 471.6 | L136: 457.1 | M136: 22.00386
A137: 127 | B137: CUMMINSIND | C137: 3737.05 | D137: 3748.42 | E137: 3711.83 | F137: 3686.62 | G137: 3650.03 | H137: 3773.63 | I137: 3810.22 | J137: 3835.43 | K137: 3785 | L137: 3723.2 | M137: 6.69653
A138: 128 | B138: CYIENT | C138: 2012.7 | D138: 2002.27 | E138: 1972.53 | F138: 1932.37 | G138: 1902.63 | H138: 2042.43 | I138: 2072.17 | J138: 2112.33 | K138: 2032 | L138: 1962.1 | M138: 3.78866
A139: 129 | B139: DCMSHRIRAM | C139: 1139.95 | D139: 1147.65 | E139: 1127.35 | F139: 1114.75 | G139: 1094.45 | H139: 1160.25 | I139: 1180.55 | J139: 1193.15 | K139: 1167.95 | L139: 1135.05 | M139: 0.52461
A140: 130 | B140: DLF | C140: 837.1 | D140: 840.20 | E140: 830.90 | F140: 824.70 | G140: 815.40 | H140: 846.40 | I140: 855.70 | J140: 861.90 | K140: 849.5 | L140: 834 | M140: 21.35655
A141: 131 | B141: DOMS | C141: 2509.2 | D141: 2544.07 | E141: 2465.13 | F141: 2421.07 | G141: 2342.13 | H141: 2588.13 | I141: 2667.07 | J141: 2711.13 | K141: 2623 | L141: 2500 | M141: 1.10894
A142: 132 | B142: DABUR | C142: 644.4 | D142: 643.97 | E142: 638.43 | F142: 632.47 | G142: 626.93 | H142: 649.93 | I142: 655.47 | J142: 661.43 | K142: 649.5 | L142: 638 | M142: 11.49783
A143: 133 | B143: DALBHARAT | C143: 1824.3 | D143: 1824.18 | E143: 1810.52 | F143: 1796.73 | G143: 1783.07 | H143: 1837.97 | I143: 1851.63 | J143: 1865.42 | K143: 1837.85 | L143: 1810.4 | M143: 4.87809
A144: 134 | B144: DATAPATTNS | C144: 2871.85 | D144: 2877.25 | E144: 2854.60 | F144: 2837.35 | G144: 2814.70 | H144: 2894.50 | I144: 2917.15 | J144: 2934.40 | K144: 2899.9 | L144: 2860 | M144: 0.82769
A145: 135 | B145: DEEPAKFERT | C145: 1069.75 | D145: 1073.60 | E145: 1058.20 | F145: 1046.65 | G145: 1031.25 | H145: 1085.15 | I145: 1100.55 | J145: 1112.10 | K145: 1089 | L145: 1062.05 | M145: 5.62772
A146: 136 | B146: DEEPAKNTR | C146: 2886.55 | D146: 2877.03 | E146: 2844.52 | F146: 2802.48 | G146: 2769.97 | H146: 2919.07 | I146: 2951.58 | J146: 2993.62 | K146: 2909.55 | L146: 2835 | M146: 3.89112
A147: 137 | B147: DELHIVERY | C147: 421.05 | D147: 423.68 | E147: 417.37 | F147: 413.68 | G147: 407.37 | H147: 427.37 | I147: 433.68 | J147: 437.37 | K147: 430 | L147: 420 | M147: 9.73965
A148: 138 | B148: DEVYANI | C148: 178.81 | D148: 180.09 | E148: 176.89 | F148: 174.96 | G148: 171.76 | H148: 182.02 | I148: 185.22 | J148: 187.15 | K148: 183.3 | L148: 178.17 | M148: 29.68757
A149: 139 | B149: DIVISLAB | C149: 5030.7 | D149: 4995.22 | E149: 4894.43 | F149: 4758.17 | G149: 4657.38 | H149: 5131.48 | I149: 5232.27 | J149: 5368.53 | K149: 5096 | L149: 4858.95 | M149: 9.6399
A150: 140 | B150: DIXON | C150: 13247.8 | D150: 13273.60 | E150: 13132.20 | F150: 13016.60 | G150: 12875.20 | H150: 13389.20 | I150: 13530.60 | J150: 13646.20 | K150: 13415 | L150: 13158 | M150: 3.63452
A151: 141 | B151: LALPATHLAB | C151: 3362.7 | D151: 3362.08 | E151: 3327.32 | F151: 3291.93 | G151: 3257.17 | H151: 3397.47 | I151: 3432.23 | J151: 3467.62 | K151: 3396.85 | L151: 3326.7 | M151: 1.62145
A152: 142 | B152: DRREDDY | C152: 6999.3 | D152: 6990.18 | E152: 6932.12 | F152: 6864.93 | G152: 6806.87 | H152: 7057.37 | I152: 7115.43 | J152: 7182.62 | K152: 7048.25 | L152: 6923 | M152: 3.26517
A153: 143 | B153: EIDPARRY | C153: 811.95 | D153: 817.02 | E153: 794.88 | F153: 777.82 | G153: 755.68 | H153: 834.08 | I153: 856.22 | J153: 873.28 | K153: 839.15 | L153: 799.95 | M153: 6.37716
A154: 144 | B154: EIHOTEL | C154: 380.8 | D154: 383.43 | E154: 377.17 | F154: 373.53 | G154: 367.27 | H154: 387.07 | I154: 393.33 | J154: 396.97 | K154: 389.7 | L154: 379.8 | M154: 3.42524
A155: 145 | B155: EPL | C155: 255.76 | D155: 257.45 | E155: 252.40 | F155: 249.04 | G155: 243.99 | H155: 260.81 | I155: 265.86 | J155: 269.22 | K155: 262.5 | L155: 254.09 | M155: 12.29815
A156: 146 | B156: EASEMYTRIP | C156: 40.57 | D156: 40.56 | E156: 40.01 | F156: 39.44 | G156: 38.89 | H156: 41.13 | I156: 41.68 | J156: 42.25 | K156: 41.12 | L156: 40 | M156: 263.89945
A157: 147 | B157: EICHERMOT | C157: 4946.85 | D157: 4920.87 | E157: 4865.98 | F157: 4785.12 | G157: 4730.23 | H157: 5001.73 | I157: 5056.62 | J157: 5137.48 | K157: 4975.75 | L157: 4840 | M157: 4.24484
A158: 148 | B158: ELECON | C158: 615.85 | D158: 615.97 | E158: 610.83 | F158: 605.82 | G158: 600.68 | H158: 620.98 | I158: 626.12 | J158: 631.13 | K158: 621.1 | L158: 610.95 | M158: 1.98671
A159: 149 | B159: ELGIEQUIP | C159: 722.3 | D159: 722.07 | E159: 714.23 | F159: 706.17 | G159: 698.33 | H159: 730.13 | I159: 737.97 | J159: 746.03 | K159: 729.9 | L159: 714 | M159: 4.5793
A160: 150 | B160: EMAMILTD | C160: 839.75 | D160: 836.22 | E160: 829.88 | F160: 820.02 | G160: 813.68 | H160: 846.08 | I160: 852.42 | J160: 862.28 | K160: 842.55 | L160: 826.35 | M160: 5.43477
A161: 151 | B161: ENDURANCE | C161: 2487.25 | D161: 2498.77 | E161: 2459.53 | F161: 2431.82 | G161: 2392.58 | H161: 2526.48 | I161: 2565.72 | J161: 2593.43 | K161: 2538 | L161: 2471.05 | M161: 0.80487
A162: 152 | B162: ENGINERSIN | C162: 225.55 | D162: 223.37 | E162: 217.73 | F162: 209.92 | G162: 204.28 | H162: 231.18 | I162: 236.82 | J162: 244.63 | K162: 229 | L162: 215.55 | M162: 174.36924
A163: 153 | B163: EQUITASBNK | C163: 81.83 | D163: 81.79 | E163: 81.09 | F163: 80.34 | G163: 79.64 | H163: 82.54 | I163: 83.24 | J163: 83.99 | K163: 82.5 | L163: 81.05 | M163: 33.95996
A164: 154 | B164: ERIS | C164: 1331.6 | D164: 1311.07 | E164: 1271.13 | F164: 1210.67 | G164: 1170.73 | H164: 1371.53 | I164: 1411.47 | J164: 1471.93 | K164: 1351 | L164: 1250.6 | M164: 1.98544
A165: 155 | B165: ESCORTS | C165: 3854.75 | D165: 3864.85 | E165: 3820.75 | F165: 3786.75 | G165: 3742.65 | H165: 3898.85 | I165: 3942.95 | J165: 3976.95 | K165: 3908.95 | L165: 3830.85 | M165: 0.8591
A166: 156 | B166: EXIDEIND | C166: 491.7 | D166: 494.20 | E166: 487.65 | F166: 483.60 | G166: 477.05 | H166: 498.25 | I166: 504.80 | J166: 508.85 | K166: 500.75 | L166: 490.15 | M166: 21.46014
A167: 157 | B167: FDC | C167: 532.65 | D167: 537.05 | E167: 524.60 | F167: 516.55 | G167: 504.10 | H167: 545.10 | I167: 557.55 | J167: 565.60 | K167: 549.5 | L167: 529 | M167: 6.1818
A168: 158 | B168: NYKAA | C168: 217.15 | D168: 219.74 | E168: 212.78 | F168: 208.41 | G168: 201.45 | H168: 224.11 | I168: 231.07 | J168: 235.44 | K168: 226.7 | L168: 215.37 | M168: 175.09247
A169: 159 | B169: FEDERALBNK | C169: 195.56 | D169: 195.66 | E169: 193.83 | F169: 192.10 | G169: 190.27 | H169: 197.39 | I169: 199.22 | J169: 200.95 | K169: 197.49 | L169: 193.93 | M169: 105.80774
A170: 160 | B170: FACT | C170: 979.3 | D170: 982.40 | E170: 973.00 | F170: 966.70 | G170: 957.30 | H170: 988.70 | I170: 998.10 | J170: 1004.40 | K170: 991.8 | L170: 976.1 | M170: 2.66522
A171: 161 | B171: FINEORG | C171: 5521.55 | D171: 5573.22 | E171: 5448.43 | F171: 5375.32 | G171: 5250.53 | H171: 5646.33 | I171: 5771.12 | J171: 5844.23 | K171: 5698 | L171: 5500.1 | M171: 0.21643
A172: 162 | B172: FINCABLES | C172: 1464.1 | D172: 1472.10 | E172: 1452.05 | F172: 1440.00 | G172: 1419.95 | H172: 1484.15 | I172: 1504.20 | J172: 1516.25 | K172: 1492.15 | L172: 1460.05 | M172: 0.84635
A173: 163 | B173: FINPIPE | C173: 297.45 | D173: 295.15 | E173: 291.35 | F173: 285.25 | G173: 281.45 | H173: 301.25 | I173: 305.05 | J173: 311.15 | K173: 298.95 | L173: 289.05 | M173: 10.8098
A174: 164 | B174: FSL | C174: 305.95 | D174: 308.22 | E174: 302.73 | F174: 299.52 | G174: 294.03 | H174: 311.43 | I174: 316.92 | J174: 320.13 | K174: 313.7 | L174: 305 | M174: 46.57442
A175: 165 | B175: FIVESTAR | C175: 743.8 | D175: 739.37 | E175: 730.73 | F175: 717.67 | G175: 709.03 | H175: 752.43 | I175: 761.07 | J175: 774.13 | K175: 748 | L175: 726.3 | M175: 2.60892
A176: 166 | B176: FORTIS | C176: 546.3 | D176: 546.93 | E176: 535.87 | F176: 525.43 | G176: 514.37 | H176: 557.37 | I176: 568.43 | J176: 578.87 | K176: 558 | L176: 536.5 | M176: 18.92589
A177: 167 | B177: GAIL | C177: 235.47 | D177: 235.88 | E177: 233.75 | F177: 232.04 | G177: 229.91 | H177: 237.59 | I177: 239.72 | J177: 241.43 | K177: 238 | L177: 234.16 | M177: 117.4587
A178: 168 | B178: GMMPFAUDLR | C178: 1401.75 | D178: 1437.25 | E178: 1344.50 | F178: 1287.25 | G178: 1194.50 | H178: 1494.50 | I178: 1587.25 | J178: 1644.50 | K178: 1530 | L178: 1380 | M178: 65.64312
A179: 169 | B179: GMRINFRA | C179: 94.66 | D179: 95.20 | E179: 93.63 | F179: 92.61 | G179: 91.04 | H179: 96.22 | I179: 97.79 | J179: 98.81 | K179: 96.76 | L179: 94.17 | M179: 608.39359
A180: 170 | B180: GRSE | C180: 1773.5 | D180: 1785.17 | E180: 1758.33 | F180: 1743.17 | G180: 1716.33 | H180: 1800.33 | I180: 1827.17 | J180: 1842.33 | K180: 1812 | L180: 1770 | M180: 6.46857
A181: 171 | B181: GICRE | C181: 416.75 | D181: 418.65 | E181: 411.40 | F181: 406.05 | G181: 398.80 | H181: 424.00 | I181: 431.25 | J181: 436.60 | K181: 425.9 | L181: 413.3 | M181: 16.46919
A182: 172 | B182: GILLETTE | C182: 8979.15 | D182: 8949.92 | E182: 8873.28 | F182: 8767.42 | G182: 8690.78 | H182: 9055.78 | I182: 9132.42 | J182: 9238.28 | K182: 9026.55 | L182: 8844.05 | M182: 0.35732
A183: 173 | B183: GLAND | C183: 1859.4 | D183: 1866.82 | E183: 1843.63 | F183: 1827.87 | G183: 1804.68 | H183: 1882.58 | I183: 1905.77 | J183: 1921.53 | K183: 1890 | L183: 1851.05 | M183: 4.15617
A184: 174 | B184: GLAXO | C184: 2805.5 | D184: 2830.18 | E184: 2765.32 | F184: 2725.13 | G184: 2660.27 | H184: 2870.37 | I184: 2935.23 | J184: 2975.42 | K184: 2895.05 | L184: 2790 | M184: 1.31329
A185: 175 | B185: GLS | C185: 1043.55 | D185: 1036.90 | E185: 1018.90 | F185: 994.25 | G185: 976.25 | H185: 1061.55 | I185: 1079.55 | J185: 1104.20 | K185: 1054.9 | L185: 1012.25 | M185: 1.9727
A186: 176 | B186: GLENMARK | C186: 1707.45 | D186: 1704.82 | E186: 1697.63 | F186: 1687.82 | G186: 1680.63 | H186: 1714.63 | I186: 1721.82 | J186: 1731.63 | K186: 1712 | L186: 1695 | M186: 6.62569
A187: 177 | B187: MEDANTA | C187: 1085.9 | D187: 1079.48 | E187: 1064.97 | F187: 1044.03 | G187: 1029.52 | H187: 1100.42 | I187: 1114.93 | J187: 1135.87 | K187: 1094 | L187: 1058.55 | M187: 5.78207
A188: 178 | B188: GPIL | C188: 930.45 | D188: 939.10 | E188: 918.20 | F188: 905.95 | G188: 885.05 | H188: 951.35 | I188: 972.25 | J188: 984.50 | K188: 960 | L188: 926.85 | M188: 5.70017
A189: 179 | B189: GODFRYPHLP | C189: 5798.7 | D189: 5796.57 | E189: 5703.13 | F189: 5607.57 | G189: 5514.13 | H189: 5892.13 | I189: 5985.57 | J189: 6081.13 | K189: 5890 | L189: 5701 | M189: 0.80384
A190: 180 | B190: GODREJCP | C190: 1477.5 | D190: 1475.87 | E190: 1451.78 | F190: 1426.07 | G190: 1401.98 | H190: 1501.58 | I190: 1525.67 | J190: 1551.38 | K190: 1499.95 | L190: 1450.15 | M190: 5.78675
A191: 181 | B191: GODREJIND | C191: 1001 | D191: 1004.47 | E191: 991.68 | F191: 982.37 | G191: 969.58 | H191: 1013.78 | I191: 1026.57 | J191: 1035.88 | K191: 1017.25 | L191: 995.15 | M191: 2.67206
A192: 182 | B192: GODREJPROP | C192: 2887.7 | D192: 2889.33 | E192: 2873.72 | F192: 2859.73 | G192: 2844.12 | H192: 2903.32 | I192: 2918.93 | J192: 2932.92 | K192: 2904.95 | L192: 2875.35 | M192: 2.22426
A193: 183 | B193: GRANULES | C193: 706.45 | D193: 697.15 | E193: 682.30 | F193: 658.15 | G193: 643.30 | H193: 721.30 | I193: 736.15 | J193: 760.30 | K193: 712 | L193: 673 | M193: 60.17912
A194: 184 | B194: GRAPHITE | C194: 526.6 | D194: 528.98 | E194: 522.62 | F194: 518.63 | G194: 512.27 | H194: 532.97 | I194: 539.33 | J194: 543.32 | K194: 535.35 | L194: 525 | M194: 4.20912
A195: 185 | B195: GRASIM | C195: 2715.55 | D195: 2707.03 | E195: 2691.52 | F195: 2667.48 | G195: 2651.97 | H195: 2731.07 | I195: 2746.58 | J195: 2770.62 | K195: 2722.55 | L195: 2683 | M195: 9.81745
A196: 186 | B196: GESHIP | C196: 1308.9 | D196: 1307.75 | E196: 1298.00 | F196: 1287.10 | G196: 1277.35 | H196: 1318.65 | I196: 1328.40 | J196: 1339.30 | K196: 1317.5 | L196: 1296.85 | M196: 4.25315
A197: 187 | B197: GRINDWELL | C197: 2466.9 | D197: 2454.35 | E197: 2420.70 | F197: 2374.50 | G197: 2340.85 | H197: 2500.55 | I197: 2534.20 | J197: 2580.40 | K197: 2488 | L197: 2408.15 | M197: 1.56827
A198: 188 | B198: GAEL | C198: 142.35 | D198: 144.42 | E198: 139.13 | F198: 135.92 | G198: 130.63 | H198: 147.63 | I198: 152.92 | J198: 156.13 | K198: 149.7 | L198: 141.2 | M198: 59.05915
A199: 189 | B199: FLUOROCHEM | C199: 3275.35 | D199: 3279.27 | E199: 3246.08 | F199: 3216.82 | G199: 3183.63 | H199: 3308.53 | I199: 3341.72 | J199: 3370.98 | K199: 3312.45 | L199: 3250 | M199: 0.71519
A200: 190 | B200: GUJGASLTD | C200: 600.75 | D200: 600.42 | E200: 595.93 | F200: 591.12 | G200: 586.63 | H200: 605.23 | I200: 609.72 | J200: 614.53 | K200: 604.9 | L200: 595.6 | M200: 10.37391
A201: 191 | B201: GMDCLTD | C201: 369.6 | D201: 371.55 | E201: 366.15 | F201: 362.70 | G201: 357.30 | H201: 375.00 | I201: 380.40 | J201: 383.85 | K201: 376.95 | L201: 368.1 | M201: 6.97754
A202: 192 | B202: GNFC | C202: 675.7 | D202: 679.23 | E202: 668.77 | F202: 661.83 | G202: 651.37 | H202: 686.17 | I202: 696.63 | J202: 703.57 | K202: 689.7 | L202: 672.3 | M202: 7.74032
A203: 193 | B203: GPPL | C203: 228.91 | D203: 230.56 | E203: 226.35 | F203: 223.78 | G203: 219.57 | H203: 233.13 | I203: 237.34 | J203: 239.91 | K203: 234.78 | L203: 228 | M203: 16.01937
A204: 194 | B204: GSFC | C204: 235.22 | D204: 236.34 | E204: 233.88 | F204: 232.54 | G204: 230.08 | H204: 237.68 | I204: 240.14 | J204: 241.48 | K204: 238.8 | L204: 235 | M204: 15.58373
A205: 195 | B205: GSPL | C205: 396.35 | D205: 391.78 | E205: 383.57 | F205: 370.78 | G205: 362.57 | H205: 404.57 | I205: 412.78 | J205: 425.57 | K205: 400 | L205: 379 | M205: 96.83465
A206: 196 | B206: HEG | C206: 2022.1 | D206: 2027.13 | E206: 2010.07 | F206: 1998.03 | G206: 1980.97 | H206: 2039.17 | I206: 2056.23 | J206: 2068.27 | K206: 2044.2 | L206: 2015.1 | M206: 0.60417
... 320 more rows

Sheet Bulk Deals
E6: Back To Main Page
A7: Subject : | B7: BULK DEAL | D7: =Main!B10 -> 2024-08-29
A9: Date | B9: Scrip code | C9: Scrip Name | D9: Client Name | E9: Buy / Sell | F9: Quantity Traded | G9: Trade Price / Wt.Avg.trade price | H9: Exchange
A10: 2024-08-28 | B10: 531525 | C10: ACESOFT | D10: ACE TECHNOLOGIES | E10: SELL | F10: 32,431 | G10: 306 | H10: BSE
A11: 2024-08-28 | B11: 544224 | C11: AFCOM | D11: ISHAAN TRADEFIN LLP | E11: SELL | F11: 230,400 | G11: 437.61 | H11: BSE
A12: 2024-08-28 | B12: 544224 | C12: AFCOM | D12: ISHAAN TRADEFIN LLP | E12: BUY | F12: 168,000 | G12: 444.07 | H12: BSE
A13: 2024-08-28 | B13: 544224 | C13: AFCOM | D13: SAHASTRAA ADVISORS PRIVATE LIMITED | E13: BUY | F13: 82,800 | G13: 437.78 | H13: BSE
A14: 2024-08-28 | B14: 544224 | C14: AFCOM | D14: SAHASTRAA ADVISORS PRIVATE LIMITED | E14: SELL | F14: 204,000 | G14: 431.88 | H14: BSE
A15: 2024-08-28 | B15: 540135 | C15: ARCFIN | D15: SKSE SECURITIES LIMITED CORP CM/TM PROP A/C | E15: BUY | F15: 4,097,351 | G15: 1.44 | H15: BSE
A16: 2024-08-28 | B16: 540135 | C16: ARCFIN | D16: SKSE SECURITIES LIMITED CORP CM/TM PROP A/C | E16: SELL | F16: 3,658,345 | G16: 1.46 | H16: BSE
A17: 2024-08-28 | B17: 544177 | C17: AZTEC | D17: AG DYNAMIC FUNDS LIMITED | E17: SELL | F17: 80,000 | G17: 118.54 | H17: BSE
A18: 2024-08-28 | B18: 539251 | C18: BALKRISHNA | D18: ANKITA VISHAL SHAH | E18: BUY | F18: 1,139 | G18: 25.5 | H18: BSE
A19: 2024-08-28 | B19: 539251 | C19: BALKRISHNA | D19: ANKITA VISHAL SHAH | E19: SELL | F19: 226,139 | G19: 27.87 | H19: BSE
A20: 2024-08-28 | B20: 543209 | C20: BILLWIN | D20: ANAND PRAKASH SHAH | E20: BUY | F20: 33,000 | G20: 64.13 | H20: BSE
A21: 2024-08-28 | B21: 543209 | C21: BILLWIN | D21: GLOBALWORTH SECURITIES LIMITED | E21: BUY | F21: 27,000 | G21: 61.42 | H21: BSE
A22: 2024-08-28 | B22: 543209 | C22: BILLWIN | D22: GLOBALWORTH SECURITIES LIMITED | E22: SELL | F22: 27,000 | G22: 61.15 | H22: BSE
A23: 2024-08-28 | B23: 540829 | C23: CHANDRIMA | D23: MULTIPLIER SHARE & STOCK ADVISORS PRIVATE LIMITED | E23: SELL | F23: 11,507 | G23: 28.9 | H23: BSE
A24: 2024-08-28 | B24: 531099 | C24: CHECKPOINT | D24: POOJA PANDAY | E24: SELL | F24: 28,498 | G24: 6.28 | H24: BSE
A25: 2024-08-28 | B25: 506365 | C25: CHEMOPH | D25: RAVAL NAMAN VIRENDRAKUMAR | E25: BUY | F25: 18,745 | G25: 65.2 | H25: BSE
A26: 2024-08-28 | B26: 506365 | C26: CHEMOPH | D26: MAHENDRABHAI GULABDAS PATEL | E26: SELL | F26: 18,444 | G26: 65.01 | H26: BSE
A27: 2024-08-28 | B27: 533407 | C27: CNOVAPETRO | D27: LEGENDS GLOBAL OPPORTUNITIES (SINGAPORE) PTE. LTD. | E27: BUY | F27: 1,255,000 | G27: 69.74 | H27: BSE
A28: 2024-08-28 | B28: 533407 | C28: CNOVAPETRO | D28: NEW LEAINA INVESTMENTS LIMITED | E28: SELL | F28: 1,255,000 | G28: 69.74 | H28: BSE
A29: 2024-08-28 | B29: 533407 | C29: CNOVAPETRO | D29: LOTUS GLOBAL INVESTMENTS LTD | E29: SELL | F29: 1,280,049 | G29: 70.5 | H29: BSE
A30: 2024-08-28 | B30: 533407 | C30: CNOVAPETRO | D30: ALBULA INVESTMENT FUND LTD | E30: BUY | F30: 1,280,049 | G30: 70.5 | H30: BSE
A31: 2024-08-28 | B31: 530755 | C31: CORNE | D31: ANKITA SNEH GADA | E31: BUY | F31: 47,989 | G31: 17.16 | H31: BSE
A32: 2024-08-28 | B32: 530755 | C32: CORNE | D32: SHASHIKANT GHEVARCHAND SURANA | E32: SELL | F32: 40,856 | G32: 17.16 | H32: BSE
A33: 2024-08-28 | B33: 530755 | C33: CORNE | D33: HIRJI PARBAT GADA | E33: BUY | F33: 54,000 | G33: 17.16 | H33: BSE
A34: 2024-08-28 | B34: 541299 | C34: DLCL | D34: ARJAN LAL CHANDANI | E34: SELL | F34: 24,000 | G34: 18.21 | H34: BSE
A35: 2024-08-28 | B35: 541299 | C35: DLCL | D35: ARJAN LAL CHANDANI | E35: BUY | F35: 4,000 | G35: 21.74 | H35: BSE
A36: 2024-08-28 | B36: 531758 | C36: GKCONS | D36: ANIL KUMAR GARG ANIL KUMAR GARG ANIL KUMAR GARG | E36: BUY | F36: 29,331 | G36: 15.87 | H36: BSE
A37: 2024-08-28 | B37: 514386 | C37: GUJCOTEX | D37: FARUKBHAI GULAMBHAI PATEL | E37: BUY | F37: 73,500 | G37: 6.78 | H37: BSE
A38: 2024-08-28 | B38: 513337 | C38: GUJTLRM | D38: SETU SECURITIES PVT. LTD. | E38: SELL | F38: 716,644 | G38: 14.63 | H38: BSE
A39: 2024-08-28 | B39: 540210 | C39: HEADSUP | D39: AUTHUM INVESTMENT & INFRASTRUCTURE LIMITED | E39: SELL | F39: 166,888 | G39: 14.01 | H39: BSE
A40: 2024-08-28 | B40: 543951 | C40: INNOVATUS | D40: MINIBOSS CONSULTANCY PRIVATE LIMITED | E40: SELL | F40: 30,000 | G40: 63.35 | H40: BSE
A41: 2024-08-28 | B41: 542924 | C41: JANUSCORP | D41: NITIN BAKSHI | E41: SELL | F41: 91,000 | G41: 9.2 | H41: BSE
A42: 2024-08-28 | B42: 538539 | C42: JTAPARIA | D42: NOVARATHANMAL PRAVEENKUMAR | E42: SELL | F42: 218,985 | G42: 29.35 | H42: BSE
A43: 2024-08-28 | B43: 535730 | C43: KHOOBSURAT | D43: VISAGAR FINANCIAL SERVICES LIMITED | E43: SELL | F43: 8,627,278 | G43: 1.15 | H43: BSE
A44: 2024-08-28 | B44: 544221 | C44: KIZI | D44: BONANZA PORTFOLIO LIMITED | E44: SELL | F44: 48,000 | G44: 40.02 | H44: BSE
A45: 2024-08-28 | B45: 544221 | C45: KIZI | D45: BONANZA PORTFOLIO LIMITED | E45: BUY | F45: 66,000 | G45: 40.21 | H45: BSE
A46: 2024-08-28 | B46: 533602 | C46: LESHAIND | D46: NIMIT JAYENDRA SHAH | E46: BUY | F46: 1,735,000 | G46: 2.6 | H46: BSE
A47: 2024-08-28 | B47: 533602 | C47: LESHAIND | D47: PRAGNESH JINDASBHAI DOSHI | E47: SELL | F47: 1,617,704 | G47: 2.61 | H47: BSE
A48: 2024-08-28 | B48: 533602 | C48: LESHAIND | D48: VIJAYKUMAR NEMICHAND SURANA | E48: SELL | F48: 2,000,000 | G48: 2.6 | H48: BSE
A49: 2024-08-28 | B49: 533602 | C49: LESHAIND | D49: SUNRISE GILTS AND SECURITIES PVT LTD | E49: BUY | F49: 2,780,000 | G49: 2.61 | H49: BSE
A50: 2024-08-28 | B50: 533602 | C50: LESHAIND | D50: ARVINDKUMAR RATILAL PATEL HUF | E50: SELL | F50: 3,707,145 | G50: 2.63 | H50: BSE
A51: 2024-08-28 | B51: 543613 | C51: MAFIA | D51: NAVJOTSINGHBRAR | E51: BUY | F51: 28,000 | G51: 18.96 | H51: BSE
A52: 2024-08-28 | B52: 543613 | C52: MAFIA | D52: URMIL SATISHKUMAR SHAH | E52: BUY | F52: 40,000 | G52: 18.36 | H52: BSE
A53: 2024-08-28 | B53: 512595 | C53: MANBRO | D53: KAILASHBEN ASHOKKUMAR PATEL | E53: SELL | F53: 4,216 | G53: 792.04 | H53: BSE
A54: 2024-08-28 | B54: 514060 | C54: MARKOBENZ | D54: SHAILESH DHAMELIYA | E54: BUY | F54: 100,000 | G54: 24.31 | H54: BSE
A55: 2024-08-28 | B55: 514060 | C55: MARKOBENZ | D55: VISHAL BIPINCHANDRA DOSHI | E55: SELL | F55: 100,000 | G55: 24.31 | H55: BSE
A56: 2024-08-28 | B56: 514060 | C56: MARKOBENZ | D56: MANUBHAI AMRUTLAL SHAH | E56: BUY | F56: 25,000 | G56: 24.33 | H56: BSE
A57: 2024-08-28 | B57: 514060 | C57: MARKOBENZ | D57: MANUBHAI AMRUTLAL SHAH | E57: SELL | F57: 110,720 | G57: 24.33 | H57: BSE
A58: 2024-08-28 | B58: 514060 | C58: MARKOBENZ | D58: GAURANG MANUBHAI SHAH | E58: BUY | F58: 99,000 | G58: 24.33 | H58: BSE
A59: 2024-08-28 | B59: 514060 | C59: MARKOBENZ | D59: ANTARA CAPITAL | E59: BUY | F59: 100,000 | G59: 24.33 | H59: BSE
A60: 2024-08-28 | B60: 541337 | C60: MILEFUR | D60: MONARCH NETWORTH CAPITAL LTD | E60: SELL | F60: 204,000 | G60: 8.62 | H60: BSE
A61: 2024-08-28 | B61: 541337 | C61: MILEFUR | D61: SARIKA BAJAJ | E61: BUY | F61: 54,000 | G61: 9.13 | H61: BSE
A62: 2024-08-28 | B62: 541337 | C62: MILEFUR | D62: PARVATHYBALAKRISHNAPILLAI | E62: BUY | F62: 48,000 | G62: 8.27 | H62: BSE
A63: 2024-08-28 | B63: 544015 | C63: MISHDESIGN | D63: GIRIRAJ STOCK BROKING PRIVATE LIMITED | E63: BUY | F63: 27,000 | G63: 229.46 | H63: BSE
A64: 2024-08-28 | B64: 544015 | C64: MISHDESIGN | D64: BLUESKY INFRA DEVELOPERS PRIVATE LIMITED | E64: SELL | F64: 17,000 | G64: 229.5 | H64: BSE
A65: 2024-08-28 | B65: 507609 | C65: OLYOI | D65: TEENA AGARWAL | E65: SELL | F65: 17,241 | G65: 33.82 | H65: BSE
A66: 2024-08-28 | B66: 514324 | C66: OMNITEX | D66: NARAYANANKUTTYNAIRNITHIN | E66: BUY | F66: 23,685 | G66: 206.45 | H66: BSE
A67: 2024-08-28 | B67: 514324 | C67: OMNITEX | D67: PIRAMAL NEXTGEN INDUSTRIES PRIVATE LTD | E67: SELL | F67: 25,000 | G67: 206.45 | H67: BSE
A68: 2024-08-28 | B68: 531395 | C68: PADAMCO | D68: RAHUL ANANTRAI MEHTA | E68: BUY | F68: 26,148 | G68: 71.98 | H68: BSE
A69: 2024-08-28 | B69: 531395 | C69: PADAMCO | D69: REKHA GUPTA . | E69: SELL | F69: 25,000 | G69: 71.98 | H69: BSE
A70: 2024-08-28 | B70: 532911 | C70: PARLEIND | D70: ADITYA VIJAY MORARKA | E70: BUY | F70: 80,565 | G70: 18.51 | H70: BSE
A71: 2024-08-28 | B71: 530095 | C71: PRADHIN | D71: INDUBAISOMAHIRVE | E71: BUY | F71: 4,000 | G71: 63.98 | H71: BSE
A72: 2024-08-28 | B72: 530095 | C72: PRADHIN | D72: INDUBAISOMAHIRVE | E72: SELL | F72: 19,022 | G72: 63.99 | H72: BSE
A73: 2024-08-28 | B73: 530095 | C73: PRADHIN | D73: RAMAKRISHNA MANNEM | E73: BUY | F73: 25,000 | G73: 63.99 | H73: BSE
A74: 2024-08-28 | B74: 530095 | C74: PRADHIN | D74: BRIJESH JITENDRA PAREKH | E74: SELL | F74: 40,000 | G74: 63.99 | H74: BSE
A75: 2024-08-28 | B75: 511557 | C75: PROFINC | D75: SUMANCHEPURI | E75: SELL | F75: 1,169,593 | G75: 1.49 | H75: BSE
A76: 2024-08-28 | B76: 541601 | C76: RAJNISH | D76: MULTIPLIER SHARE & STOCK ADVISORS PRIVATE LIMITED | E76: BUY | F76: 6,490,688 | G76: 4.79 | H76: BSE
A77: 2024-08-28 | B77: 541601 | C77: RAJNISH | D77: MULTIPLIER SHARE & STOCK ADVISORS PRIVATE LIMITED | E77: SELL | F77: 6,490,688 | G77: 4.81 | H77: BSE
A78: 2024-08-28 | B78: 541634 | C78: RAWEDGE | D78: SHIVANI BROTHERS | E78: BUY | F78: 91,000 | G78: 38.15 | H78: BSE
A79: 2024-08-28 | B79: 540709 | C79: RHFL | D79: MULTIPLIER SHARE & STOCK ADVISORS PRIVATE LIMITED | E79: BUY | F79: 3,000,000 | G79: 3.83 | H79: BSE
A80: 2024-08-28 | B80: 538540 | C80: RLFL | D80: MANI NARANG | E80: BUY | F80: 270,000 | G80: 1.33 | H80: BSE
A81: 2024-08-28 | B81: 538540 | C81: RLFL | D81: EKTA BAFNA | E81: SELL | F81: 419,629 | G81: 1.33 | H81: BSE
A82: 2024-08-28 | B82: 512097 | C82: SAICOM | D82: NIMISH PANDE | E82: SELL | F82: 1,298,450 | G82: 0.55 | H82: BSE
A83: 2024-08-28 | B83: 532713 | C83: SAKUMA | D83: BSEL ALGO LIMITED | E83: SELL | F83: 8,000,000 | G83: 6.12 | H83: BSE
A84: 2024-08-28 | B84: 531893 | C84: SAWABUSI | D84: JYOTIBEN MANOJBHAI PATEL | E84: SELL | F84: 4,950,000 | G84: 0.69 | H84: BSE
A85: 2024-08-28 | B85: 531893 | C85: SAWABUSI | D85: MANOJBHAI JAGDISHBHAI PATEL | E85: SELL | F85: 3,156,504 | G85: 0.69 | H85: BSE
A86: 2024-08-28 | B86: 531893 | C86: SAWABUSI | D86: TATHAGOTA BARMAN | E86: BUY | F86: 3,300,000 | G86: 0.69 | H86: BSE
A87: 2024-08-28 | B87: 526544 | C87: SCANPGEOM | D87: BALAJI FOREX (INDIA) PRIVATE LIMITED | E87: BUY | F87: 1,033,000 | G87: 9.68 | H87: BSE
A88: 2024-08-28 | B88: 526544 | C88: SCANPGEOM | D88: MORNING VINIMAY PRIVATE LIMITED | E88: BUY | F88: 1,360,000 | G88: 9.54 | H88: BSE
A89: 2024-08-28 | B89: 526544 | C89: SCANPGEOM | D89: MATRIX LIFE CARE INDIA PRIVATE LIMITED | E89: BUY | F89: 1,057,000 | G89: 9.46 | H89: BSE
A90: 2024-08-28 | B90: 526544 | C90: SCANPGEOM | D90: TRIPURARI DEALTRADE PRIVATE LIMITED | E90: BUY | F90: 1,054,000 | G90: 9.49 | H90: BSE
A91: 2024-08-28 | B91: 539921 | C91: SEIL | D91: LEGENDS GLOBAL OPPORTUNITIES (SINGAPORE) PTE. LTD. | E91: BUY | F91: 843,000 | G91: 124.9 | H91: BSE
A92: 2024-08-28 | B92: 539921 | C92: SEIL | D92: NEW LEAINA INVESTMENTS LIMITED | E92: SELL | F92: 843,000 | G92: 124.9 | H92: BSE
A93: 2024-08-28 | B93: 531944 | C93: SERVOTEACH | D93: VIVEK KANDA | E93: SELL | F93: 21,209 | G93: 26.24 | H93: BSE
A94: 2024-08-28 | B94: 501423 | C94: SHAILY | D94: RBA FINANCE AND INVESTMENT COMPANY | E94: SELL | F94: 500,000 | G94: 940 | H94: BSE
A95: 2024-08-28 | B95: 501423 | C95: SHAILY | D95: MOTILAL OSWAL MUTUAL FUND | E95: BUY | F95: 311,365 | G95: 923.63 | H95: BSE
A96: 2024-08-28 | B96: 501423 | C96: SHAILY | D96: MOTILAL OSWAL MUTUAL FUND | E96: BUY | F96: 500,000 | G96: 940 | H96: BSE
A97: 2024-08-28 | B97: 540147 | C97: SHASHIJIT | D97: VIKRAMBHAI GOKALBHAI CHAUDHARI | E97: SELL | F97: 1,197,050 | G97: 5.44 | H97: BSE
A98: 2024-08-28 | B98: 540147 | C98: SHASHIJIT | D98: VIKRAMBHAI GOKALBHAI CHAUDHARI | E98: BUY | F98: 7,050 | G98: 5.35 | H98: BSE
A99: 2024-08-28 | B99: 540147 | C99: SHASHIJIT | D99: DINESH G HAMIRWASIA | E99: SELL | F99: 400,000 | G99: 5.27 | H99: BSE
A100: 2024-08-28 | B100: 540147 | C100: SHASHIJIT | D100: MULTIPLIER SHARE & STOCK ADVISORS PRIVATE LIMITED | E100: BUY | F100: 500,000 | G100: 5.27 | H100: BSE
A101: 2024-08-28 | B101: 540147 | C101: SHASHIJIT | D101: SETU SECURITIES PVT. LTD. | E101: BUY | F101: 666,299 | G101: 5.3 | H101: BSE
A102: 2024-08-28 | B102: 540147 | C102: SHASHIJIT | D102: SETU SECURITIES PVT. LTD. | E102: SELL | F102: 270,651 | G102: 5.27 | H102: BSE
A103: 2024-08-28 | B103: 540072 | C103: SHIVAEXPO | D103: SHIVA EXPLOSIVES INDIA PRIVATE LIMITED | E103: SELL | F103: 170,000 | G103: 14.08 | H103: BSE
A104: 2024-08-28 | B104: 540072 | C104: SHIVAEXPO | D104: MANI NARANG | E104: BUY | F104: 120,000 | G104: 14.08 | H104: BSE
A105: 2024-08-28 | B105: 505515 | C105: SHYMINV | D105: ASHOK BHAGIRATHMAL JIWRAJKA | E105: SELL | F105: 56,000 | G105: 12.38 | H105: BSE
A106: 2024-08-28 | B106: 538402 | C106: SPS | D106: JAVERI FISCAL SERVICES LIMITED | E106: BUY | F106: 61,187 | G106: 59.85 | H106: BSE
A107: 2024-08-28 | B107: 538402 | C107: SPS | D107: VINAY R SOMANI | E107: SELL | F107: 66,909 | G107: 59.99 | H107: BSE
A108: 2024-08-28 | B108: 539217 | C108: SRESTHA | D108: GHANSHYAM PARSHOTTAM NATHWANI | E108: SELL | F108: 5,184,533 | G108: 1.99 | H108: BSE
A109: 2024-08-28 | B109: 539217 | C109: SRESTHA | D109: GHANSHYAM PARSHOTTAM NATHWANI | E109: BUY | F109: 1,087,815 | G109: 2 | H109: BSE
A110: 2024-08-28 | B110: 539217 | C110: SRESTHA | D110: SYLPH TECHNOLOGIES LIMITED | E110: BUY | F110: 4,591,137 | G110: 2.04 | H110: BSE
A111: 2024-08-28 | B111: 539217 | C111: SRESTHA | D111: SYLPH TECHNOLOGIES LIMITED | E111: SELL | F111: 770,265 | G111: 2 | H111: BSE
A112: 2024-08-28 | B112: 540492 | C112: STARLENT | D112: DHRUV GANJI | E112: SELL | F112: 538,787 | G112: 113.91 | H112: BSE
A113: 2024-08-28 | B113: 540492 | C113: STARLENT | D113: VIKRAMBHAI GOKALBHAI CHAUDHARI | E113: SELL | F113: 449,227 | G113: 113.43 | H113: BSE
A114: 2024-08-28 | B114: 540492 | C114: STARLENT | D114: DHRUV GANJI | E114: BUY | F114: 538,787 | G114: 115.26 | H114: BSE
A115: 2024-08-28 | B115: 540492 | C115: STARLENT | D115: VIKRAMBHAI GOKALBHAI CHAUDHARI | E115: BUY | F115: 475,143 | G115: 113.39 | H115: BSE
A116: 2024-08-28 | B116: 543274 | C116: SUUMAYA | D116: SUNRISE GILTS AND SECURITIES PVT LTD | E116: SELL | F116: 1,058,850 | G116: 5.06 | H116: BSE
A117: 2024-08-28 | B117: 543274 | C117: SUUMAYA | D117: BIPINBHAI DEVABHAI RAVAL | E117: SELL | F117: 630,000 | G117: 5.06 | H117: BSE
A118: 2024-08-28 | B118: 543274 | C118: SUUMAYA | D118: BIPINBHAI DEVABHAI RAVAL | E118: BUY | F118: 630,000 | G118: 5.03 | H118: BSE
A119: 2024-08-28 | B119: 543274 | C119: SUUMAYA | D119: PRASHANT GUPTA | E119: BUY | F119: 235,350 | G119: 4.88 | H119: BSE
A120: 2024-08-28 | B120: 543274 | C120: SUUMAYA | D120: PRIYANKA GUPTA | E120: SELL | F120: 166,500 | G120: 4.95 | H120: BSE
A121: 2024-08-28 | B121: 543274 | C121: SUUMAYA | D121: PRASHANT GUPTA | E121: SELL | F121: 235,350 | G121: 5.03 | H121: BSE
A122: 2024-08-28 | B122: 543274 | C122: SUUMAYA | D122: HARESHKUMAR NARANJI NAIK . | E122: SELL | F122: 222,750 | G122: 5.06 | H122: BSE
A123: 2024-08-28 | B123: 543274 | C123: SUUMAYA | D123: HARESHKUMAR NARANJI NAIK . | E123: BUY | F123: 225,000 | G123: 5.06 | H123: BSE
A124: 2024-08-28 | B124: 543274 | C124: SUUMAYA | D124: VIKRAMKUMAR KARANRAJ SAKARIA HUF | E124: BUY | F124: 217,800 | G124: 4.92 | H124: BSE
A125: 2024-08-28 | B125: 543274 | C125: SUUMAYA | D125: VIKRAMKUMAR KARANRAJ SAKARIA HUF | E125: SELL | F125: 217,800 | G125: 5.06 | H125: BSE
A126: 2024-08-28 | B126: 543274 | C126: SUUMAYA | D126: SHREYANS SHANTILAL SHAH | E126: SELL | F126: 894,600 | G126: 5.06 | H126: BSE
A127: 2024-08-28 | B127: 536264 | C127: TIGERLOGS | D127: G G ENGINEERING LIMITED | E127: BUY | F127: 591,339 | G127: 52.67 | H127: BSE
A128: 2024-08-28 | B128: 521005 | C128: TITANIN | D128: BAKKIREDDYGARI CHANDRA VENKATA PARTHA SARADHI REDDY | E128: BUY | F128: 118,166 | G128: 44.44 | H128: BSE
A129: 2024-08-28 | B129: 521005 | C129: TITANIN | D129: BAKKIREDDYGARI CHANDRA VENKATA PARTHA SARADHI REDDY | E129: SELL | F129: 118,116 | G129: 45.03 | H129: BSE
A130: 2024-08-28 | B130: 543623 | C130: VEDANTASSET | D130: NAVJOTSINGHBRAR | E130: SELL | F130: 18,000 | G130: 90.95 | H130: BSE
A131: 2024-08-28 | B131: 542803 | C131: VEL | D131: N L RUNGTA (HUF) | E131: BUY | F131: 81,084 | G131: 8.21 | H131: BSE
A132: 2024-08-28 | B132: 542803 | C132: VEL | D132: ASHWINI NIRAJ SINGH | E132: SELL | F132: 200,000 | G132: 8.69 | H132: BSE
A133: 2024-08-28 | B133: 542803 | C133: VEL | D133: ASHWINI NIRAJ SINGH | E133: BUY | F133: 200,000 | G133: 8.11 | H133: BSE
A134: 2024-08-28 | B134: 542803 | C134: VEL | D134: N L RUNGTA (HUF) | E134: SELL | F134: 76,084 | G134: 8.57 | H134: BSE
A135: 2024-08-28 | B135: 542803 | C135: VEL | D135: VEENA RAJESH SHAH | E135: SELL | F135: 174,000 | G135: 8.3 | H135: BSE
A136: 2024-08-28 | B136: 542803 | C136: VEL | D136: MANSI SHARE & STOCK ADVISORS PRIVATE LIMITED | E136: BUY | F136: 300,000 | G136: 8.11 | H136: BSE
A137: 2024-08-28 | B137: 542803 | C137: VEL | D137: F3 ADVISORS PRIVATE LIMITED | E137: BUY | F137: 250,000 | G137: 8.11 | H137: BSE
A138: 2024-08-28 | B138: 542803 | C138: VEL | D138: PRIYA KABRA | E138: BUY | F138: 936,317 | G138: 8.2 | H138: BSE
A139: 2024-08-28 | B139: 542803 | C139: VEL | D139: KRISHNA AWTAR JAGANNATH KABRA HUF | E139: SELL | F139: 240,000 | G139: 8.21 | H139: BSE
A140: 2024-08-28 | B140: 542803 | C140: VEL | D140: PRIYA KABRA | E140: SELL | F140: 1,120,217 | G140: 8.13 | H140: BSE
A141: 2024-08-28 | B141: 542803 | C141: VEL | D141: KRISHNA AWTAR KABRA | E141: SELL | F141: 386,039 | G141: 8.13 | H141: BSE
A142: 2024-08-28 | B142: 542803 | C142: VEL | D142: ASHOKBHAI MADHUBHAI KORAT | E142: BUY | F142: 311,762 | G142: 8.31 | H142: BSE
A143: 2024-08-28 | B143: 511726 | C143: VIPULLTD | D143: SRESTHA FINVEST LIMITED | E143: SELL | F143: 826,890 | G143: 37.24 | H143: BSE
A144: 2024-08-28 | B144: 514378 | C144: YARNSYN | D144: ASHOKBHAI MADHUBHAI KORAT | E144: SELL | F144: 194,447 | G144: 58.75 | H144: BSE
A145: 2024-08-28 | B145: 514378 | C145: YARNSYN | D145: ALTERAN PARTNERS | E145: SELL | F145: 19,234 | G145: 58.73 | H145: BSE
A146: 2024-08-28 | B146: 514378 | C146: YARNSYN | D146: AGRAWAL NIKUNJ | E146: SELL | F146: 18,757 | G146: 58.8 | H146: BSE
A147: 2024-08-28 | B147: 514378 | C147: YARNSYN | D147: SHIVANG R VACHHETA | E147: SELL | F147: 64,614 | G147: 58.89 | H147: BSE
A148: 2024-08-28 | B148: 514378 | C148: YARNSYN | D148: ASHOKBHAI MADHUBHAI KORAT | E148: BUY | F148: 6,200 | G148: 58.71 | H148: BSE
A149: 2024-08-28 | B149: 514378 | C149: YARNSYN | D149: SURESH RAJAN | E149: BUY | F149: 21,500 | G149: 58.8 | H149: BSE
A150: 2024-08-28 | B150: 514378 | C150: YARNSYN | D150: BHATI SHANI | E150: SELL | F150: 55,886 | G150: 58.8 | H150: BSE
A151: 2024-08-28 | B151: 514378 | C151: YARNSYN | D151: MAKSOOD IBRAHIM RAKHANGE | E151: BUY | F151: 25,541 | G151: 58.73 | H151: BSE
A152: 2024-08-28 | B152: 514378 | C152: YARNSYN | D152: DEVI SINGH | E152: SELL | F152: 94,241 | G152: 58.8 | H152: BSE
A153: 2024-08-28 | B153: 512587 | C153: ZODJRDMKJ | D153: MULTIPLIER SHARE & STOCK ADVISORS PRIVATE LIMITED | E153: SELL | F153: 40,750 | G153: 134.99 | H153: BSE
A154: 2024-08-28 | B154: 512587 | C154: ZODJRDMKJ | D154: MULTIPLIER SHARE & STOCK ADVISORS PRIVATE LIMITED | E154: BUY | F154: 30,002 | G154: 134.99 | H154: BSE
A155: 2024-08-28 | B155: 512587 | C155: ZODJRDMKJ | D155: GUTTIKONDA VARA LAKSHMI | E155: BUY | F155: 50,000 | G155: 134.99 | H155: BSE
A156: 2024-08-28 | B156: 512587 | C156: ZODJRDMKJ | D156: GREEN PEAKS ENTERPRISES LLP | E156: SELL | F156: 29,332 | G156: 134.99 | H156: BSE
A157: 2024-08-28 | B157: 512587 | C157: ZODJRDMKJ | D157: GREEN PEAKS ENTERPRISES LLP | E157: BUY | F157: 5,016 | G157: 131.23 | H157: BSE
A158: 2024-08-28 | B158: AARTECH | C158: Aartech Solonics Limited | D158: KABRA PRIYA | E158: BUY | F158: 183,223 | G158: 82.59 | H158: NSE
A159: 2024-08-28 | B159: ADFFOODS | C159: ADF Foods Limited | D159: INFINITY PORTFOLIO HOLDINGS | E159: BUY | F159: 1,755,000 | G159: 269.24 | H159: NSE
A160: 2024-08-28 | B160: AKSHAR | C160: Akshar Spintex Limited | D160: STATSOL RESEARCH LLP | E160: BUY | F160: 300,365 | G160: 1.93 | H160: NSE
A161: 2024-08-28 | B161: ARIHANTCAP | C161: Arihant Capital Mkts Ltd | D161: CRONY VYAPAR PVT LTD | E161: BUY | F161: 359,064 | G161: 80.19 | H161: NSE
A162: 2024-08-28 | B162: AVROIND | C162: AVRO INDIA LIMITED | D162: QE SECURITIES LLP | E162: BUY | F162: 79,121 | G162: 175.08 | H162: NSE
A163: 2024-08-28 | B163: AVROIND | C163: AVRO INDIA LIMITED | D163: NAMITHAAJIT | E163: BUY | F163: 58,857 | G163: 177.53 | H163: NSE
A164: 2024-08-28 | B164: BALKRISHNA | C164: Balkrshna Paper Mills Ltd | D164: ANKITA VISHAL SHAH | E164: BUY | F164: 609,795 | G164: 27.52 | H164: NSE
A165: 2024-08-28 | B165: BHAGERIA | C165: Bhageria Industries Ltd | D165: GRAVITON RESEARCH CAPITAL LLP | E165: BUY | F165: 252,522 | G165: 227.16 | H165: NSE
A166: 2024-08-28 | B166: BRACEPORT | C166: Brace Port Logistics Ltd | D166: SUDH INVESTMENTS PVT. LTD | E166: BUY | F166: 72,000 | G166: 175.9 | H166: NSE
A167: 2024-08-28 | B167: DATAMATICS | C167: Datamatics Global Ser.Ltd | D167: AAKRAYA RESEARCH LLP | E167: BUY | F167: 343,759 | G167: 716.94 | H167: NSE
A168: 2024-08-28 | B168: DATAMATICS | C168: Datamatics Global Ser.Ltd | D168: GRAVITON RESEARCH CAPITAL LLP | E168: BUY | F168: 454,934 | G168: 717.55 | H168: NSE
A169: 2024-08-28 | B169: EMMIL | C169: Energy Mission Mach Ind L | D169: AVARJIT SINGH BIRGHI | E169: BUY | F169: 113,000 | G169: 320.12 | H169: NSE
A170: 2024-08-28 | B170: FELIX | C170: Felix Industries Ltd. | D170: SRESTHA FINVEST LIMITED | E170: BUY | F170: 85,500 | G170: 269 | H170: NSE
A171: 2024-08-28 | B171: FILATFASH | C171: Filatex Fashions Limited | D171: NARSHI HAMIRBHAI DANGODRA | E171: BUY | F171: 41,873,464 | G171: 1.25 | H171: NSE
A172: 2024-08-28 | B172: FORCAS | C172: Forcas Studio Limited | D172: SUDH INVESTMENTS PVT. LTD | E172: BUY | F172: 275,200 | G172: 130.35 | H172: NSE
A173: 2024-08-28 | B173: GANDHAR | C173: Gandhar Oil Refine Ind L | D173: GRAVITON RESEARCH CAPITAL LLP | E173: BUY | F173: 596,019 | G173: 227.9 | H173: NSE
A174: 2024-08-28 | B174: GEOJITFSL | C174: Geojit Fin Serv Ltd | D174: GRAVITON RESEARCH CAPITAL LLP | E174: BUY | F174: 1,230,247 | G174: 128.46 | H174: NSE
A175: 2024-08-28 | B175: GMMPFAUDLR | C175: GMM Pfaudler Limited | D175: NK SECURITIES RESEARCH PRIVATE LIMITED | E175: BUY | F175: 343,010 | G175: 1489.19 | H175: NSE
A176: 2024-08-28 | B176: GMMPFAUDLR | C176: GMM Pfaudler Limited | D176: GRAVITON RESEARCH CAPITAL LLP | E176: BUY | F176: 325,919 | G176: 1487.67 | H176: NSE
A177: 2024-08-28 | B177: GMMPFAUDLR | C177: GMM Pfaudler Limited | D177: INFINITY PARTNERS | E177: BUY | F177: 4,121,960 | G177: 1352 | H177: NSE
A178: 2024-08-28 | B178: GSTL | C178: Globesecure Techno Ltd | D178: KABRA PRIYA | E178: BUY | F178: 85,000 | G178: 53.38 | H178: NSE
A179: 2024-08-28 | B179: GULPOLY | C179: Gulshan Polyols Limited | D179: PGIM INDIA EQUITY GROWTH OPPORTUNITIES FUND SERIES I | E179: BUY | F179: 500,000 | G179: 216.75 | H179: NSE
A180: 2024-08-28 | B180: GULPOLY | C180: Gulshan Polyols Limited | D180: GRAVITON RESEARCH CAPITAL LLP | E180: BUY | F180: 401,501 | G180: 217.18 | H180: NSE
A181: 2024-08-28 | B181: HEADSUP | C181: Heads UP Ventures Limited | D181: PUNEET MITTAL HUF | E181: BUY | F181: 188,819 | G181: 13.86 | H181: NSE
A182: 2024-08-28 | B182: HERANBA | C182: Heranba Industries Ltd | D182: GRAVITON RESEARCH CAPITAL LLP | E182: BUY | F182: 284,100 | G182: 512.49 | H182: NSE
A183: 2024-08-28 | B183: IDEALTECHO | C183: Ideal Technoplast Ind Ltd | D183: PRADEEP VINZUDA | E183: BUY | F183: 35,000 | G183: 138.51 | H183: NSE
A184: 2024-08-28 | B184: IDEALTECHO | C184: Ideal Technoplast Ind Ltd | D184: SPRING VENTURES | E184: BUY | F184: 25,000 | G184: 138.7 | H184: NSE
A185: 2024-08-28 | B185: IDEALTECHO | C185: Ideal Technoplast Ind Ltd | D185: VINOD KUMAR | E185: BUY | F185: 80,000 | G185: 132.1 | H185: NSE
A186: 2024-08-28 | B186: IEX | C186: Indian Energy Exc Ltd | D186: GRAVITON RESEARCH CAPITAL LLP | E186: BUY | F186: 4,969,583 | G186: 202.58 | H186: NSE
A187: 2024-08-28 | B187: INVENTURE | C187: Inventure Gro & Sec Ltd | D187: VIKRAMBHAI GOKALBHAI CHAUDHARI | E187: BUY | F187: 15,656,973 | G187: 3.2 | H187: NSE
A188: 2024-08-28 | B188: INVENTURE | C188: Inventure Gro & Sec Ltd | D188: HRTI PRIVATE LIMITED | E188: BUY | F188: 8,655,500 | G188: 3.02 | H188: NSE
A189: 2024-08-28 | B189: INVENTURE | C189: Inventure Gro & Sec Ltd | D189: DHRUV GANJI | E189: BUY | F189: 8,050,613 | G189: 3.29 | H189: NSE
A190: 2024-08-28 | B190: JALAN | C190: Jalan Transolu. India Ltd | D190: PARTHA PRATIM ROYCHOWDHURY | E190: BUY | F190: 78,000 | G190: 4.35 | H190: NSE
A191: 2024-08-28 | B191: KAMOPAINTS | C191: Kamdhenu Ventures Limited | D191: SKSE SECURITIES LTD | E191: BUY | F191: 2,280,915 | G191: 41.76 | H191: NSE
A192: 2024-08-28 | B192: KAMOPAINTS | C192: Kamdhenu Ventures Limited | D192: MOTISONS SHARES PVT LTD | E192: BUY | F192: 1,914,990 | G192: 42.13 | H192: NSE
A193: 2024-08-28 | B193: KHAICHEM | C193: Khaitan Chem & Fert Ltd | D193: GRAVITON RESEARCH CAPITAL LLP | E193: BUY | F193: 716,750 | G193: 94.49 | H193: NSE
A194: 2024-08-28 | B194: KHAICHEM | C194: Khaitan Chem & Fert Ltd | D194: HRTI PRIVATE LIMITED | E194: BUY | F194: 670,636 | G194: 94.15 | H194: NSE
A195: 2024-08-28 | B195: KHAITANLTD | C195: Khaitan (India) Ltd. | D195: SACHIN VERMA | E195: BUY | F195: 49,505 | G195: 104.4 | H195: NSE
A196: 2024-08-28 | B196: KIMS | C196: Krishna Inst of Med Sci L | D196: INFINITY PARTNERS | E196: BUY | F196: 1,570,000 | G196: 2497 | H196: NSE
A197: 2024-08-28 | B197: KRONOX | C197: Kronox Lab Sciences Ltd | D197: GRAVITON RESEARCH CAPITAL LLP | E197: BUY | F197: 318,328 | G197: 172.05 | H197: NSE
A198: 2024-08-28 | B198: KRONOX | C198: Kronox Lab Sciences Ltd | D198: QE SECURITIES LLP | E198: BUY | F198: 247,693 | G198: 174.69 | H198: NSE
A199: 2024-08-28 | B199: KRONOX | C199: Kronox Lab Sciences Ltd | D199: HRTI PRIVATE LIMITED | E199: BUY | F199: 170,096 | G199: 176.3 | H199: NSE
A200: 2024-08-28 | B200: LYPSAGEMS | C200: Lypsa Gems & Jewel Ltd | D200: STATSOL RESEARCH LLP | E200: BUY | F200: 170,693 | G200: 11.48 | H200: NSE
A201: 2024-08-28 | B201: MOS | C201: Mos Utility Limited | D201: NARESH KUMAR BANSAL | E201: BUY | F201: 469,600 | G201: 213 | H201: NSE
A202: 2024-08-28 | B202: NBCC | C202: Nbcc (India) Ltd | D202: NK SECURITIES RESEARCH PRIVATE LIMITED | E202: BUY | F202: 10,292,500 | G202: 198.84 | H202: NSE
A203: 2024-08-28 | B203: NBCC | C203: Nbcc (India) Ltd | D203: MICROCURVES TRADING PRIVATE LIMITED | E203: BUY | F203: 10,102,732 | G203: 199.79 | H203: NSE
A204: 2024-08-28 | B204: NBCC | C204: Nbcc (India) Ltd | D204: GRAVITON RESEARCH CAPITAL LLP | E204: BUY | F204: 9,098,355 | G204: 195.09 | H204: NSE
A205: 2024-08-28 | B205: NBCC | C205: Nbcc (India) Ltd | D205: HRTI PRIVATE LIMITED | E205: BUY | F205: 10,879,199 | G205: 197.27 | H205: NSE
A206: 2024-08-28 | B206: NIITLTD | C206: NIIT Limited | D206: HRTI PRIVATE LIMITED | E206: BUY | F206: 528,096 | G206: 170.16 | H206: NSE
... 121 more rows

Sheet Call Tracker (Equity)
M5: Back To Main Page
A6: Retail Research Technical Calls & Fundamental Performance Report for the month of August-2024
M7: =Main!B10 -> 2024-08-29
A8: Positional Call (Timeframe- 1-3 Months)
A9: Sr.no | B9: Date | D9: Company | E9: Rec | F9: Rec Price | G9: Stop Loss*** | H9: Call Closed At | I9: Target | J9: Remark | K9: Profit / Loss per Share | L9: All charges | M9: Net Gain / Loss % | N9: Status | O9: Closed Date | P9: Market Closing Price | Q9: Second Buying Date
A10: 1 | B10: 2024-06-25 | D10: HAPPSTMNDS | E10: Accu | F10: 830 | G10: 795 | H10: 780 | I10: 900-950 | J10: Loss of Rs.50/- | K10: =H10-F10 -> -50 | L10: =(F10*-0.3)/100 -> -2.49 | M10: =(K10+L10)/F10 -> -6.32% | N10: Unsuccessful | O10: 2024-08-05 | R10: H
A11: 2 | B11: 2024-06-27 | D11: BAJAJ-AUTO | E11: Accu | F11: 9325 | G11: 8900 | H11: 9825 | I11: 10000-10400 | J11: Profit of Rs.500/- | K11: =H11-F11 -> 500 | L11: =(F11*-0.3)/100 -> -27.98 | M11: =(K11+L11)/F11 -> 5.06% | N11: Successful | O11: 2024-08-01 | R11: H
A12: 3 | B12: 2024-07-01 | D12: RELIANCE | E12: Accu | F12: 3075 | G12: 2940 | H12: 2900 | I12: 3300-3500 | J12: Loss of Rs.175/- | K12: -175 | L12: -9.23 | M12: -5.99% | N12: Unsuccessful | O12: 2024-08-05 | R12: H
A13: 4 | B13: 2024-07-19 | D13: BAJAJFINSV | E13: Accu | F13: 1617 | G13: 1560 | H13: 1555 | I13: 1720-1800 | J13: Loss of Rs.62/- | K13: =H13-F13 -> -62 | L13: =(F13*-0.3)/100 -> -4.85 | M13: =(K13+L13)/F13 -> -4.13% | N13: Unsuccessful | O13: 2024-08-08 | R13: H
A14: 5 | B14: 2024-07-25 | D14: NESTLEIND | E14: Accu | F14: 2390-2470 | G14: 2330 | I14: 2650-2800 | J14: Open | P14: =VLOOKUP(D14,'MidCap Intra'!$B$11:$C$571,2,0) -> 2492.50 | R14: H
A15: 6 | B15: 2024-07-26 | D15: LTF | E15: Accu | F15: 173.5 | G15: 164 | H15: 163.5 | I15: 195-205 | J15: Loss of Rs.10/- | K15: =H15-F15 -> -10 | L15: =(F15*-0.3)/100 -> -0.52 | M15: =(K15+L15)/F15 -> -6.06% | N15: Unsuccessful | O15: 2024-08-13 | R15: H
A16: 7 | B16: 2024-07-26 | D16: RKFORGE | E16: Accu | F16: 840 | G16: 790 | H16: 882 | I16: 900-950 | J16: Profit of Rs.42/- | K16: =H16-F16 -> 42 | L16: =(F16*-0.3)/100 -> -2.52 | M16: =(K16+L16)/F16 -> 4.70% | N16: Successful | O16: 2024-08-02 | R16: H
A17: 8 | B17: 2024-07-29 | D17: CARBORUNIV | E17: Accu | F17: 1710 | G17: 1645 | H17: 1605 | I17: 1840-1940 | J17: Loss of Rs.105/- | K17: -105 | L17: -5.13 | M17: -6.44% | N17: Unsuccessful | O17: 2024-08-05 | R17: H
A18: 9 | B18: 2024-07-30 | D18: LTTS | E18: Accu | F18: 5105 | G18: 4800 | H18: 5380 | I18: 5540-5900 | J18: Profit of Rs.275/- | K18: =H18-F18 -> 275 | L18: =(F18*-0.3)/100 -> -15.32 | M18: =(K18+L18)/F18 -> 5.09% | N18: Successful | O18: 2024-08-20 | R18: K
A19: 10 | B19: 2024-07-30 | D19: VBL | E19: Accu | F19: 1565 | G19: 1495 | H19: 1490 | I19: 1700-1800 | J19: Loss of Rs.75/- | K19: =H19-F19 -> -75 | L19: =(F19*-0.3)/100 -> -4.70 | M19: =(K19+L19)/F19 -> -5.09% | N19: Unsuccessful | O19: 2024-08-06 | R19: H
A20: 11 | B20: 2024-07-30 | D20: IOC | E20: Accu | F20: 177.5 | G20: 167 | H20: 167 | I20: 195-210 | J20: Loss of Rs.10.5/- | K20: =H20-F20 -> -10.5 | L20: =(F20*-0.3)/100 -> -0.53 | M20: =(K20+L20)/F20 -> -6.22% | N20: Unsuccessful | O20: 2024-08-06 | R20: H
A21: 12 | B21: 2024-08-01 | D21: TRENT | E21: Accu | F21: 5700 | G21: 5400 | H21: 5375 | I21: 6200-6500 | J21: Loss of Rs.325/- | K21: =H21-F21 -> -325 | L21: =(F21*-0.3)/100 -> -17.10 | M21: =(K21+L21)/F21 -> -6.00% | N21: Unsuccessful | O21: 2024-08-05
A22: 13 | B22: 2024-08-06 | D22: TATAMOTORS | E22: Accu | F22: 1029 | G22: 948 | H22: 1078 | I22: 1120-1200 | J22: Profit of Rs.49/- | K22: 49 | L22: -3.09 | M22: 4.46% | N22: Successful | O22: 2024-08-12
A23: 14 | B23: 2024-08-06 | D23: LT | E23: Accu | F23: 3595 | G23: 3440 | H23: 3735 | I23: 3750-3900 | J23: Profit of Rs.140/- | K23: 140 | L23: -10.79 | M23: 3.59% | N23: Successful | O23: 2024-08-27
A24: 15 | B24: 2024-08-06 | D24: NIACL | E24: Accu | F24: 259 | G24: 246 | H24: 271.5 | I24: 284-300 | J24: Profit of Rs.12.5/- | K24: =H24-F24 -> 12.5 | L24: =(F24*-0.3)/100 -> -0.78 | M24: =(K24+L24)/F24 -> 4.53% | N24: Successful | O24: 2024-08-08
A25: 16 | B25: 2024-08-06 | D25: BEL | E25: Accu | F25: 292 | G25: 268 | H25: 308 | I25: 320-340 | J25: Profit of Rs.16/- | K25: 16 | L25: -0.88 | M25: 5.18% | N25: Successful | O25: 2024-08-23
A26: 17 | B26: 2024-08-08 | D26: BHARTIARTL | E26: Accu | F26: 1456 | G26: 1390 | H26: 1520 | I26: 1530-1600 | J26: Profit of Rs.64/- | K26: =H26-F26 -> 64 | L26: =(F26*-0.3)/100 -> -4.37 | M26: =(K26+L26)/F26 -> 4.10% | N26: Successful | O26: 2024-08-27
A27: 18 | B27: 2024-08-08 | D27: ASHOKLEY | E27: Accu | F27: 247.5 | G27: 232 | H27: 261 | I27: 262-277 | J27: Profit of Rs.13.5/- | K27: =H27-F27 -> 13.5 | L27: =(F27*-0.3)/100 -> -0.74 | M27: =(K27+L27)/F27 -> 5.15% | N27: Successful | O27: 2024-08-20
A28: 19 | B28: 2024-08-08 | D28: POONAWALLA | E28: Accu | F28: 363 | G28: 345 | H28: 381.5 | I28: 400-430 | J28: Profit of Rs.18.5/- | K28: =H28-F28 -> 18.5 | L28: =(F28*-0.3)/100 -> -1.09 | M28: =(K28+L28)/F28 -> 4.80% | N28: Successful | O28: 2024-08-20
A29: 20 | B29: 2024-08-09 | D29: ASTRAL | E29: Accu | F29: 2010 | G29: 1930 | H29: 1915 | I29: 2200-2350 | J29: Loss of Rs.95/- | K29: =H29-F29 -> -95 | L29: =(F29*-0.3)/100 -> -6.03 | M29: =(K29+L29)/F29 -> -5.03% | N29: Unsuccessful | O29: 2024-08-13
A30: 21 | B30: 2024-08-12 | D30: HINDUNILVR | E30: Accu | F30: 2650-2730 | G30: 2540 | I30: 3000-3290 | J30: Open | P30: =VLOOKUP(D30,'MidCap Intra'!$B$11:$C$571,2,0) -> 2764.35
A31: 22 | B31: 2024-08-12 | D31: SIEMENS | E31: Accu | F31: 6890 | G31: 6490 | H31: 7240 | I31: 7350-7750 | J31: Profit of Rs.350/- | K31: =H31-F31 -> 350 | L31: =(F31*-0.3)/100 -> -20.67 | M31: =(K31+L31)/F31 -> 4.78% | N31: Successful | O31: 2024-08-19
A32: 23 | B32: 2024-08-16 | D32: VBL | E32: Accu | F32: 1420 | G32: 1335 | H32: 1498 | I32: 1500-1580 | J32: Profit of Rs.78/- | K32: =H32-F32 -> 78 | L32: =(F32*-0.3)/100 -> -4.26 | M32: =(K32+L32)/F32 -> 5.19% | N32: Successful | O32: 2024-08-19
A33: 24 | B33: 2024-08-19 | D33: HINDZINC | E33: Accu | F33: 491 | G33: 468 | H33: 519 | I33: 520-550 | J33: Profit of Rs.28/- | K33: =H33-F33 -> 28 | L33: =(F33*-0.3)/100 -> -1.47 | M33: =(K33+L33)/F33 -> 5.40% | N33: Successful | O33: 2024-08-26
A34: 25 | B34: 2024-08-20 | D34: ICICIGI | E34: Accu | F34: 2035 | G34: 1900 | H34: 2149 | I34: 2170-2300 | J34: Profit of Rs.114/- | K34: =H34-F34 -> 114 | L34: =(F34*-0.3)/100 -> -6.11 | M34: =(K34+L34)/F34 -> 5.30% | N34: Successful | O34: 2024-08-27
A35: 26 | B35: 2024-08-20 | D35: TATAMTRDVR | E35: Accu | F35: 718-748 | G35: 699 | I35: 800-850 | J35: Open | P35: =VLOOKUP(D35,'MidCap Intra'!$B$11:$C$571,2,0) -> 746.80
A36: 27 | B36: 2024-08-20 | D36: TATACONSUM | E36: Accu | F36: 1143-1173 | G36: 1120 | I36: 1230-1300 | J36: Open | P36: =VLOOKUP(D36,'MidCap Intra'!$B$11:$C$571,2,0) -> 1201.15
A37: 28 | B37: 2024-08-20 | D37: MANAPPURAM | E37: Accu | F37: 203 | G37: 188 | H37: 219 | I37: 218-232 | J37: Profit of Rs.16/- | K37: =H37-F37 -> 16 | L37: =(F37*-0.3)/100 -> -0.61 | M37: =(K37+L37)/F37 -> 7.58% | N37: Successful | O37: 2024-08-22
A38: 29 | B38: 2024-08-20 | D38: SIEMENS | E38: Accu | F38: 6810-7010 | G38: 6640 | I38: 7370-7700 | J38: Open | P38: =VLOOKUP(D38,'MidCap Intra'!$B$11:$C$571,2,0) -> 6951.45
A39: 30 | B39: 2024-08-23 | D39: TATATECH | E39: Accu | F39: 1024 | G39: 945 | H39: 1106 | I39: 1120-1200 | J39: Profit of Rs.82/- | K39: =H39-F39 -> 82 | L39: =(F39*-0.3)/100 -> -3.07 | M39: =(K39+L39)/F39 -> 7.71% | N39: Successful | O39: 2024-08-27
A40: 31 | B40: 2024-08-26 | D40: LATENTVIEW | E40: Accu | F40: 480-498 | G40: 468 | I40: 530-565 | J40: Open | P40: =VLOOKUP(D40,'[1]MidCap Intra'!$B$11:$C$571,2,0) -> 510.90
A41: 32 | B41: 2024-08-27 | D41: HINDCOPPER | E41: Accu | F41: 321-331 | G41: 310 | I41: 350-370 | J41: Open | P41: =VLOOKUP(D41,'[1]MidCap Intra'!$B$11:$C$571,2,0) -> 318.55
A42: 33 | B42: 2024-08-27 | D42: TRIVENI | E42: Accu | F42: 430-445 | G42: 410 | I42: 480-515 | J42: Open | P42: =VLOOKUP(D42,'[1]MidCap Intra'!$B$11:$C$571,2,0) -> 452.90
A43: 34 | B43: 2024-08-27 | D43: ZEEL | E43: Accu | F43: 141-148 | G43: 134.5 | I43: 165-185 | J43: Open | P43: =VLOOKUP(D43,'[1]MidCap Intra'!$B$11:$C$571,2,0) -> 139.44
A44: 35 | B44: 2024-08-28 | D44: TATATECH | E44: Accu | F44: 1045-1081 | G44: 1020 | I44: 1150-1220 | J44: Open | P44: =VLOOKUP(D44,'[1]MidCap Intra'!$B$11:$C$571,2,0) -> 1007.20
A45: 36 | B45: 2024-08-28 | D45: CENTURYPLY | E45: Accu | F45: 760-785 | G45: 726 | I45: 845-905 | J45: Open | P45: =VLOOKUP(D45,'[1]MidCap Intra'!$B$11:$C$571,2,0) -> 760.10
A52: CLBS = Closing Basis ***
A53: Dividend adjusted <> | F53: Reinitiated $
A54: Part book {} | D54: s | F54: Revised stoploss #
A58: Smart Delivery Trade (Timeframe- 3-5 Months)
A59: Sr.no | B59: Date | D59: Company | E59: Rec | F59: Rec Price | G59: Stop Loss*** | H59: Call Closed At | I59: Target | J59: Remark | K59: Profit / Loss per Share/Lot | L59: All charges | M59: Net Gain / Loss % | N59: Status | O59: Closed Date | P59: Market Closing Price | Q59: Second Buying Date
A60: 1 | B60: 2024-08-19 | D60: UDS | E60: Accu | F60: 327.5 | G60: 298 | H60: 353 | I60: 365-400 | J60: Profit of Rs.25.5/- | K60: =H60-F60 -> 25.5 | L60: =(F60*-0.3)/100 -> -0.98 | M60: =(K60+L60)/F60 -> 7.49% | N60: Successful | O60: 2024-08-21 | R60: H
A61: 2 | B61: 2024-08-21 | D61: SHRIRAMPPS | E61: Accu | F61: 120 | G61: 107 | H61: 129.5 | I61: 132-145 | J61: Profit of Rs.9.5/- | K61: =H61-F61 -> 9.5 | L61: =(F61*-0.3)/100 -> -0.36 | M61: =(K61+L61)/F61 -> 7.62% | N61: Successful | O61: 2024-08-22
A62: 3 | B62: 2024-08-22 | D62: IDEA | E62: Accu | F62: 15.60-16.10 | G62: 14.9 | I62: 17.50-18.50 | J62: Open
A63: 4 | B63: 2024-08-22 | D63: PROTEAN | E63: Accu | F63: 1960 | G63: 1690 | H63: 2097.5 | I63: 2300-2500 | J63: Profit of Rs.137.5/- | K63: =H63-F63 -> 137.5 | L63: =(F63*-0.3)/100 -> -5.88 | M63: =(K63+L63)/F63 -> 6.72% | N63: Successful | O63: 2024-08-28
A64: 5 | B64: 2024-08-28 | D64: BAJAJHIND | E64: Accu | F64: 40.10-40.80 | G64: 38.5 | I64: 44-46 | J64: Open
R66: H
A67: CLBS = Closing Basis *** | F67: Reinitiated $
A68: Dividend adjusted <> | F68: Revised stoploss # | H68: .................
A71: Techno -Funda (Timeframe- 3-6 Months)
A72: Sr.no | B72: Date | D72: Company | E72: Rec | F72: Rec Price | G72: Stop Loss*** | H72: Call Closed At | I72: Target | J72: Remark | K72: Profit / Loss per Share/Lot | L72: All charges | M72: Net Gain / Loss % | N72: Status | O72: Closed Date | P72: Market Closing Price | Q72: Second Buying Date
A73: 1 | B73: 2024-03-05 | D73: TRIDENT | E73: Accu <> | F73: 38.94 | G73: 34.64 | I73: 47.64-51.64 | J73: Open | P73: =VLOOKUP(D73,'MidCap Intra'!$B$11:$C$571,2,0) -> 37.48 | R73: H
A74: 2 | B74: 2024-07-25 | D74: SCHAEFFLER | E74: Accu | F74: 3825-4025 | G74: 3600 | I74: 4500-5000 | J74: Open | P74: =VLOOKUP(D74,'MidCap Intra'!$B$11:$C$571,2,0) -> 3894.75 | R74: H
A75: 3 | B75: 2024-08-13 | D75: THERMAX | E75: Accu | F75: 4325 | G75: 3970 | H75: 4615 | I75: 4800-5000 | J75: Profit of Rs.290/- | K75: =H75-F75 -> 290 | L75: =(F75*-0.3)/100 -> -12.98 | M75: =(K75+L75)/F75 -> 6.41% | N75: Successful | O75: 2024-08-23
A78: CLBS = Closing Basis *** | F78: Reinitiated $
A79: Dividend adjusted <> | F79: Revised stoploss # | H79: .................
A82: Investment Idea (Timeframe- 2-3 Years)
A83: Sr.no | B83: Date | D83: Company | E83: Rec | F83: Rec Price | G83: Point of Review | H83: Close Rate | I83: Target | J83: Remark | K83: Profit / Loss per Share | L83: Gain / Loss % | M83: Status | N83: Closed Date
A84: 1 | B84: 2013-11-01 | D84: L&T Finance Holding | E84: Accu | F84: 82.00 | G84: - | H84: 100 | I84: 100.00 | J84: Target Achieved | K84: =H84-F84 -> 18.00 | L84: =K84/F84 -> 21.95% | M84: Successful | N84: 2016-10-14
A85: 2 | B85: 2014-06-04 | D85: Finolex Inds | E85: Buy | F85: 257.00 | G85: - | H85: 300 | I85: 300.00 | J85: Target Achieved | K85: 43.00 | L85: 16.73% | M85: Successful | N85: 2014-07-02
A86: 3 | B86: 2014-07-08 | D86: JK Cement | E86: Buy | F86: 393.00 | G86: - | H86: 468 | I86: 468.00 | J86: Target Achieved | K86: 75.00 | L86: 19.08% | M86: Successful | N86: 2014-08-12
A87: 4 | B87: 2014-08-06 | D87: Finolex Cables | E87: Buy | F87: 205.00 | G87: - | H87: 275 | I87: 250.00 | J87: Target Achieved | K87: 70.00 | L87: 34.15% | M87: Successful | N87: 2014-11-19
A88: 5 | B88: 2014-09-04 | D88: Exide Inds | E88: Buy | F88: 162.00 | G88: - | H88: 190 | I88: 190.00 | J88: Target Achieved | K88: 28.00 | L88: 17.28% | M88: Successful | N88: 2015-01-02
A89: 6 | B89: 2014-09-04 | D89: Deepak Nitrite | E89: Buy | F89: 75.00 | G89: - | H89: 91.5 | I89: 95-100 | J89: Profit of Rs.16.50/- | K89: 16.50 | L89: 22.00% | M89: Successful | N89: 2014-11-11
A90: 7 | B90: 2014-10-01 | D90: Mercks | E90: Buy | F90: 850.00 | G90: - | H90: 982.5 | I90: 1050.00 | J90: Profit of Rs.132.50/- | K90: 132.50 | L90: 15.59% | M90: Successful | N90: 2015-02-04
A91: 8 | B91: 2014-10-01 | D91: Grindwell Norton | E91: Buy | F91: 475.00 | G91: - | H91: 515 | I91: 600.00 | J91: Profit of Rs.40/- | K91: 40.00 | L91: 8.42% | M91: Successful | N91: 2014-10-27
A92: 9 | B92: 2014-10-01 | D92: Snowman Logistics | E92: Buy | F92: 86.00 | G92: - | H92: 99 | I92: 140.00 | J92: Profit of Rs.13.00/- | K92: 13.00 | L92: 15.12% | M92: Successful | N92: 2014-10-27
A93: 10 | B93: 2014-10-14 | D93: Birla Corp | E93: Buy | F93: 496.60 | G93: - | H93: 621 | I93: 580.00 | J93: Target Achieved | K93: 124.40 | L93: 25.05% | M93: Successful | N93: 2016-08-23
A94: 11 | B94: 2014-10-14 | D94: Ultratech Cem | E94: Buy | F94: 2481.90 | G94: - | H94: 2840 | I94: 2870.00 | J94: Profit of Rs.358.10/- | K94: 358.10 | L94: 14.43% | M94: Successful | N94: 2015-01-13
A95: 12 | B95: 2014-10-16 | D95: Sintex Inds | E95: Buy | F95: 84.50 | G95: - | H95: 93 | I95: 110.00 | J95: Profit of Rs.8.50/- | K95: 8.50 | L95: 10.06% | M95: Successful | N95: 2014-10-27
A96: 13 | B96: 2014-10-16 | D96: HSIL | E96: Buy | F96: 401.00 | G96: - | H96: 428 | I96: 450.00 | J96: Profit of Rs.27.00/- | K96: 27.00 | L96: 6.73% | M96: Successful | N96: 2015-01-16
A97: 14 | B97: 2014-10-16 | D97: Eveready Inds | E97: Buy | F97: 101.00 | G97: - | H97: 112 | I97: 120.00 | J97: Profit of Rs.11.00/- | K97: 11.00 | L97: 10.89% | M97: Successful | N97: 2014-10-27
A98: 15 | B98: 2014-11-11 | D98: Pennar Inds | E98: Buy | F98: 59.00 | G98: - | H98: 76 | I98: 76.00 | J98: Target Achieved | K98: 17.00 | L98: 28.81% | M98: Successful | N98: 2017-10-24
A99: 16 | B99: 2014-11-11 | D99: Snowman Logistics | E99: Buy | F99: 99.00 | G99: - | H99: 120 | I99: 120.00 | J99: Profit of Rs.21/- | K99: 21.00 | L99: 21.21% | M99: Successful | N99: 2014-11-17
A100: 17 | B100: 2014-11-13 | D100: Dharamsi Morarji Chem | E100: Buy | F100: 22.00 | G100: - | H100: 33.55 | I100: 32.00 | J100: Profit of Rs 11.55/- | K100: 11.55 | L100: 52.50% | M100: Successful | N100: 2015-07-03
A101: 18 | B101: 2014-12-03 | D101: Tatachem | E101: Buy | F101: 440.00 | G101: - | H101: 520 | I101: 520.00 | J101: Profit of Rs 80.00/- | K101: 80.00 | L101: 18.18% | M101: Successful | N101: 2015-07-23
A102: 19 | B102: 2014-12-03 | D102: Advanta | E102: Buy | F102: 360.00 | G102: - | H102: 427 | I102: 425.00 | J102: Profit of Rs.67.00/- | K102: 67.00 | L102: 18.61% | M102: Successful | N102: 2015-02-23
A103: 20 | B103: 2015-01-08 | D103: GDL | E103: Buy | F103: 360.00 | G103: - | H103: 455 | I103: 420.00 | J103: Profit of Rs.95.00/- | K103: 95.00 | L103: 26.39% | M103: Successful | N103: 2015-01-20
A104: 21 | B104: 2015-01-08 | D104: NRB Bearing | E104: Buy | F104: 130.00 | H104: 175.5 | I104: 165.00 | J104: Profit of Rs 45.50/- | K104: 45.50 | L104: 35.00% | M104: Successful | N104: 2017-12-19
A105: 22 | B105: 2015-02-05 | D105: GSFC | E105: Accu | F105: 98.00 | H105: 120 | I105: 120.00 | J105: Target Achieved | K105: 22.00 | L105: 22.45% | M105: Successful | N105: 2017-01-18
A106: 23 | B106: 2015-02-05 | D106: Sundrmfast | E106: Accu | F106: 196.00 | H106: 262 | I106: 255.00 | J106: Target Achieved | K106: 66.00 | L106: 33.67% | M106: Successful | N106: 2016-08-17
A107: 24 | B107: 2015-03-04 | D107: GPPL | E107: Accu | F107: 235 | H107: 77.00 | I107: 280-285 | J107: Loss of Rs.158/- | K107: -158.00 | L107: -67.23% | M107: Unsuccessful | N107: 2019-02-26
A108: 25 | B108: 2015-03-04 | D108: ORIENTCEM | E108: Accu | F108: 185.00 | H108: 224 | I108: 220-225 | J108: Target Achieved | K108: 39.00 | L108: 21.08% | M108: Successful | N108: 2016-10-04
A109: 26 | B109: 2015-03-27 | D109: PFS | E109: Accu | F109: 49.5 | H109: 15.85 | I109: 67.00 | J109: Loss of Rs.33.65/- | K109: -33.65 | L109: -68% | M109: Unsuccessful | N109: 2019-06-11
A110: 27 | B110: 2015-03-30 | D110: Walchandnagar Ind Ltd | E110: Accu | F110: 183.50 | H110: 219 | I110: 218.00 | J110: Profit of Rs.35.50/- | K110: 35.50 | L110: 19.35% | M110: Successful | N110: 2015-04-09
A111: 28 | B111: 2015-04-20 | D111: Kalpataru Power Transmission Ltd | E111: Accu | F111: =(227+237)/2 -> 232.00 | H111: 298 | I111: 298.00 | J111: Target Achieved | K111: 66.00 | L111: 28.45% | M111: Successful | N111: 2017-03-29
A112: 29 | B112: 2015-05-04 | D112: Mastek Ltd | E112: Buy | F112: 385.00 | H112: =212.5+331 -> 543.5 | I112: 510.00 | J112: Profit of Rs 158.50/- | K112: 158.50 | L112: 41.17% | M112: Successful | N112: 2015-08-19
A113: 30 | B113: 2015-05-04 | D113: Suprajit Eng | E113: Buy | F113: 115.50 | H113: 146 | I113: 142.00 | J113: Profit of Rs 30.50/- | K113: 30.50 | L113: 26.41% | M113: Successful | N113: 2015-07-17
A114: 31 | B114: 2015-05-27 | D114: TCI | E114: Buy | F114: 237.50 | H114: 279.5 | I114: 278.00 | J114: Target Achieved | K114: 42.00 | L114: 17.68% | M114: Successful | N114: 2015-08-06
A115: 32 | B115: 2015-06-19 | D115: HSIL | E115: Accu | F115: 340.00 | H115: 448 | I115: 448.00 | J115: Target Achieved | K115: 108.00 | L115: 31.76% | M115: Successful | N115: 2017-10-10
A116: 33 | B116: 2015-07-06 | D116: Capital First | E116: Accu | F116: 390.00 | H116: 460 | I116: 460.00 | J116: Target Achieved | K116: =H116-F116 -> 70.00 | L116: =K116/F116 -> 17.95% | M116: Successful | N116: 2016-04-18
A117: 34 | B117: 2015-07-10 | D117: Dolphin OffShore | E117: Accu | F117: 122.5 | H117: 61.00 | I117: 172.00 | J117: Loss of Rs.61.50/- | K117: -61.50 | L117: -50.20% | M117: Unsuccessful | N117: 2018-08-21
A118: 35 | B118: 2015-08-03 | D118: Allcargo logistics | E118: Accu | F118: 297.50 | H118: 350 | I118: 360.00 | J118: Profit of Rs 52.50/- | K118: 52.50 | L118: 17.65% | M118: Successful | N118: 2015-08-16
A119: 36 | B119: 2015-08-03 | D119: Camline Fine | E119: Accu | F119: 115.50 | H119: 149 | I119: 140.00 | J119: Profit of Rs 33.50/- | K119: 33.50 | L119: 29.00% | M119: Successful | N119: 2017-01-05
A120: 37 | B120: 2015-09-04 | D120: TCI | E120: Accu | F120: 226.00 | H120: 292 | I120: 292.00 | J120: Target Achieved | K120: 66.00 | L120: 29.20% | M120: Successful | N120: 2015-10-09
A121: 38 | B121: 2015-09-07 | D121: Kalpataru Power Transmission Ltd | E121: Accu | F121: 232.50 | H121: 312.5 | I121: 310.00 | J121: Target Achieved | K121: 80.00 | L121: 34.41% | M121: Successful | N121: 2017-03-29
A122: 39 | B122: 2015-09-21 | D122: LLOYD ELECTRIC & ENG LTD | E122: Accu | F122: 196.50 | H122: 238 | I122: 238.00 | J122: Target Achieved | K122: 41.50 | L122: 21.12% | M122: Successful | N122: 2015-10-14
A123: 40 | B123: 2015-09-24 | D123: L&T Finance Holding | E123: Accu | F123: 65.00 | H123: 82 | I123: 82.00 | J123: Target Achieved | K123: 17.00 | L123: 26.15% | M123: Successful | N123: 2016-07-27
A124: 41 | B124: 2015-10-14 | D124: KEC International ltd | E124: Accu | F124: 144.00 | H124: 182.5 | I124: 181.00 | J124: Target Achieved | K124: 38.50 | L124: 26.74% | M124: Successful | N124: 2017-03-23
A125: 42 | B125: 2015-10-14 | D125: Gruh Finance | E125: Accu | F125: 264.00 | H125: 311 | I125: 311.00 | J125: Target Achieved | K125: 47.00 | L125: 17.80% | M125: Successful | N125: 2016-08-22
A126: 43 | B126: 2015-11-10 | D126: Pidilitind | E126: Buy | F126: 549.50 | H126: 630 | I126: 630.00 | J126: Target Achieved | K126: 80.50 | L126: 14.65% | M126: Successful | N126: 2016-02-19
A127: 44 | B127: 2015-12-04 | D127: Zensar Technology | E127: Accu | F127: 1027.50 | H127: 1315 | I127: 1250.00 | J127: Target Achieved | K127: 287.50 | L127: 27.98% | M127: Successful | N127: 2018-05-24
A128: 45 | B128: 2015-12-29 | D128: Vinati Organics Ltd | E128: Accu | F128: 465.00 | H128: 540 | I128: 540.00 | J128: Target Achieved | K128: 75.00 | L128: 16.13% | M128: Successful | N128: 2016-06-09
A129: 46 | B129: 2016-01-11 | D129: GSFC | E129: Buy | F129: 81.00 | H129: 110 | I129: 110.00 | J129: Target Achieved | K129: 29.00 | L129: 35.80% | M129: Successful | N129: 2017-01-10
A130: 47 | B130: 2016-01-13 | D130: SSWL | E130: Buy | F130: 417.50 | H130: 547 | I130: 535.00 | J130: Target Achieved | K130: 129.50 | L130: 31.02% | M130: Successful | N130: 2016-07-27
A131: 48 | B131: 2016-02-08 | D131: Persistent System Ltd | E131: Accu | F131: 650.00 | H131: 800 | I131: 800.00 | J131: Target Achieved | K131: 150.00 | L131: 23.08% | M131: Successful | N131: 2018-02-23
A132: 49 | B132: 2016-03-04 | D132: UPL | E132: Accu | F132: 437.50 | H132: 504.5 | I132: 522.00 | J132: Profit of Rs.67/- | K132: 67.00 | L132: 15.31% | M132: Successful | N132: 2016-04-20
A133: 50 | B133: 2016-03-09 | D133: Ashoka Buildcon Ltd | E133: Accu | F133: 189.50 | H133: 218 | I133: 218.00 | J133: Target Achieved | K133: 28.50 | L133: 15.04% | M133: Successful | N133: 2017-10-26
A134: 51 | B134: 2016-04-11 | D134: PTC INDIA FIN SERV LTD | E134: Accu | F134: 36.5 | H134: 15.85 | I134: 60.00 | J134: Loss of Rs.20.65/- | K134: -20.65 | L134: -56.58% | M134: Unsuccessful | N134: 2019-06-11
A135: 52 | B135: 2016-04-12 | D135: CAMLINFINE $ | E135: Accu | F135: 93.00 | H135: 149 | I135: 140.00 | J135: Profit of Rs 56/- | K135: 56.00 | L135: 60.22% | M135: Successful | N135: 2017-01-05
A136: 53 | B136: 2016-04-12 | D136: Greaves Cotton Ltd. | E136: Accu | F136: 130.00 | H136: 150 | I136: 150-155 | J136: Target Achieved | K136: 20.00 | L136: 15.38% | M136: Successful | N136: 2016-07-13
A137: 54 | B137: 2016-04-13 | D137: DHFL | E137: Accu | F137: 196.00 | H137: 299 | I137: 299.00 | J137: Target Achieved | K137: 103.00 | L137: 52.55% | M137: Successful | N137: 2016-09-07
A138: 55 | B138: 2016-04-13 | D138: Magma | E138: Accu | F138: 88.00 | H138: 103 | I138: 103.00 | J138: Target Achieved | K138: 15.00 | L138: 17.05% | M138: Successful | N138: 2016-06-09
A139: 56 | B139: 2016-05-02 | D139: KEC International ltd $ | E139: Accu | F139: 127.50 | H139: 148 | I139: 148-150 | J139: Target Achieved | K139: =H139-F139 -> 20.50 | L139: =K139/F139 -> 16.08% | M139: Successful | N139: 2016-07-13
A140: 57 | B140: 2016-05-03 | D140: Mindtree | E140: Accu | F140: 675.00 | H140: 815 | I140: 790-800 | J140: Target Achieved | K140: =H140-F140 -> 140.00 | L140: =K140/F140 -> 20.74% | M140: Successful | N140: 2018-02-23
A141: 58 | B141: 2016-06-01 | D141: Atulauto | E141: Accu | F141: 500 | H141: 232.50 | I141: 565-570 | J141: Loss of Rs.267.50 /- | K141: =H141-F141 -> -267.50 | L141: =K141/F141 -> -53.50% | M141: Unsuccessful | N141: 2019-09-27
A142: 59 | B142: 2016-06-06 | D142: TRITURBINE | E142: Accu | F142: 110.00 | H142: 126.5 | I142: 125.00 | J142: Profit of Rs.16.50/- | K142: =H142-F142 -> 16.50 | L142: =K142/F142 -> 15.00% | M142: Successful | N142: 2016-07-01
A143: 60 | B143: 2016-06-17 | D143: Pennar Industries Ltd | E143: Accu | F143: 44.00 | H143: 69.5 | I143: 69.50 | J143: Profit of Rs.25.50/- | K143: =H143-F143 -> 25.50 | L143: =K143/F143 -> 57.95% | M143: Successful | N143: 2017-08-30
A144: 61 | B144: 2016-06-28 | D144: EVEREADY | E144: Accu | F144: 262.50 | H144: 340 | I144: 333.00 | J144: Profit of Rs.77.50/- | K144: 77.50 | L144: 29.52% | M144: Successful | N144: 2017-10-09
A145: 62 | B145: 2016-06-28 | D145: FIEMIND | E145: Accu | F145: 840.00 | H145: 1230 | I145: 1230.00 | J145: Target Achieved | K145: 390.00 | L145: 46.43% | M145: Successful | N145: 2016-10-06
A146: 63 | B146: 2016-07-05 | D146: Bajaj Corp Ltd | E146: Accu | F146: 395 | H146: =(468.5+342.5)/2 -> 405.50 | I146: 510.00 | J146: Profit of Rs.10.50/- | K146: =H146-F146 -> 10.50 | L146: =K146/F146 -> 3% | M146: Neutral | N146: 2019-05-21
A147: 64 | B147: 2016-08-02 | D147: GPPL $ | E147: Buy | F147: =169.5-12.8 -> 156.7 | H147: 77.00 | I147: 198-200 | J147: Loss of Rs.79.7/- | K147: -79.70 | L147: -50.86% | M147: Unsuccessful | N147: 2019-02-26
A148: 65 | B148: 2016-08-04 | D148: WONDERLA HOLIDAYS LTD | E148: Accu | F148: 400 | H148: 305.00 | I148: 475.00 | J148: Loss of Rs.95/- | K148: -95.00 | L148: -23.75% | M148: Unsuccessful | N148: 2019-05-21
A149: 66 | B149: 2016-08-11 | D149: CAMLINFINE | E149: Accu | F149: 86.50 | H149: 130 | I149: 130.00 | J149: Profit of Rs.43.50/- | K149: 43.50 | L149: 50.29% | M149: Successful | N149: 2017-12-22
A150: 67 | B150: 2016-08-18 | D150: GRANULES | E150: Accu | F150: 133.5 | H150: 126.50 | I150: 178.00 | J150: Exit | K150: -7.00 | L150: -5.24% | M150: Unsuccessful | N150: 2016-09-02
A151: 68 | B151: 2016-08-31 | D151: VA TECH WABAG | E151: Accu | F151: 560.00 | H151: 725 | I151: 725.00 | J151: Target Achieved | K151: 165.00 | L151: 29.46% | M151: Successful | N151: 2016-03-27
A152: 69 | B152: 2016-09-01 | D152: SKIPPER LIMITED | E152: Accu | F152: 160.50 | H152: 210 | I152: 210.00 | J152: Target Achieved | K152: 49.50 | L152: 30.84% | M152: Successful | N152: 2017-05-16
A153: 70 | B153: 2016-10-03 | D153: IFBIND | E153: Accu | F153: 430.00 | H153: 596 | I153: 575.00 | J153: Profit of Rs.166/- | K153: 166.00 | L153: 38.60% | M153: Successful | N153: 2017-02-03
A154: 71 | B154: 2016-10-14 | D154: ASIANTILES | E154: Accu | F154: 280.00 | H154: 345 | I154: 345.00 | J154: Target Achieved | K154: =H154-F154 -> 65.00 | L154: =K154/F154 -> 23.21% | M154: Successful | N154: 2017-03-20
A155: 72 | B155: 2016-10-14 | D155: DEEPIND | E155: Accu | F155: 245.00 | H155: 325.5 | I155: 330.00 | J155: Profit of Rs.80.5/- | K155: 80.50 | L155: =K155/F155 -> 32.86% | M155: Successful | N155: 2017-02-03
A156: 73 | B156: 2016-10-17 | D156: DCBBANK | E156: Accu | F156: 125.00 | H156: 160 | I156: 160.00 | J156: Target Achieved | K156: 35.00 | L156: 28.00% | M156: Successful | N156: 2017-03-09
A157: 74 | B157: 2016-10-17 | D157: ORIENTREF | E157: Accu | F157: 114.00 | H157: 145 | I157: 145.00 | J157: Target Achieved | K157: 31.00 | L157: =K157/F157 -> 27.19% | M157: Successful | N157: 2017-05-04
A158: 75 | B158: 2016-10-17 | D158: GANECOS | E158: Accu | F158: 212.00 | H158: 280 | I158: 276.00 | J158: Profit of Rs.68/- | K158: 68.00 | L158: =K158/F158 -> 32.08% | M158: Successful | N158: 2017-05-03
A159: 76 | B159: 2016-11-04 | D159: NBCC | E159: Accu | F159: 155.00 | H159: 210 | I159: 210.00 | J159: Profit of Rs.55/- | K159: 55.00 | L159: =K159/F159 -> 35.48% | M159: Successful | N159: 2017-07-28
A160: 77 | B160: 2016-12-06 | D160: PRECAM | E160: Accu | F160: 150.5 | H160: 72.50 | I160: 174.00 | J160: Loss of Rs.78/- | K160: -78.00 | L160: -51.83% | M160: Unsuccessful | N160: 2018-08-21
A161: 78 | B161: 2016-12-08 | D161: INFRATEL | E161: Accu | F161: 380.00 | H161: 478 | I161: 468.00 | J161: Target Achieved | K161: =H161-F161 -> 98.00 | L161: =K161/F161 -> 25.79% | M161: Successful | N161: 2017-10-17
A162: 79 | B162: 2016-12-30 | D162: GODREJPROP | E162: Accu | F162: 305.00 | H162: 375 | I162: 375.00 | J162: Target Achieved | K162: =H162-F162 -> 70.00 | L162: =K162/F162 -> 22.95% | M162: Successful | N162: 2017-02-02
A163: 80 | B163: 2017-01-04 | D163: DEEPAKNTR | E163: Accu | F163: 99.50 | H163: 158 | I163: 158.00 | J163: Target Achieved | K163: =H163-F163 -> 58.50 | L163: =K163/F163 -> 58.79% | M163: Successful | N163: 2017-06-12
A164: 81 | B164: 2017-01-04 | D164: DEEPAKNTR | E164: Accu | F164: 99.50 | H164: 158 | I164: 158.00 | J164: Target Achieved | K164: 58.50 | L164: 58.79% | M164: Successful | N164: 2017-06-12
A165: 82 | B165: 2017-02-20 | D165: RECLTD | E165: Accu | F165: 140.50 | H165: 220 | I165: 220.00 | J165: Target Achieved | K165: =H165-F165 -> 79.50 | L165: =K165/F165 -> 56.58% | M165: Successful | N165: 2017-05-09
A166: 83 | B166: 2017-02-20 | D166: SUBROS | E166: Accu | F166: 202.50 | H166: 234 | I166: 234.00 | J166: Target Achieved | K166: 31.50 | L166: 15.56% | M166: Successful | N166: 2017-04-11
A167: 84 | B167: 2017-03-24 | D167: VRLLOG | E167: Accu | F167: 300.50 | H167: 417.5 | I167: 420.00 | J167: Profit of Rs.117/- | K167: =H167-F167 -> 117.00 | L167: =K167/F167 -> 38.94% | M167: Successful | N167: 2017-12-01
A168: 85 | B168: 2017-03-24 | D168: FIEMIND | E168: Accu | F168: 850.00 | H168: 1042.5 | I168: 1023.00 | J168: Profit of Rs 192.50/- | K168: 192.50 | L168: 22.65% | M168: Successful | N168: 2017-04-05
A169: 86 | B169: 2017-04-05 | D169: RATNAMANI | E169: Accu | F169: 785.00 | H169: 930 | I169: 920.00 | J169: Profit of Rs.145/- | K169: =H169-F169 -> 145.00 | L169: =K169/F169 -> 18.47% | M169: Successful | N169: 2017-08-29
A170: 87 | B170: 2017-04-06 | D170: ZEEMEDIA | E170: Accu | F170: 40 | H170: 13.10 | I170: 60.00 | J170: Loss of Rs.26.9/- | K170: -26.90 | L170: -67.25% | M170: Unsuccessful | N170: 2018-02-07
A171: 88 | B171: 2017-04-12 | D171: DABUR | E171: Accu | F171: 289.50 | H171: 354 | I171: 360.00 | J171: Profit of Rs.64.5/- | K171: =H171-F171 -> 64.50 | L171: =K171/F171 -> 22.28% | M171: Successful | N171: 2017-11-01
A172: 89 | B172: 2017-04-20 | D172: KPRMILL | E172: Accu | F172: 700.00 | H172: 840 | I172: 840.00 | J172: Profit of Rs.140/- | K172: 140.00 | L172: 20.00% | M172: Successful | N172: 2017-06-07
A173: 90 | B173: 2017-06-01 | D173: ESSELPACK | E173: Accu | F173: 130.00 | H173: 144.25 | I173: 170.00 | J173: Profit of Rs.14.25/- | K173: 14.25 | L173: 10.96% | M173: Successful | N173: 2019-07-29
A174: 91 | B174: 2017-06-15 | D174: KEI | E174: Accu | F174: 214.50 | H174: 262 | I174: 262.00 | J174: Profit of Rs.47.5/- | K174: 47.50 | L174: 22.14% | M174: Successful | N174: 2017-08-30
A175: 92 | B175: 2017-07-17 | D175: MAYURUNIQ | E175: Accu | F175: 370.00 | H175: 447.5 | I175: 450.00 | J175: Target Achieved | K175: 77.50 | L175: 20.95% | M175: Successful | N175: 2017-10-27
A176: 93 | B176: 2017-07-27 | D176: RAMCOCEM | E176: Accu | F176: 657.50 | H176: 825 | I176: 820.00 | J176: Target Achieved | K176: 167.50 | L176: 25.48% | M176: Successful | N176: 2017-12-21
A177: 94 | B177: 2017-08-17 | D177: FINPIPE | E177: Accu | F177: 605.00 | H177: 750 | I177: 750.00 | J177: Profit of Rs.145/- | K177: 145.00 | L177: 23.97% | M177: Successful | N177: 2017-10-19
A178: 95 | B178: 2017-09-01 | D178: SHK | E178: Accu | F178: 255 | H178: 217.25 | I178: 320.00 | J178: Loss of Rs.37.75/- | K178: -37.75 | L178: -15% | M178: Unsuccessful | N178: 2019-07-15
A179: 96 | B179: 2017-09-19 | D179: SKIPPER | E179: Accu | F179: 215.00 | H179: 258 | I179: 258.00 | J179: Target Achieved | K179: 43.00 | L179: 20.00% | M179: Successful | N179: 2017-11-01
A180: 97 | B180: 2017-09-19 | D180: SKIPPER | E180: Accu | F180: 215.00 | H180: 258 | I180: 258.00 | J180: Target Achieved | K180: 43.00 | L180: 20.00% | M180: Successful | N180: 2017-11-01
A181: 98 | B181: 2017-09-20 | D181: CAMLINFINE$ | E181: Accu | F181: 75.00 | H181: 90 | I181: 90.00 | J181: Profit of Rs.15.00/- | K181: =H181-F181 -> 15.00 | L181: =K181/F181 -> 20.00% | M181: Successful | N181: 2017-10-11
A182: 99 | B182: 2017-10-03 | D182: GNA | E182: Accu | F182: 315.00 | H182: 392 | I182: 384.00 | J182: Profit of Rs.77/- | K182: 77.00 | L182: 24.44% | M182: Successful | N182: 2017-10-09
A183: 100 | B183: 2017-10-05 | D183: NOCIL | E183: Accu | F183: 145.00 | H183: 179 | I183: 180.00 | J183: Profit of Rs.34/- | K183: 34.00 | L183: 23.45% | M183: Successful | N183: 2017-10-17
A184: 101 | B184: 2017-10-06 | D184: CENTURYPLY | E184: Accu | F184: 256.00 | H184: 323 | I184: 320.00 | J184: Target Achieved | K184: 67.00 | L184: 26.17% | M184: Successful | N184: 2017-11-28
A185: 102 | B185: 2017-10-09 | D185: EIHOTEL | E185: Accu | F185: 137.50 | H185: 184 | I185: 183.00 | J185: Profit of Rs.46.5/- | K185: 46.50 | L185: 33.82% | M185: Successful | N185: 2018-01-08
A186: 103 | B186: 2017-10-10 | D186: NRBBEARING | E186: Accu | F186: 125.50 | H186: 158 | I186: 155.00 | J186: Profit of Rs.32.5/- | K186: 32.50 | L186: 25.90% | M186: Successful | N186: 2017-11-28
A187: 104 | B187: 2017-10-10 | D187: BOROSIL | E187: Accu | F187: 895.00 | H187: 1122.5 | I187: 1078.00 | J187: Profit of Rs.227.5/- | K187: 227.50 | L187: 25.42% | M187: Successful | N187: 2018-01-17
A188: 105 | B188: 2017-10-12 | D188: CYIENT | E188: Accu | F188: 525.00 | H188: 629 | I188: 629.00 | J188: Target Achieved | K188: 104.00 | L188: 19.81% | M188: Successful | N188: 2018-01-19
A189: 106 | B189: 2017-11-07 | D189: HATSUN | E189: Accu | F189: 740.00 | H189: 892.5 | I189: 900.00 | J189: Profit of Rs.152.5/- | K189: =H189-F189 -> 152.50 | L189: =K189/F189 -> 20.61% | M189: Successful | N189: 2017-11-13
A190: 107 | B190: 2017-12-04 | D190: SANGHIIND | E190: Accu | F190: 118.50 | H190: 143.5 | I190: 145.00 | J190: Profit of Rs.25/- | K190: =H190-F190 -> 25.00 | L190: =K190/F190 -> 21.10% | M190: Successful | N190: 2017-12-28
A191: 108 | B191: 2017-12-21 | D191: KAJARIACER | E191: Accu | F191: 715 | H191: 500.00 | I191: 872.00 | J191: Loss of Rs.215/- | K191: =H191-F191 -> -215.00 | L191: =K191/F191 -> -30.07% | M191: Unsuccessful | N191: 2019-07-24
A192: 109 | B192: 2017-12-29 | D192: GNA | E192: Accu | F192: 435.00 | H192: 542.5 | I192: 539.00 | J192: Target Achieved | K192: 107.50 | L192: 24.71% | M192: Successful | N192: 2018-04-16
A193: 110 | B193: 2017-12-29 | D193: ZENSARTECH | E193: Accu | F193: 885.00 | H193: 1090 | I193: 1084.00 | J193: Target Achieved | K193: 205.00 | L193: 23.16% | M193: Successful | N193: 2018-04-23
A194: 111 | B194: 2018-04-02 | D194: EVERESTIND | E194: Accu | F194: 478.50 | H194: 442 | I194: 613.00 | J194: Loss of Rs.36.50 /- | K194: =H194-F194 -> -36.50 | L194: =K194/F194 -> -7.63% | M194: Unsuccessful | N194: 2019-10-24
A195: 112 | B195: 2018-04-04 | D195: GPPL$ | E195: Accu | F195: =141.5-7.3 -> 134.2 | H195: 77.00 | I195: 180.00 | J195: Loss of Rs.57.2/- | K195: =H195-F195 -> -57.20 | L195: =K195/F195 -> -42.62% | M195: Unsuccessful | N195: 2019-02-26
A196: 113 | B196: 2018-04-19 | D196: MANPASAND | E196: Accu | F196: 430 | H196: 220.00 | I196: 537.00 | J196: Loss of Rs.210/- | K196: =H196-F196 -> -210.00 | L196: =K196/F196 -> -48.84% | M196: Unsuccessful | N196: 2018-06-01
A197: 114 | B197: 2018-04-30 | D197: HEIDELBERG | E197: Accu | F197: 153.5 | H197: 196 | I197: 196.00 | J197: Profit of Rs.42.50/- | K197: =H197-F197 -> 42.50 | L197: =K197/F197 -> 27.69% | M197: Successful | N197: 2019-05-20
A198: 115 | B198: 2018-07-25 | D198: ZEEMEDIA | E198: Accu | F198: 27.5 | H198: 13.10 | I198: 60.00 | J198: Loss of Rs.14.40/- | K198: -14.40 | L198: -52.36% | M198: Unsuccessful | N198: 2018-02-07
A199: 116 | B199: 2018-08-06 | D199: GABRIEL | E199: Accu | F199: 148.5 | H199: 102 | I199: 182.00 | J199: Loss of Rs.46.50/- | K199: =H199-F199 -> -46.50 | L199: =K199/F199 -> -31.31% | M199: Unsuccessful | N199: 2019-07-15
A200: 117 | B200: 2018-08-23 | D200: INDIANHUME | E200: Accu | F200: 285 | H200: 355 | I200: 364.00 | J200: Profit of Rs.70/- | K200: 70.00 | L200: 24.56% | M200: Successful | N200: 2018-12-21
A201: 118 | B201: 2018-08-29 | D201: GRINDWELL | E201: Accu | F201: 525 | H201: 585 | I201: 635.00 | J201: Profit of Rs.60- | K201: =H201-F201 -> 60.00 | L201: =K201/F201 -> 11.43% | M201: Successful | N201: 2019-07-16
A202: 119 | B202: 2018-10-22 | D202: FINPIPE | E202: Accu | F202: 475 | H202: 574 | I202: 570.00 | J202: Target Achieved | K202: 99.00 | L202: 20.84% | M202: Successful | N202: 2018-10-30
A203: 120 | B203: 2018-10-24 | D203: GULFOILLUB | E203: Accu | F203: 707.5 | H203: 872 | I203: 872.00 | J203: Target Achieved | K203: 164.50 | L203: 23.25% | M203: Successful | N203: 2019-01-17
A204: 121 | B204: 2018-10-25 | D204: DBCORP | E204: Accu | F204: 162 | H204: 204 | I204: 209.00 | J204: Profit of Rs.42/- | K204: 42.00 | L204: 25.93% | M204: Successful | N204: 2019-03-15
A205: 122 | B205: 2018-10-26 | D205: RITES | E205: Accu | F205: 240 | H205: 297 | I205: 297.00 | J205: Target Achieved | K205: 57.00 | L205: 23.75% | M205: Successful | N205: 2018-11-13
A206: 123 | B206: 2018-12-05 | D206: BRIGADE | E206: Accu | F206: 202.5 | H206: 255 | I206: 252.00 | J206: Target Achieved | K206: 52.50 | L206: 25.93% | M206: Successful | N206: 2019-03-18
A207: 124 | B207: 2018-12-31 | D207: JKCEMENT | E207: Accu | F207: 710 | H207: 866 | I207: 866.00 | J207: Target Achieved | K207: 156.00 | L207: 21.97% | M207: Successful | N207: 2019-03-29
A208: 125 | B208: 2019-02-26 | D208: MARICO | E208: Accu | F208: 337.25 | H208: 398.5 | I208: 411.00 | J208: Profit of Rs.61.25/- | K208: 61.25 | L208: 18.16% | M208: Successful | N208: 2019-10-22
A209: 126 | B209: 2019-04-04 | D209: ITDCEM | E209: Accu | F209: 130 | H209: 65 | I209: 158.00 | J209: Loss of Rs.65 /- | K209: -65.00 | L209: -50.00% | M209: Unsuccessful | N209: 2019-09-18
A210: 127 | B210: 2017-10-09 | D210: RECLTD | E210: Accu | F210: 141.5 | H210: 183.5 | I210: 210.00 | J210: Profit of Rs.42/- | K210: 42.00 | L210: 29.68% | M210: Successful | N210: 2017-11-03
A211: 128 | B211: 2017-12-05 | D211: ALLCARGO | E211: Accu | F211: 172.00 | H211: 155.25 | I211: 230.00 | J211: Loss of Rs.16.75/- | K211: -16.75 | L211: -9.74% | M211: Unsuccessful | N211: 2019-11-18
A212: 129 | B212: 2018-10-25 | D212: GODREJCP | E212: Accu | F212: 698.5 | H212: 890 | I212: 890.00 | J212: Profit of Rs.191.50/- | K212: 191.50 | L212: 27.42% | M212: Successful | N212: 2021-05-12
A213: 130 | B213: 2017-05-22 | D213: GREAVESCOT | E213: Accu | F213: 127.6 | H213: 138 | I213: 190.00 | J213: Profit of Rs.10.40 | K213: 10.40 | L213: 8.15% | M213: Successful | N213: 2019-11-05
A214: 131 | B214: 2018-02-27 | D214: MOLDTKPAC | E214: Accu | F214: 317 | H214: 382.5 | I214: 398.00 | J214: Profit of Rs.65.5 | K214: 65.50 | L214: 20.66% | M214: Successful | N214: 2021-02-11
A215: 132 | B215: 2018-03-05 | D215: LICHSGFIN | E215: Accu | F215: =510-14.4 -> 495.60 | H215: 350 | I215: 672.00 | J215: Loss of Rs.145.60/- | K215: -145.60 | L215: -29.38% | M215: Unsuccessful | N215: 2020-02-26
A216: 133 | B216: 2018-05-17 | D216: PHILIPCARB | E216: Accu | F216: 230.30 | H216: 102.5 | I216: 348.00 | J216: Loss of Rs.127.80/- | K216: -127.80 | L216: -55.49% | M216: Unsuccessful | N216: 2020-03-06
A217: 134 | B217: 2018-06-07 | D217: KEC | E217: Accu | F217: =342.5-5.1 -> 337.4 | H217: 412.5 | I217: 439.00 | J217: Profit of Rs.75.10 | K217: 75.10 | L217: 22.26% | M217: Successful | N217: 2021-02-03
A218: 135 | B218: 2018-07-04 | D218: ASHOKLEY | E218: Accu | F218: =127.5-5.53 -> 121.97 | H218: 122.50 | I218: 170.00 | J218: Profit of Rs.0.53/- | K218: 0.53 | L218: 0% | M218: Neutral | N218: 2021-08-23 | R218: V
A219: 136 | B219: 2018-07-13 | D219: FCONSUMER | E219: Accu | F219: 46.50 | H219: 17 | I219: 59.00 | J219: Loss of Rs.29.50/- | K219: -29.50 | L219: -63.44% | M219: Unsuccessful | N219: 2020-02-26 | R219: V
A220: 137 | B220: 2018-10-23 | D220: JKPAPER | E220: Accu | F220: 156.5 | H220: 207.5 | I220: 191.00 | J220: Target Achieved | K220: 51.00 | L220: 32.59% | M220: Successful | N220: 2021-06-22 | R220: V
... 91 more rows

Sheet Call Tracker (F&O)
M5: Back To Main Page
A6: Retail Research Technical Calls & Fundamental Performance Report for the month of August-2024
M7: 2024-08-29
A8: Master Trade High Risk
A9: Sr.no | B9: Date | D9: Company | E9: Rec | F9: Rec Price | G9: Stop Loss | H9: Call Closed At | I9: Target | J9: Remark | K9: Profit / Loss per share | L9: All charges | M9: Gain / Loss per Lot | N9: Lot | O9: Status | P9: Closed Date
A10: 1 | B10: 2024-08-19 | D10: ICICIBANK AUG FUT | E10: Buy | F10: 1180 | G10: 1158 | H10: 1199 | I10: 1220 | J10: Profit of Rs.19/- | K10: =H10-F10 -> 19 | L10: 50.00 | M10: =(K10*N10)-L10 -> 13250.0 | N10: 700 | O10: Successful | P10: 2024-08-23
A11: 2 | B11: 2024-08-20 | D11: BANKNIFTY AUG FUT | E11: Buy | F11: 50900 | G11: 50450 | H11: 50570 | I11: 51400-51800 | J11: Loss of Rs.330/- | K11: =H11-F11 -> -330 | L11: 50.00 | M11: -5000.0 | N11: 15 | O11: Unsuccessful | P11: 2024-08-21
A12: 3 | B12: 2024-08-22 | D12: RAMCOCEM AUG FUT | E12: Buy | F12: 830 | G12: 814 | H12: 824 | I12: 880 | J12: Loss of Rs.6/- | K12: =H12-F12 -> -6 | L12: 50.00 | M12: -5150.0 | N12: 850 | O12: Unsuccessful | P12: 2024-08-23
A13: 4 | B13: 2024-08-26 | D13: JUBLFOOD SEP FUT | E13: Buy | F13: 653.5 | G13: 643 | H13: 662.25 | I13: 690 | J13: Profit of Rs.8.75/- | K13: =H13-F13 -> 8.75 | L13: 50.00 | M13: 10887.5 | N13: 1250 | O13: Successful | P13: 2024-08-27
A14: 5 | B14: 2024-08-27 | D14: GAIL SEP FUT | E14: Buy | F14: 236.75 | G14: 233.5 | I14: 245 | J14: Open
A15: 6 | B15: 2024-08-28 | D15: VOLTAS SEP FUT | E15: Sell | F15: 1728 | G15: 1746 | H15: 1750 | I15: 1670 | J15: Loss of Rs.22/- | K15: =F15-H15 -> -22 | L15: 50.00 | M15: =(K15*N15)-L15 -> -13250.0 | N15: 600 | O15: Unsuccessful | P15: 2024-08-28
A20: Master Trade Medium Risk
A21: Sr.no | B21: Date | D21: Company | E21: Rec | F21: Rec Price | G21: Stop Loss | H21: Call Closed At | I21: Target | J21: Remark | K21: Profit/ Loss per lot | L21: All charges | M21: Gain / Loss per Lot | N21: Lot | O21: Status | P21: Closed Date
A22: 1 | B22: 2024-08-09 | D22: BANKNIFTY 50800 CE 14 AUG | E22: Buy | F22: 285 | G22: 180 | H22: 202.5 | I22: 280-290 | J22: Loss of Rs.82.5/- | K22: =H22-F22 -> -82.5 | L22: 50.00 | M22: =(K22*N22)-L22 -> -1287.5 | N22: 15 | O22: Unsuccessful | P22: 2024-08-09
A23: 2 | B23: 2024-08-13 | D23: BANKNIFTY 50200 PE 14 AUG | E23: Buy | F23: 175 | G23: 100 | H23: 265 | I23: 280 | J23: Profit of Rs.90/- | K23: =H23-F23 -> 90 | L23: 50.00 | M23: 1300.0 | N23: 15 | O23: Successful | P23: 2024-08-13
A24: 3 | B24: 2024-08-14 | D24: BANKNIFTY 49800 PE 14 AUG | E24: Buy | F24: 92.5 | G24: 45 | H24: 70 | I24: 265 | J24: Loss of Rs.22.5/- | K24: =H24-F24 -> -22.5 | L24: 50.00 | M24: -387.5 | N24: 15 | O24: Unsuccessful | P24: 2024-08-14
A25: 4 | B25: 2024-08-16 | D25: BANKNIFTY 50200 CE 21 AUG | E25: Buy | F25: 245 | H25: 322.5 | J25: Profit of Rs.45/- | K25: =H25-F25 -> 77.5 | L25: 50.00 | M25: 575.0 | N25: 15 | O25: Successful | P25: 2024-08-16
D26: BANKNIFTY 50600 CE 21 AUG | E26: Sell | F26: 120 | H26: 152.5 | K26: =F26-H26 -> -32.5 | L26: 50.00
A27: 5 | B27: 2024-08-20 | D27: NIFTY 24800 CE 22 AUG | E27: Buy | F27: 42 | G27: 25 | H27: 62.5 | I27: 80 | J27: Profit of Rs.20.5/- | K27: =H27-F27 -> 20.5 | L27: 50.00 | M27: =(K27*N27)-L27 -> 462.5 | N27: 25 | O27: Successful | P27: 2024-08-20
A28: 6 | B28: 2024-08-22 | D28: NIFTY 24800 PE 22 AUG | E28: Buy | F28: 42.5 | G28: 15 | H28: 15 | I28: 80 | J28: Loss of Rs.27.5/- | K28: =H28-F28 -> -27.5 | L28: 50.00 | M28: -737.5 | N28: 25 | O28: Unsuccessful | P28: 2024-08-22
A29: 7 | B29: 2024-08-22 | D29: BANKNIFTY 51300 CE 28 AUG | E29: Buy | F29: 232.5 | H29: 242.5 | J29: Profit of Rs.25/- | K29: =H29-F29 -> 10 | L29: 50.00 | M29: 275.0 | N29: 15 | O29: Successful | P29: 2024-08-26
D30: BANKNIFTY 51600 CE 28 AUG | E30: Sell | F30: 132.5 | H30: 117.5 | K30: =F30-H30 -> 15 | L30: 50.00
A31: 8 | B31: 2024-08-26 | D31: NIFTY 25000 CE 29 AUG | E31: Buy | F31: 107.5 | G31: 60 | H31: 150 | I31: 160 | J31: Profit of Rs.42.5/- | K31: =H31-F31 -> 42.5 | L31: 50.00 | M31: =(K31*N31)-L31 -> 1012.5 | N31: 25 | O31: Successful | P31: 2024-08-26
A32: 9 | B32: 2024-08-27 | D32: NIFTY 25000 CE 29 AUG | E32: Buy | F32: 97.5 | G32: 70 | H32: 137.5 | I32: 150 | J32: Profit of Rs.40/- | K32: =H32-F32 -> 40 | L32: 50.00 | M32: 950.0 | N32: 25 | O32: Successful | P32: 2024-08-27
A33: 10 | B33: 2024-08-27 | D33: BANKNIFTY 51500 CE 28 AUG | E33: Buy | F33: 67.5 | G33: 10 | H33: 24 | I33: 130 | J33: Loss of Rs.43.5/- | K33: =H33-F33 -> -43.5 | L33: 50.00 | M33: -702.5 | N33: 15 | O33: Unsuccessful | P33: 2024-08-28
A34: 11 | B34: 2024-08-28 | D34: BANKNIFTY 51300 CE 28 AUG | E34: Buy | F34: 30 | G34: 0 | H34: 0 | I34: 80 | J34: Loss of Rs.30/- | K34: =H34-F34 -> -30 | L34: 25.00 | M34: -475.0 | N34: 15 | O34: Unsuccessful | P34: 2024-08-28
